ORGANISATION_NAME,SERVICE_RESPONSIBLE,SUPPLIER_NAME,SUPPLIER_CODE,PAYMENT_DATE,TRANSACTION_REF,NET_AMOUNT_BY_LINE_ITEM,IRRECOVERABLE_VAT,PURPOSE_OF_SPEND,PROCUREMENT_CATEGORY_NAME,TRANSACTION_TYPE,PAYMENT_TYPE,CARD_TRANS,INVOICE_DATE,FINANCIAL_YEAR,FINANCIAL_PERIOD,SUPPLIERS_INVOICE_REFERENCE,COST_CENTRE_CODE,COST_CENTRE_DESC,ACCOUNT_CODE,ACCOUNT_DESC
GUILDFORD BOROUGH COUNCIL,LEISURE GRANTS,CHURCHILL CONTRACT CATERING LTD T/A RADISH,44233,15-Oct-19,2084855,24,0,CONTRACT CATERING,OUTSOURCED CATERERS,Invoice,BACS,None,31-Aug-19,2019,7,22962,A4115,CULTURAL GRANTS,D1822,CONTRACT CATERING
GUILDFORD BOROUGH COUNCIL,STREET CLEANSING,COMENSURA LTD,32435,31-Oct-19,2087717,504.68,0,AGENCY STAFF,OTHER RECRUITMENT AGENCIES AND SERVICE PROVIDERS,Invoice,BACS,None,29-Oct-19,2019,7,1034565,K4551,STREET CLEANSING,A5191,AGENCY STAFF
GUILDFORD BOROUGH COUNCIL,BUILDING MAINTENANCE,CINNAMON CONSTRUCTION LIMITED,92186,08-Oct-19,2083979,5017,0,PAYMENT TO CONTRACTORS,GENERAL BUILDERS,Invoice,BACS,None,30-Sep-19,2019,7,22,K1515,BUILDING MAINTENANCE,D4468,PAYMENT TO CONTRACTORS
GUILDFORD BOROUGH COUNCIL,HOUSING SURVEYING SERVICES,CHURCHILL CONTRACT CATERING LTD T/A RADISH,44233,15-Oct-19,2084855,64.05,0,CONTRACT CATERING,OUTSOURCED CATERERS,Invoice,BACS,None,31-Aug-19,2019,7,22962,G6525,HOUSING SURVEYING SERVICES,D1822,CONTRACT CATERING
GUILDFORD BOROUGH COUNCIL,TENANTS' SERVICES,CHURCHILL CONTRACT CATERING LTD T/A RADISH,44233,15-Oct-19,2084855,2.1,0,CONTRACT CATERING,OUTSOURCED CATERERS,Invoice,BACS,None,31-Aug-19,2019,7,22962,M1151,TENANTS SERVICES (BHS),D1822,CONTRACT CATERING
GUILDFORD BOROUGH COUNCIL,OFFICE SERVICES TEAM,CHURCHILL CONTRACT CATERING LTD T/A RADISH,44233,03-Oct-19,2082811,5515.75,0,CONTRACT CATERING,OUTSOURCED CATERERS,Invoice,BACS,None,31-Aug-19,2019,7,22961,G4585,OFFICE SERVICES,D1822,CONTRACT CATERING
GUILDFORD BOROUGH COUNCIL,GOVERNMENT ST DEBTORS,CHURCHILL CONTRACT CATERING LTD T/A RADISH,44233,03-Oct-19,2082811,-2179.98,0,VAT OUTPUT TAX,OUTSOURCED CATERERS,Invoice,BACS,None,31-Aug-19,2019,7,22961,J02040,VAT,2735,VAT OUTPUT TAX
GUILDFORD BOROUGH COUNCIL,HOMELESSNESS,CHURCHILL CONTRACT CATERING LTD T/A RADISH,44233,15-Oct-19,2084855,4,0,CONTRACT CATERING,OUTSOURCED CATERERS,Invoice,BACS,None,31-Aug-19,2019,7,22962,C3314,HOMELESSNESS PREVENTION STRAT,D1822,CONTRACT CATERING
GUILDFORD BOROUGH COUNCIL,COMMUNITY DEVELOPMENT,CHURCHILL CONTRACT CATERING LTD T/A RADISH,44233,15-Oct-19,2084855,74.55,0,CONTRACT CATERING,OUTSOURCED CATERERS,Invoice,BACS,None,31-Aug-19,2019,7,22962,F5724,SAFER GUILDFORD PARTNERSHIP,D1822,CONTRACT CATERING
GUILDFORD BOROUGH COUNCIL,LEGAL SERVICES,CHURCHILL CONTRACT CATERING LTD T/A RADISH,44233,15-Oct-19,2084855,6.2,0,CONTRACT CATERING,OUTSOURCED CATERERS,Invoice,BACS,None,31-Aug-19,2019,7,22962,G4525,LEGAL SERVICES,D1822,CONTRACT CATERING
GUILDFORD BOROUGH COUNCIL,OFFICE SERVICES TEAM,CHURCHILL CONTRACT CATERING LTD T/A RADISH,44233,15-Oct-19,2084855,45.85,0,CONTRACT CATERING,OUTSOURCED CATERERS,Invoice,BACS,None,31-Aug-19,2019,7,22962,G4585,OFFICE SERVICES,D1822,CONTRACT CATERING
GUILDFORD BOROUGH COUNCIL,BUILDING MAINTENANCE,CINNAMON CONSTRUCTION LIMITED,92186,10-Oct-19,2084553,129.5,0,PAYMENT TO CONTRACTORS,GENERAL BUILDERS,Invoice,BACS,None,08-Oct-19,2019,7,4,K1515,BUILDING MAINTENANCE,D4468,PAYMENT TO CONTRACTORS
GUILDFORD BOROUGH COUNCIL,PROPERTY,CHURCHILL CONTRACT CATERING LTD T/A RADISH,44233,15-Oct-19,2084855,3,0,MISCELLANEOUS EXPENSES,OUTSOURCED CATERERS,Invoice,BACS,None,31-Aug-19,2019,7,22962,P74040,SARP - GBC OWN COSTS & SHARE,1444,MISCELLANEOUS EXPENSES
GUILDFORD BOROUGH COUNCIL,BUILDING MAINTENANCE,CINNAMON CONSTRUCTION LIMITED,92186,22-Oct-19,2086200,180,0,PAYMENT TO CONTRACTORS,GENERAL BUILDERS,Invoice,BACS,None,15-Oct-19,2019,7,5,K1515,BUILDING MAINTENANCE,D4468,PAYMENT TO CONTRACTORS
GUILDFORD BOROUGH COUNCIL,GUILDFORD HOUSE,CHURCHILL CONTRACT CATERING LTD T/A RADISH,44233,15-Oct-19,2084855,2,0,CONTRACT CATERING,OUTSOURCED CATERERS,Invoice,BACS,None,31-Aug-19,2019,7,22962,A4511,GUILDFORD HOUSE ADMINISTRATION,D1822,CONTRACT CATERING
GUILDFORD BOROUGH COUNCIL,REFUSE AND RECYCLING,CHURCHILL CONTRACT CATERING LTD T/A RADISH,44233,15-Oct-19,2084855,15.5,0,CONTRACT CATERING,OUTSOURCED CATERERS,Invoice,BACS,None,31-Aug-19,2019,7,22962,B7766,KERBSIDE RECYCLING,D1822,CONTRACT CATERING
GUILDFORD BOROUGH COUNCIL,ENVIRONMENTAL CONTROL,CHURCHILL CONTRACT CATERING LTD T/A RADISH,44233,15-Oct-19,2084855,45.75,0,CONTRACT CATERING,OUTSOURCED CATERERS,Invoice,BACS,None,31-Aug-19,2019,7,22962,C1113,ENVIRONMENTAL CONTROL,D1822,CONTRACT CATERING
GUILDFORD BOROUGH COUNCIL,MAJOR PROJECTS,CHURCHILL CONTRACT CATERING LTD T/A RADISH,44233,15-Oct-19,2084855,46.85,0,CONTRACT CATERING,OUTSOURCED CATERERS,Invoice,BACS,None,31-Aug-19,2019,7,22962,F5530,MAJOR PROJECTS,D1822,CONTRACT CATERING
GUILDFORD BOROUGH COUNCIL,BUSINESS FORUM,CHURCHILL CONTRACT CATERING LTD T/A RADISH,44233,15-Oct-19,2084855,10,0,CONTRACT CATERING,OUTSOURCED CATERERS,Invoice,BACS,None,31-Aug-19,2019,7,22962,F7520,BUSINESS FORUM,D1822,CONTRACT CATERING
GUILDFORD BOROUGH COUNCIL,OPERATIONS TECHNICAL SERVICES,CHURCHILL CONTRACT CATERING LTD T/A RADISH,44233,15-Oct-19,2084855,6.3,0,CONTRACT CATERING,OUTSOURCED CATERERS,Invoice,BACS,None,31-Aug-19,2019,7,22962,G3546,ICT SERVICE DESK,D1822,CONTRACT CATERING
GUILDFORD BOROUGH COUNCIL,STRATEGIC SUPPORT,CHURCHILL CONTRACT CATERING LTD T/A RADISH,44233,15-Oct-19,2084855,3.95,0,CONTRACT CATERING,OUTSOURCED CATERERS,Invoice,BACS,None,31-Aug-19,2019,7,22962,M8188,NEW HOMES DELIVERY,D1822,CONTRACT CATERING
GUILDFORD BOROUGH COUNCIL,GOVERNMENT ST DEBTORS,CHURCHILL CONTRACT CATERING LTD T/A RADISH,44233,03-Oct-19,2082811,1652.82,0,VAT INPUT TAX,OUTSOURCED CATERERS,Invoice,BACS,None,31-Aug-19,2019,7,22961,J02040,VAT,2736,VAT INPUT TAX
GUILDFORD BOROUGH COUNCIL,SURREY FAMILY SUPPORT PROG,CHURCHILL CONTRACT CATERING LTD T/A RADISH,44233,15-Oct-19,2084855,3,0,CONTRACT CATERING,OUTSOURCED CATERERS,Invoice,BACS,None,31-Aug-19,2019,7,22962,C3321,REFUGEE SUPPORT,D1822,CONTRACT CATERING
GUILDFORD BOROUGH COUNCIL,CORPORATE PROPERTY SERVICES,CHURCHILL CONTRACT CATERING LTD T/A RADISH,44233,15-Oct-19,2084855,26.55,0,CONTRACT CATERING,OUTSOURCED CATERERS,Invoice,BACS,None,31-Aug-19,2019,7,22962,G4575,CORPORATE PROPERTY SERVICES,D1822,CONTRACT CATERING
GUILDFORD BOROUGH COUNCIL,PARKS & COUNTRYSIDE,CHURCHILL CONTRACT CATERING LTD T/A RADISH,44233,15-Oct-19,2084855,23.75,0,CONTRACT CATERING,OUTSOURCED CATERERS,Invoice,BACS,None,31-Aug-19,2019,7,22962,A1900,PARKS MANAGEMENT AND ADMIN,D1822,CONTRACT CATERING
GUILDFORD BOROUGH COUNCIL,INCOME COLLECTION,CHURCHILL CONTRACT CATERING LTD T/A RADISH,44233,15-Oct-19,2084855,3.1,0,CONTRACT CATERING,OUTSOURCED CATERERS,Invoice,BACS,None,31-Aug-19,2019,7,22962,M1121,INCOME COLLECTION (BHS),D1822,CONTRACT CATERING
GUILDFORD BOROUGH COUNCIL,EQUITY SHARE ADMINISTRATION,CLARKE GAMMON WELLERS,15029,31-Oct-19,2085109,300,0,VALUERS FEES,PROPERTY LETTING AND ESTATE AGENTS,Invoice,BACS,None,08-Oct-19,2019,7,14365,M1181,SALE OF COUNCIL HOUSES (BHS),D4493,VALUERS FEES
GUILDFORD BOROUGH COUNCIL,GRANTS,COLWEND HYGIENE SERVICE,58176,01-Oct-19,2082965,280,0,GRANTS TO PRIVATE OWNERS,OTHER CLEANING AND JANITORIAL SERVICE PROVIDERS,Invoice,BACS,None,24-Sep-19,2019,7,1282,N51024,BCF - PREVENTION GRANT,1311,GRANTS TO PRIVATE OWNERS
GUILDFORD BOROUGH COUNCIL,WOKING ROAD DEPOT,CLUSKEYS CCP LTD,1160,03-Oct-19,2083122,19.96,0,FOOD PURCHASES,CLEANING AND JANITORIAL EQUIPMENT AND SUPPLIES PROVIDERS,Invoice,BACS,None,26-Sep-19,2019,7,55956,B4452,WOKING ROAD DEPOT,D1832,FOOD PURCHASES
GUILDFORD BOROUGH COUNCIL,STREET CLEANSING,CLUSKEYS CCP LTD,1160,03-Oct-19,2080279,60.5,0,NEW / REPLACE EQUIP. & TOOLS;,CLEANING AND JANITORIAL EQUIPMENT AND SUPPLIES PROVIDERS,Invoice,BACS,None,09-Sep-19,2019,7,55521,K4551,STREET CLEANSING,D1428,NEW / REPLACE EQUIP. & TOOLS;
GUILDFORD BOROUGH COUNCIL,PUBLIC CONVENIENCES,CLUSKEYS CCP LTD,1160,08-Oct-19,2078504,108.54,0,TOILET REQUISITES,CLEANING AND JANITORIAL EQUIPMENT AND SUPPLIES PROVIDERS,Invoice,BACS,None,23-Aug-19,2019,7,55058,K6545,PUBLIC CONVENIENCES,B6276,TOILET REQUISITES
GUILDFORD BOROUGH COUNCIL,RESPONSIVE & PLANNED MAINTENAN,CLEARWAY ENVIRONMENTAL SERVICES (UK) LTD,44277,17-Oct-19,2085472,140,0,SECURITY FENCING,OTHER WASTE DISPOSAL SUPPLIERS,Invoice,BACS,None,30-Sep-19,2019,7,431067,M5115,REPAIRS-OTHER REPONSIVE (BHS),B9797,SECURITY FENCING
GUILDFORD BOROUGH COUNCIL,RESPONSIVE & PLANNED MAINTENAN,CLEARWAY ENVIRONMENTAL SERVICES (UK) LTD,44277,17-Oct-19,2085474,108,0,GLAZING; ALL TYPES,OTHER WASTE DISPOSAL SUPPLIERS,Invoice,BACS,None,30-Sep-19,2019,7,431741,M5113,REPAIRS-RESPONSIVE (BHS),B1347,GLAZING; ALL TYPES
GUILDFORD BOROUGH COUNCIL,GYPSY AND TRAVELLER SITES,CLEARWAY ENVIRONMENTAL SERVICES (UK) LTD,44277,24-Oct-19,2086636,485,0,MECHANICAL/ELECTRICAL MNTCE AG,OTHER WASTE DISPOSAL SUPPLIERS,Invoice,BACS,None,30-Sep-19,2019,7,430604,C1511,ASH BRIDGE CARAVAN SITE,B1221,MECHANICAL/ELECTRICAL MNTCE AG
GUILDFORD BOROUGH COUNCIL,RESPONSIVE & PLANNED MAINTENAN,CLEARWAY ENVIRONMENTAL SERVICES (UK) LTD,44277,17-Oct-19,2085473,68,0,SECURITY FENCING,OTHER WASTE DISPOSAL SUPPLIERS,Invoice,BACS,None,30-Sep-19,2019,7,430821,M5115,REPAIRS-OTHER REPONSIVE (BHS),B9797,SECURITY FENCING
GUILDFORD BOROUGH COUNCIL,EQUITY SHARE ADMINISTRATION,CLARKE GAMMON WELLERS,15029,22-Oct-19,2086263,300,0,VALUERS FEES,PROPERTY LETTING AND ESTATE AGENTS,Invoice,BACS,None,18-Sep-19,2019,7,14352,M1182,EQUITY SHARE ADMIN (BHS),D4493,VALUERS FEES
GUILDFORD BOROUGH COUNCIL,EQUITY SHARE ADMINISTRATION,CLARKE GAMMON WELLERS,15029,22-Oct-19,2086258,285,0,VALUERS FEES,PROPERTY LETTING AND ESTATE AGENTS,Invoice,BACS,None,30-Sep-19,2019,7,14363,M1182,EQUITY SHARE ADMIN (BHS),D4493,VALUERS FEES
GUILDFORD BOROUGH COUNCIL,BUILDING MAINTENANCE,CINNAMON CONSTRUCTION LIMITED,92186,31-Oct-19,2087783,200,0,PAYMENT TO CONTRACTORS,GENERAL BUILDERS,Invoice,BACS,None,28-Oct-19,2019,7,6,K1515,BUILDING MAINTENANCE,D4468,PAYMENT TO CONTRACTORS
GUILDFORD BOROUGH COUNCIL,CORPORATE PROPERTY SERVICES,CLARKE GAMMON WELLERS,15029,08-Oct-19,2062820,500,0,VALUERS FEES,PROPERTY LETTING AND ESTATE AGENTS,Invoice,BACS,None,20-May-19,2019,7,14270,G4575,CORPORATE PROPERTY SERVICES,D4493,VALUERS FEES
GUILDFORD BOROUGH COUNCIL,PEST CONTROL,CHURCHILL CONTRACT CATERING LTD T/A RADISH,44233,15-Oct-19,2084855,14,0,CONTRACT CATERING,OUTSOURCED CATERERS,Invoice,BACS,None,31-Aug-19,2019,7,22962,C1121,PEST CONTROL,D1822,CONTRACT CATERING
GUILDFORD BOROUGH COUNCIL,EQUITY SHARE ADMINISTRATION,CLARKE GAMMON WELLERS,15029,22-Oct-19,2086261,285,0,VALUERS FEES,PROPERTY LETTING AND ESTATE AGENTS,Invoice,BACS,None,04-Sep-19,2019,7,14340,M1181,SALE OF COUNCIL HOUSES (BHS),D4493,VALUERS FEES
GUILDFORD BOROUGH COUNCIL,EQUITY SHARE ADMINISTRATION,CLARKE GAMMON WELLERS,15029,22-Oct-19,2086260,285,0,VALUERS FEES,PROPERTY LETTING AND ESTATE AGENTS,Invoice,BACS,None,09-Sep-19,2019,7,14344,M1181,SALE OF COUNCIL HOUSES (BHS),D4493,VALUERS FEES
GUILDFORD BOROUGH COUNCIL,HOMELESSNESS,CIVICA UK LTD,9631,15-Oct-19,2082246,1181.11,0,COMPUTER SOFTWARE; NEW SYSTEMS,COMPUTER SYSTEMS INTEGRATORS,Invoice,BACS,None,19-Sep-19,2019,7,M/HB065413,C3314,HOMELESSNESS PREVENTION STRAT,D5447,COMPUTER SOFTWARE; NEW SYSTEMS
GUILDFORD BOROUGH COUNCIL,COUNCIL TAX,CIVICA UK LTD,9631,08-Oct-19,2082325,1213.69,0,COMPUTER SOFTWARE LICENCE COST,COMPUTER SYSTEMS INTEGRATORS,Invoice,BACS,None,20-Sep-19,2019,7,M/RB065524,C4520,LOCAL COUNCIL TAX SCHEME,D5445,COMPUTER SOFTWARE LICENCE COST
GUILDFORD BOROUGH COUNCIL,GRANTS TO VOLUNTARY ORGS: H&C,CITIZENS ADVICE GUILDFORD,41150,17-Oct-19,2084973,5000,0,VOL ASSOC GRANT - PARTNERS,COUNSELLING SERVICE PROVIDERS,Invoice,BACS,None,03-Oct-19,2019,7,1037,C3111,COMMUNITY GRANT SCHEME,D7487,VOL ASSOC GRANT - PARTNERS
GUILDFORD BOROUGH COUNCIL,GRANTS TO VOLUNTARY ORGS: H&C,CITIZENS ADVICE GUILDFORD,41150,17-Oct-19,2084972,5000,0,VOL ASSOC GRANT - PARTNERS,COUNSELLING SERVICE PROVIDERS,Invoice,BACS,None,03-Oct-19,2019,7,1038,C3111,COMMUNITY GRANT SCHEME,D7487,VOL ASSOC GRANT - PARTNERS
GUILDFORD BOROUGH COUNCIL,CORPORATE PROPERTY SERVICES,CIPFA BUSINESS LIMITED,2581,15-Oct-19,2084134,375,0,TRAINING,PROFESSIONAL ASSOCIATIONS,Invoice,BACS,None,26-Sep-19,2019,7,3146383,G4575,CORPORATE PROPERTY SERVICES,A7161,TRAINING
GUILDFORD BOROUGH COUNCIL,CORPORATE PROPERTY SERVICES,CIPFA BUSINESS LIMITED,2581,31-Oct-19,2087429,10820,0,COMPUTER SOFTWARE LICENCE COST,PROFESSIONAL ASSOCIATIONS,Invoice,BACS,None,01-Oct-19,2019,7,3146548,F1171,ASSET REGISTER,D5445,COMPUTER SOFTWARE LICENCE COST
GUILDFORD BOROUGH COUNCIL,BUILDING MAINTENANCE,CINNAMON CONSTRUCTION LIMITED,92186,15-Oct-19,2085113,5896,0,PAYMENT TO CONTRACTORS,GENERAL BUILDERS,Invoice,BACS,None,08-Oct-19,2019,7,23,K1515,BUILDING MAINTENANCE,D4468,PAYMENT TO CONTRACTORS
GUILDFORD BOROUGH COUNCIL,BUILDING MAINTENANCE,CINNAMON CONSTRUCTION LIMITED,92186,24-Oct-19,2086753,4430.75,0,PAYMENT TO CONTRACTORS,GENERAL BUILDERS,Invoice,BACS,None,14-Oct-19,2019,7,24,K1515,BUILDING MAINTENANCE,D4468,PAYMENT TO CONTRACTORS
GUILDFORD BOROUGH COUNCIL,BUILDING MAINTENANCE,CINNAMON CONSTRUCTION LIMITED,92186,31-Oct-19,2087781,3362.25,0,PAYMENT TO CONTRACTORS,GENERAL BUILDERS,Invoice,BACS,None,28-Oct-19,2019,7,26,K1515,BUILDING MAINTENANCE,D4468,PAYMENT TO CONTRACTORS
GUILDFORD BOROUGH COUNCIL,STRATEGIC SUPPORT,CLARKE GAMMON WELLERS,15029,22-Oct-19,2086257,750,0,VALUERS FEES,PROPERTY LETTING AND ESTATE AGENTS,Invoice,BACS,None,30-Sep-19,2019,7,14362,M8121,STRATEGIC SUPPORT (SHS),D4493,VALUERS FEES
GUILDFORD BOROUGH COUNCIL,MUSEUM,CHUBB FIRE & SECURITY LTD,18602,03-Oct-19,2083298,222.65,0,MECHANICAL/ELECTRICAL MNTCE AG,FIRE FIGHTING AND RESCUE EQUIPMENT SUPPLIERS,Invoice,BACS,None,06-Sep-19,2019,7,7772777,A5511,MUSEUM,B1221,MECHANICAL/ELECTRICAL MNTCE AG
GUILDFORD BOROUGH COUNCIL,CEMETERIES,CHUBB FIRE & SECURITY LTD,18602,03-Oct-19,2083298,279.43,0,MECHANICAL/ELECTRICAL MNTCE AG,FIRE FIGHTING AND RESCUE EQUIPMENT SUPPLIERS,Invoice,BACS,None,06-Sep-19,2019,7,7772777,A1430,STOKE CEMETERY,B1221,MECHANICAL/ELECTRICAL MNTCE AG
GUILDFORD BOROUGH COUNCIL,PARKS & COUNTRYSIDE,CHUBB FIRE & SECURITY LTD,18602,03-Oct-19,2083298,1732.5,0,MECHANICAL/ELECTRICAL MNTCE AG,FIRE FIGHTING AND RESCUE EQUIPMENT SUPPLIERS,Invoice,BACS,None,06-Sep-19,2019,7,7772777,A1600,STOKE NURSERY DEPOT,B1221,MECHANICAL/ELECTRICAL MNTCE AG
GUILDFORD BOROUGH COUNCIL,WOKING ROAD DEPOT,CHUBB FIRE & SECURITY LTD,18602,03-Oct-19,2083298,491.71,0,FIRE ALARMS  - SERVICE,FIRE FIGHTING AND RESCUE EQUIPMENT SUPPLIERS,Invoice,BACS,None,06-Sep-19,2019,7,7772777,B4452,WOKING ROAD DEPOT,B1339,FIRE ALARMS  - SERVICE
GUILDFORD BOROUGH COUNCIL,Other Property,CHUBB FIRE & SECURITY LTD,18602,03-Oct-19,2083298,203.5,0,R&M MECHANICAL & ELECTRICAL HS,FIRE FIGHTING AND RESCUE EQUIPMENT SUPPLIERS,Invoice,BACS,None,06-Sep-19,2019,7,7772777,B6550,"MULTIPLEX CINEMA, BEDFORD ROAD",B1228,R&M MECHANICAL & ELECTRICAL HS
GUILDFORD BOROUGH COUNCIL,GUILDFORD HOUSE,CHUBB FIRE & SECURITY LTD,18602,03-Oct-19,2083298,343.5,0,MECHANICAL/ELECTRICAL MNTCE AG,FIRE FIGHTING AND RESCUE EQUIPMENT SUPPLIERS,Invoice,BACS,None,06-Sep-19,2019,7,7772777,A4511,GUILDFORD HOUSE ADMINISTRATION,B1221,MECHANICAL/ELECTRICAL MNTCE AG
GUILDFORD BOROUGH COUNCIL,OFFICE SERVICES TEAM,CHUBB FIRE & SECURITY LTD,18602,03-Oct-19,2083298,207.15,0,MECHANICAL/ELECTRICAL MNTCE AG,FIRE FIGHTING AND RESCUE EQUIPMENT SUPPLIERS,Invoice,BACS,None,06-Sep-19,2019,7,7772777,G7511,MILLMEAD HOUSE,B1221,MECHANICAL/ELECTRICAL MNTCE AG
GUILDFORD BOROUGH COUNCIL,OFFICE SERVICES TEAM,CHUBB FIRE & SECURITY LTD,18602,03-Oct-19,2083298,299,0,MECHANICAL/ELECTRICAL MNTCE AG,FIRE FIGHTING AND RESCUE EQUIPMENT SUPPLIERS,Invoice,BACS,None,06-Sep-19,2019,7,7772777,G7511,MILLMEAD HOUSE,B1221,MECHANICAL/ELECTRICAL MNTCE AG
GUILDFORD BOROUGH COUNCIL,OFFICE SERVICES TEAM,CHUBB FIRE & SECURITY LTD,18602,03-Oct-19,2083298,741.77,0,MECHANICAL/ELECTRICAL MNTCE AG,FIRE FIGHTING AND RESCUE EQUIPMENT SUPPLIERS,Invoice,BACS,None,06-Sep-19,2019,7,7772777,G7511,MILLMEAD HOUSE,B1221,MECHANICAL/ELECTRICAL MNTCE AG
GUILDFORD BOROUGH COUNCIL,PARKS & COUNTRYSIDE,CHUBB FIRE & SECURITY LTD,18602,24-Oct-19,2086622,292.26,0,MECHANICAL/ELECTRICAL MNTCE AG,FIRE FIGHTING AND RESCUE EQUIPMENT SUPPLIERS,Invoice,BACS,None,13-Nov-18,2019,7,7260730,A1600,STOKE NURSERY DEPOT,B1221,MECHANICAL/ELECTRICAL MNTCE AG
GUILDFORD BOROUGH COUNCIL,DAY SERVICES,CHUBB FIRE & SECURITY LTD,18602,03-Oct-19,2083298,390.95,0,MECHANICAL/ELECTRICAL MNTCE AG,FIRE FIGHTING AND RESCUE EQUIPMENT SUPPLIERS,Invoice,BACS,None,06-Sep-19,2019,7,7772777,C8188,WEST HUB SHAWFIELD,B1221,MECHANICAL/ELECTRICAL MNTCE AG
GUILDFORD BOROUGH COUNCIL,OFFICE SERVICES TEAM,CHURCHILL CONTRACT CATERING LTD T/A RADISH,44233,15-Oct-19,2084855,65.65,0,CONTRACT CATERING,OUTSOURCED CATERERS,Invoice,BACS,None,31-Aug-19,2019,7,22962,G7522,COMMUNITY FOUNDATION OF SURREY,D1822,CONTRACT CATERING
GUILDFORD BOROUGH COUNCIL,PARKS & COUNTRYSIDE,CHUBB FIRE & SECURITY LTD,18602,03-Oct-19,2083298,284.5,0,MECHANICAL/ELECTRICAL MNTCE AG,FIRE FIGHTING AND RESCUE EQUIPMENT SUPPLIERS,Invoice,BACS,None,06-Sep-19,2019,7,7772777,A1600,STOKE NURSERY DEPOT,B1221,MECHANICAL/ELECTRICAL MNTCE AG
GUILDFORD BOROUGH COUNCIL,OFFICE SERVICES TEAM,CHUBB FIRE & SECURITY LTD,18602,03-Oct-19,2083298,1292.49,0,MECHANICAL/ELECTRICAL MNTCE AG,FIRE FIGHTING AND RESCUE EQUIPMENT SUPPLIERS,Invoice,BACS,None,06-Sep-19,2019,7,7772777,G7511,MILLMEAD HOUSE,B1221,MECHANICAL/ELECTRICAL MNTCE AG
GUILDFORD BOROUGH COUNCIL,GUILDHALL,CHUBB FIRE & SECURITY LTD,18602,03-Oct-19,2083298,1027.46,0,MECHANICAL/ELECTRICAL MNTCE AG,FIRE FIGHTING AND RESCUE EQUIPMENT SUPPLIERS,Invoice,BACS,None,06-Sep-19,2019,7,7772777,F3311,GUILDHALL,B1221,MECHANICAL/ELECTRICAL MNTCE AG
GUILDFORD BOROUGH COUNCIL,WOKING ROAD DEPOT,CHUBB FIRE & SECURITY LTD,18602,03-Oct-19,2083298,534.2,0,FIRE ALARMS  - SERVICE,FIRE FIGHTING AND RESCUE EQUIPMENT SUPPLIERS,Invoice,BACS,None,06-Sep-19,2019,7,7772777,B4452,WOKING ROAD DEPOT,B1339,FIRE ALARMS  - SERVICE
GUILDFORD BOROUGH COUNCIL,WOKING ROAD DEPOT,CHUBB FIRE & SECURITY LTD,18602,03-Oct-19,2083298,555.89,0,FIRE ALARMS  - SERVICE,FIRE FIGHTING AND RESCUE EQUIPMENT SUPPLIERS,Invoice,BACS,None,06-Sep-19,2019,7,7772777,B4452,WOKING ROAD DEPOT,B1339,FIRE ALARMS  - SERVICE
GUILDFORD BOROUGH COUNCIL,DAY SERVICES,CHUBB FIRE & SECURITY LTD,18602,03-Oct-19,2083298,278.5,0,MECHANICAL/ELECTRICAL MNTCE AG,FIRE FIGHTING AND RESCUE EQUIPMENT SUPPLIERS,Invoice,BACS,None,06-Sep-19,2019,7,7772777,C8189,CENTRAL HUB PARK BARN,B1221,MECHANICAL/ELECTRICAL MNTCE AG
GUILDFORD BOROUGH COUNCIL,MUSEUM,CHUBB FIRE & SECURITY LTD,18602,03-Oct-19,2083298,383.5,0,MECHANICAL/ELECTRICAL MNTCE AG,FIRE FIGHTING AND RESCUE EQUIPMENT SUPPLIERS,Invoice,BACS,None,06-Sep-19,2019,7,7772777,A5511,MUSEUM,B1221,MECHANICAL/ELECTRICAL MNTCE AG
GUILDFORD BOROUGH COUNCIL,PRIVATE SECTOR HOUSING,CHRIS CORY-WRIGHT,95150,15-Oct-19,2084892,195,0,PAYMENT TO CONTRACTORS,PROPERTY MAINTENANCE CONTRACTORS,Invoice,BACS,None,30-Sep-19,2019,7,26A,C5136,HANDYPERSON SERVICE,D4468,PAYMENT TO CONTRACTORS
GUILDFORD BOROUGH COUNCIL,PRIVATE SECTOR HOUSING,CHRIS CORY-WRIGHT,95150,08-Oct-19,2082820,94,0,PAYMENT TO CONTRACTORS,PROPERTY MAINTENANCE CONTRACTORS,Invoice,BACS,None,23-Sep-19,2019,7,24A,C5136,HANDYPERSON SERVICE,D4468,PAYMENT TO CONTRACTORS
GUILDFORD BOROUGH COUNCIL,PRIVATE SECTOR HOUSING,CHRIS CORY-WRIGHT,95150,15-Oct-19,2080456,129.42,0,PAYMENT TO CONTRACTORS,PROPERTY MAINTENANCE CONTRACTORS,Invoice,BACS,None,02-Sep-19,2019,7,22A,C5136,HANDYPERSON SERVICE,D4468,PAYMENT TO CONTRACTORS
GUILDFORD BOROUGH COUNCIL,PRIVATE SECTOR HOUSING,CHRIS CORY-WRIGHT,95150,29-Oct-19,2086859,140,0,PAYMENT TO CONTRACTORS,PROPERTY MAINTENANCE CONTRACTORS,Invoice,BACS,None,18-Oct-19,2019,7,28A,C5136,HANDYPERSON SERVICE,D4468,PAYMENT TO CONTRACTORS
GUILDFORD BOROUGH COUNCIL,PRIVATE SECTOR HOUSING,CHRIS CORY-WRIGHT,95150,10-Oct-19,2084007,127,0,PAYMENT TO CONTRACTORS,PROPERTY MAINTENANCE CONTRACTORS,Invoice,BACS,None,30-Sep-19,2019,7,25A,C5136,HANDYPERSON SERVICE,D4468,PAYMENT TO CONTRACTORS
GUILDFORD BOROUGH COUNCIL,GRANTS TO VOLUNTARY ORGS: H&C,CHIPS (GUILDFORD),17517,08-Oct-19,2082262,15000,0,GENERAL GRANTS,"YOUTH CLUBS, HOSTELS AND ASSOCIATIONS",Invoice,BACS,None,19-Sep-19,2019,7,005/19-0-2019,C3111,COMMUNITY GRANT SCHEME,D7441,GENERAL GRANTS
GUILDFORD BOROUGH COUNCIL,PARKS & COUNTRYSIDE,CHUBB FIRE & SECURITY LTD,18602,03-Oct-19,2083298,355.58,0,MECHANICAL/ELECTRICAL MNTCE AG,FIRE FIGHTING AND RESCUE EQUIPMENT SUPPLIERS,Invoice,BACS,None,06-Sep-19,2019,7,7772777,A1250,STOKE PARK,B1221,MECHANICAL/ELECTRICAL MNTCE AG
GUILDFORD BOROUGH COUNCIL,PARKS & COUNTRYSIDE,CHUBB FIRE & SECURITY LTD,18602,03-Oct-19,2083298,346.49,0,MECHANICAL/ELECTRICAL MNTCE AG,FIRE FIGHTING AND RESCUE EQUIPMENT SUPPLIERS,Invoice,BACS,None,06-Sep-19,2019,7,7772777,A1600,STOKE NURSERY DEPOT,B1221,MECHANICAL/ELECTRICAL MNTCE AG
GUILDFORD BOROUGH COUNCIL,STREET CLEANSING,COMENSURA LTD,32435,03-Oct-19,2083312,417.36,0,AGENCY STAFF,OTHER RECRUITMENT AGENCIES AND SERVICE PROVIDERS,Invoice,BACS,None,01-Oct-19,2019,7,1033170,K4551,STREET CLEANSING,A5191,AGENCY STAFF
GUILDFORD BOROUGH COUNCIL,CORP SERVICES,CHURCHILL CONTRACT CATERING LTD T/A RADISH,44233,15-Oct-19,2084855,218.3,0,CONTRACT CATERING,OUTSOURCED CATERERS,Invoice,BACS,None,31-Aug-19,2019,7,22962,F1111,CORPORATE SERVICES,D1822,CONTRACT CATERING
GUILDFORD BOROUGH COUNCIL,CORPORATE HEALTH & SAFETY,CHURCHILL CONTRACT CATERING LTD T/A RADISH,44233,15-Oct-19,2084855,18.6,0,CONTRACT CATERING,OUTSOURCED CATERERS,Invoice,BACS,None,31-Aug-19,2019,7,22962,G2525,CORPORATE HEALTH & SAFETY,D1822,CONTRACT CATERING
GUILDFORD BOROUGH COUNCIL,OFFICE SERVICES TEAM,CHURCHILL CONTRACT CATERING LTD T/A RADISH,44233,15-Oct-19,2084855,2.8,0,CONTRACT CATERING,OUTSOURCED CATERERS,Invoice,BACS,None,31-Aug-19,2019,7,22962,G4545,REPROGRAPHICS UNIT,D1822,CONTRACT CATERING
GUILDFORD BOROUGH COUNCIL,OFFICE SERVICES TEAM,CHURCHILL CONTRACT CATERING LTD T/A RADISH,44233,15-Oct-19,2084855,19.35,0,CONTRACT CATERING,OUTSOURCED CATERERS,Invoice,BACS,None,31-Aug-19,2019,7,22962,G7523,HEALTHWATCH SURREY,D1822,CONTRACT CATERING
GUILDFORD BOROUGH COUNCIL,DEVELOPMENT CONTROL,CHURCHILL CONTRACT CATERING LTD T/A RADISH,44233,15-Oct-19,2084855,1,0,CONTRACT CATERING,OUTSOURCED CATERERS,Invoice,BACS,None,31-Aug-19,2019,7,22962,D5100,DEVELOPMENT CONTROL - FEE EARN,D1822,CONTRACT CATERING
GUILDFORD BOROUGH COUNCIL,DEMOCRATIC REPRESENTATION,CHURCHILL CONTRACT CATERING LTD T/A RADISH,44233,15-Oct-19,2084855,374.85,0,CONTRACT CATERING,OUTSOURCED CATERERS,Invoice,BACS,None,31-Aug-19,2019,7,22962,F2121,COUNCILLOR SERVICES,D1822,CONTRACT CATERING
GUILDFORD BOROUGH COUNCIL,CUSTOMER SERVICE CENTRE,CHURCHILL CONTRACT CATERING LTD T/A RADISH,44233,15-Oct-19,2084855,11.55,0,CONTRACT CATERING,OUTSOURCED CATERERS,Invoice,BACS,None,31-Aug-19,2019,7,22962,G3544,CUSTOMER SERVICE CENTRE,D1822,CONTRACT CATERING
GUILDFORD BOROUGH COUNCIL,OPERATIONS TECHNICAL SERVICES,CHURCHILL CONTRACT CATERING LTD T/A RADISH,44233,15-Oct-19,2084855,6.85,0,CONTRACT CATERING,OUTSOURCED CATERERS,Invoice,BACS,None,31-Aug-19,2019,7,22962,G3548,ICT TECHNICAL & INFRASTRUCTURE,D1822,CONTRACT CATERING
GUILDFORD BOROUGH COUNCIL,LEISURE GRANTS,CHURCHILL CONTRACT CATERING LTD T/A RADISH,44233,15-Oct-19,2084855,18.6,0,BOOK FESTIVAL GRANT,OUTSOURCED CATERERS,Invoice,BACS,None,31-Aug-19,2019,7,22962,A4121,RECREATIONAL GRANTS,D7415,BOOK FESTIVAL GRANT
GUILDFORD BOROUGH COUNCIL,LEISURE MANAGEMENT CONTRACT,CHURCHILL CONTRACT CATERING LTD T/A RADISH,44233,15-Oct-19,2084855,8.5,0,CONTRACT CATERING,OUTSOURCED CATERERS,Invoice,BACS,None,31-Aug-19,2019,7,22962,A7540,SPECTRUM CLIENT,D1822,CONTRACT CATERING
GUILDFORD BOROUGH COUNCIL,WOKING ROAD DEPOT,CHUBB FIRE & SECURITY LTD,18602,08-Oct-19,2083411,40,0,R&M - GENERAL,FIRE FIGHTING AND RESCUE EQUIPMENT SUPPLIERS,Invoice,BACS,None,27-Sep-19,2019,7,7817218,B4452,WOKING ROAD DEPOT,B1231,R&M - GENERAL
GUILDFORD BOROUGH COUNCIL,STRATEGIC SUPPORT,CHURCHILL CONTRACT CATERING LTD T/A RADISH,44233,15-Oct-19,2084855,6.2,0,CONTRACT CATERING,OUTSOURCED CATERERS,Invoice,BACS,None,31-Aug-19,2019,7,22962,M8121,STRATEGIC SUPPORT (SHS),D1822,CONTRACT CATERING
GUILDFORD BOROUGH COUNCIL,MUSEUM,CHUBB FIRE & SECURITY LTD,18602,03-Oct-19,2083298,96.39,0,MECHANICAL/ELECTRICAL MNTCE AG,FIRE FIGHTING AND RESCUE EQUIPMENT SUPPLIERS,Invoice,BACS,None,06-Sep-19,2019,7,7772777,A5511,MUSEUM,B1221,MECHANICAL/ELECTRICAL MNTCE AG
GUILDFORD BOROUGH COUNCIL,PARKS & COUNTRYSIDE,CHUBB FIRE & SECURITY LTD,18602,03-Oct-19,2083298,669.93,0,MECHANICAL/ELECTRICAL MNTCE AG,FIRE FIGHTING AND RESCUE EQUIPMENT SUPPLIERS,Invoice,BACS,None,06-Sep-19,2019,7,7772777,A1600,STOKE NURSERY DEPOT,B1221,MECHANICAL/ELECTRICAL MNTCE AG
GUILDFORD BOROUGH COUNCIL,WOKING ROAD DEPOT,CHUBB FIRE & SECURITY LTD,18602,03-Oct-19,2083298,151.7,0,FIRE ALARMS  - SERVICE,FIRE FIGHTING AND RESCUE EQUIPMENT SUPPLIERS,Invoice,BACS,None,06-Sep-19,2019,7,7772777,B4452,WOKING ROAD DEPOT,B1339,FIRE ALARMS  - SERVICE
GUILDFORD BOROUGH COUNCIL,WOKING ROAD DEPOT,CHUBB FIRE & SECURITY LTD,18602,03-Oct-19,2083298,174.06,0,FIRE ALARMS  - SERVICE,FIRE FIGHTING AND RESCUE EQUIPMENT SUPPLIERS,Invoice,BACS,None,06-Sep-19,2019,7,7772777,B4452,WOKING ROAD DEPOT,B1339,FIRE ALARMS  - SERVICE
GUILDFORD BOROUGH COUNCIL,WOKING ROAD DEPOT,CHUBB FIRE & SECURITY LTD,18602,03-Oct-19,2083298,239.08,0,FIRE ALARMS  - SERVICE,FIRE FIGHTING AND RESCUE EQUIPMENT SUPPLIERS,Invoice,BACS,None,06-Sep-19,2019,7,7772777,B4452,WOKING ROAD DEPOT,B1339,FIRE ALARMS  - SERVICE
GUILDFORD BOROUGH COUNCIL,PARKS & COUNTRYSIDE,CHUBB FIRE & SECURITY LTD,18602,03-Oct-19,2083298,112.27,0,MECHANICAL/ELECTRICAL MNTCE AG,FIRE FIGHTING AND RESCUE EQUIPMENT SUPPLIERS,Invoice,BACS,None,06-Sep-19,2019,7,7772777,A1600,STOKE NURSERY DEPOT,B1221,MECHANICAL/ELECTRICAL MNTCE AG
GUILDFORD BOROUGH COUNCIL,WOKING ROAD DEPOT,CHUBB FIRE & SECURITY LTD,18602,03-Oct-19,2083298,469.13,0,FIRE ALARMS  - SERVICE,FIRE FIGHTING AND RESCUE EQUIPMENT SUPPLIERS,Invoice,BACS,None,06-Sep-19,2019,7,7772777,B4452,WOKING ROAD DEPOT,B1339,FIRE ALARMS  - SERVICE
GUILDFORD BOROUGH COUNCIL,GUILDFORD HOUSE,CHUBB FIRE & SECURITY LTD,18602,03-Oct-19,2083298,397.5,0,MECHANICAL/ELECTRICAL MNTCE AG,FIRE FIGHTING AND RESCUE EQUIPMENT SUPPLIERS,Invoice,BACS,None,06-Sep-19,2019,7,7772777,A4511,GUILDFORD HOUSE ADMINISTRATION,B1221,MECHANICAL/ELECTRICAL MNTCE AG
GUILDFORD BOROUGH COUNCIL,MUSEUM,CHUBB FIRE & SECURITY LTD,18602,03-Oct-19,2083298,414.5,0,MECHANICAL/ELECTRICAL MNTCE AG,FIRE FIGHTING AND RESCUE EQUIPMENT SUPPLIERS,Invoice,BACS,None,06-Sep-19,2019,7,7772777,A5551,WANBOROUGH BARNS,B1221,MECHANICAL/ELECTRICAL MNTCE AG
GUILDFORD BOROUGH COUNCIL,LEISURE COMMUNITY CENTRES,CHUBB FIRE & SECURITY LTD,18602,03-Oct-19,2083298,299.08,0,MECHANICAL/ELECTRICAL MNTCE AG,FIRE FIGHTING AND RESCUE EQUIPMENT SUPPLIERS,Invoice,BACS,None,06-Sep-19,2019,7,7772777,A8121,BELLFIELDS YOUTH & COMMUNITY C,B1221,MECHANICAL/ELECTRICAL MNTCE AG
GUILDFORD BOROUGH COUNCIL,PARKS & COUNTRYSIDE,CHUBB FIRE & SECURITY LTD,18602,03-Oct-19,2083298,363.94,0,MECHANICAL/ELECTRICAL MNTCE AG,FIRE FIGHTING AND RESCUE EQUIPMENT SUPPLIERS,Invoice,BACS,None,06-Sep-19,2019,7,7772777,A1600,STOKE NURSERY DEPOT,B1221,MECHANICAL/ELECTRICAL MNTCE AG
GUILDFORD BOROUGH COUNCIL,TENANT SELECTION,CHURCHILL CONTRACT CATERING LTD T/A RADISH,44233,15-Oct-19,2084855,18.85,0,CONTRACT CATERING,OUTSOURCED CATERERS,Invoice,BACS,None,31-Aug-19,2019,7,22962,M1131,"ADVICE,REGS,TENANT SELECT(SHS)",D1822,CONTRACT CATERING
GUILDFORD BOROUGH COUNCIL,COMMUNITY DEVELOPMENT,CHURCHILL CONTRACT CATERING LTD T/A RADISH,44233,15-Oct-19,2084855,6.2,0,CONTRACT CATERING,OUTSOURCED CATERERS,Invoice,BACS,None,31-Aug-19,2019,7,22962,F1127,COMMUNITY DEVELOPMENT,D1822,CONTRACT CATERING
GUILDFORD BOROUGH COUNCIL,STREET CLEANSING,COMENSURA LTD,32435,03-Oct-19,2083312,-1.52,0,AGENCY STAFF,OTHER RECRUITMENT AGENCIES AND SERVICE PROVIDERS,Invoice,BACS,None,01-Oct-19,2019,7,1033170,K4551,STREET CLEANSING,A5191,AGENCY STAFF
GUILDFORD BOROUGH COUNCIL,REFUSE AND RECYCLING,COMENSURA LTD,32435,31-Oct-19,2087717,564.71,0,AGENCY STAFF,OTHER RECRUITMENT AGENCIES AND SERVICE PROVIDERS,Invoice,BACS,None,29-Oct-19,2019,7,1034565,B7766,KERBSIDE RECYCLING,A5191,AGENCY STAFF
GUILDFORD BOROUGH COUNCIL,DEVELOPMENT CONTROL,COMENSURA LTD,32435,31-Oct-19,2087717,463.76,0,AGENCY STAFF,OTHER RECRUITMENT AGENCIES AND SERVICE PROVIDERS,Invoice,BACS,None,29-Oct-19,2019,7,1034565,D5200,DEVELOPMENT CONTROL NON FEE,A5191,AGENCY STAFF
GUILDFORD BOROUGH COUNCIL,STREET CLEANSING,COMENSURA LTD,32435,31-Oct-19,2087717,442.13,0,AGENCY STAFF,OTHER RECRUITMENT AGENCIES AND SERVICE PROVIDERS,Invoice,BACS,None,29-Oct-19,2019,7,1034565,K4551,STREET CLEANSING,A5191,AGENCY STAFF
GUILDFORD BOROUGH COUNCIL,STREET CLEANSING,COMENSURA LTD,32435,31-Oct-19,2087717,-1.48,0,AGENCY STAFF,OTHER RECRUITMENT AGENCIES AND SERVICE PROVIDERS,Invoice,BACS,None,29-Oct-19,2019,7,1034565,K4551,STREET CLEANSING,A5191,AGENCY STAFF
GUILDFORD BOROUGH COUNCIL,STREET CLEANSING,COMENSURA LTD,32435,31-Oct-19,2087717,560.18,0,AGENCY STAFF,OTHER RECRUITMENT AGENCIES AND SERVICE PROVIDERS,Invoice,BACS,None,29-Oct-19,2019,7,1034565,K4551,STREET CLEANSING,A5191,AGENCY STAFF
GUILDFORD BOROUGH COUNCIL,DEVELOPMENT CONTROL,COMENSURA LTD,32435,31-Oct-19,2087717,528.46,0,AGENCY STAFF,OTHER RECRUITMENT AGENCIES AND SERVICE PROVIDERS,Invoice,BACS,None,29-Oct-19,2019,7,1034565,D5100,DEVELOPMENT CONTROL - FEE EARN,A5191,AGENCY STAFF
GUILDFORD BOROUGH COUNCIL,REFUSE AND RECYCLING,COMENSURA LTD,32435,31-Oct-19,2087717,126.02,0,AGENCY STAFF,OTHER RECRUITMENT AGENCIES AND SERVICE PROVIDERS,Invoice,BACS,None,29-Oct-19,2019,7,1034565,B7744,GREEN WASTE,A5191,AGENCY STAFF
GUILDFORD BOROUGH COUNCIL,DEVELOPMENT CONTROL,COMENSURA LTD,32435,03-Oct-19,2083312,539.25,0,AGENCY STAFF,OTHER RECRUITMENT AGENCIES AND SERVICE PROVIDERS,Invoice,BACS,None,01-Oct-19,2019,7,1033170,D5100,DEVELOPMENT CONTROL - FEE EARN,A5191,AGENCY STAFF
GUILDFORD BOROUGH COUNCIL,REFUSE AND RECYCLING,COMENSURA LTD,32435,03-Oct-19,2083312,375.29,0,AGENCY STAFF,OTHER RECRUITMENT AGENCIES AND SERVICE PROVIDERS,Invoice,BACS,None,01-Oct-19,2019,7,1033170,B7744,GREEN WASTE,A5191,AGENCY STAFF
GUILDFORD BOROUGH COUNCIL,REFUSE AND RECYCLING,COMENSURA LTD,32435,03-Oct-19,2083312,226.88,0,AGENCY STAFF,OTHER RECRUITMENT AGENCIES AND SERVICE PROVIDERS,Invoice,BACS,None,01-Oct-19,2019,7,1033170,B7766,KERBSIDE RECYCLING,A5191,AGENCY STAFF
GUILDFORD BOROUGH COUNCIL,REFUSE AND RECYCLING,COMENSURA LTD,32435,17-Oct-19,2085497,163.56,0,AGENCY STAFF,OTHER RECRUITMENT AGENCIES AND SERVICE PROVIDERS,Invoice,BACS,None,15-Oct-19,2019,7,1033875,B7766,KERBSIDE RECYCLING,A5191,AGENCY STAFF
GUILDFORD BOROUGH COUNCIL,REFUSE AND RECYCLING,COMENSURA LTD,32435,03-Oct-19,2083312,332.76,0,AGENCY STAFF,OTHER RECRUITMENT AGENCIES AND SERVICE PROVIDERS,Invoice,BACS,None,01-Oct-19,2019,7,1033170,B7766,KERBSIDE RECYCLING,A5191,AGENCY STAFF
GUILDFORD BOROUGH COUNCIL,REFUSE AND RECYCLING,COMENSURA LTD,32435,10-Oct-19,2084581,559.51,0,AGENCY STAFF,OTHER RECRUITMENT AGENCIES AND SERVICE PROVIDERS,Invoice,BACS,None,08-Oct-19,2019,7,1033540,K3551,REFUSE COLLECTION,A5191,AGENCY STAFF
GUILDFORD BOROUGH COUNCIL,ENVIRONMENTAL CONTROL,COMENSURA LTD,32435,24-Oct-19,2086865,585.75,0,AGENCY STAFF,OTHER RECRUITMENT AGENCIES AND SERVICE PROVIDERS,Invoice,BACS,None,22-Oct-19,2019,7,1034221,C1113,ENVIRONMENTAL CONTROL,A5191,AGENCY STAFF
GUILDFORD BOROUGH COUNCIL,REFUSE AND RECYCLING,COMENSURA LTD,32435,24-Oct-19,2086865,106.15,0,AGENCY STAFF,OTHER RECRUITMENT AGENCIES AND SERVICE PROVIDERS,Invoice,BACS,None,22-Oct-19,2019,7,1034221,K3551,REFUSE COLLECTION,A5191,AGENCY STAFF
GUILDFORD BOROUGH COUNCIL,STREET CLEANSING,COMENSURA LTD,32435,24-Oct-19,2086865,419.12,0,AGENCY STAFF,OTHER RECRUITMENT AGENCIES AND SERVICE PROVIDERS,Invoice,BACS,None,22-Oct-19,2019,7,1034221,K4551,STREET CLEANSING,A5191,AGENCY STAFF
GUILDFORD BOROUGH COUNCIL,STREET CLEANSING,COMENSURA LTD,32435,24-Oct-19,2086865,773.88,0,AGENCY STAFF,OTHER RECRUITMENT AGENCIES AND SERVICE PROVIDERS,Invoice,BACS,None,22-Oct-19,2019,7,1034221,K4551,STREET CLEANSING,A5191,AGENCY STAFF
GUILDFORD BOROUGH COUNCIL,REFUSE AND RECYCLING,COMENSURA LTD,32435,24-Oct-19,2086865,504.68,0,AGENCY STAFF,OTHER RECRUITMENT AGENCIES AND SERVICE PROVIDERS,Invoice,BACS,None,22-Oct-19,2019,7,1034221,B7711,RECYCLING ADMINISTRATION,A5191,AGENCY STAFF
GUILDFORD BOROUGH COUNCIL,DEVELOPMENT CONTROL,COMENSURA LTD,32435,17-Oct-19,2085497,-1.11,0,AGENCY STAFF,OTHER RECRUITMENT AGENCIES AND SERVICE PROVIDERS,Invoice,BACS,None,15-Oct-19,2019,7,1033875,D5200,DEVELOPMENT CONTROL NON FEE,A5191,AGENCY STAFF
GUILDFORD BOROUGH COUNCIL,DEVELOPMENT CONTROL,COMENSURA LTD,32435,17-Oct-19,2085497,546.43,0,AGENCY STAFF,OTHER RECRUITMENT AGENCIES AND SERVICE PROVIDERS,Invoice,BACS,None,15-Oct-19,2019,7,1033875,D5100,DEVELOPMENT CONTROL - FEE EARN,A5191,AGENCY STAFF
GUILDFORD BOROUGH COUNCIL,REFUSE AND RECYCLING,COMENSURA LTD,32435,17-Oct-19,2085497,-1.72,0,AGENCY STAFF,OTHER RECRUITMENT AGENCIES AND SERVICE PROVIDERS,Invoice,BACS,None,15-Oct-19,2019,7,1033875,B7744,GREEN WASTE,A5191,AGENCY STAFF
GUILDFORD BOROUGH COUNCIL,DEVELOPMENT CONTROL,COMENSURA LTD,32435,17-Oct-19,2085497,501.72,0,AGENCY STAFF,OTHER RECRUITMENT AGENCIES AND SERVICE PROVIDERS,Invoice,BACS,None,15-Oct-19,2019,7,1033875,D5100,DEVELOPMENT CONTROL - FEE EARN,A5191,AGENCY STAFF
GUILDFORD BOROUGH COUNCIL,REFUSE AND RECYCLING,COMENSURA LTD,32435,17-Oct-19,2085497,450.4,0,AGENCY STAFF,OTHER RECRUITMENT AGENCIES AND SERVICE PROVIDERS,Invoice,BACS,None,15-Oct-19,2019,7,1033875,B7744,GREEN WASTE,A5191,AGENCY STAFF
GUILDFORD BOROUGH COUNCIL,LEGAL SERVICES,COMENSURA LTD,32435,03-Oct-19,2083312,399.36,0,AGENCY STAFF,OTHER RECRUITMENT AGENCIES AND SERVICE PROVIDERS,Invoice,BACS,None,01-Oct-19,2019,7,1033170,G4525,LEGAL SERVICES,A5191,AGENCY STAFF
GUILDFORD BOROUGH COUNCIL,REFUSE AND RECYCLING,COMENSURA LTD,32435,03-Oct-19,2083312,581.04,0,AGENCY STAFF,OTHER RECRUITMENT AGENCIES AND SERVICE PROVIDERS,Invoice,BACS,None,01-Oct-19,2019,7,1033170,B7766,KERBSIDE RECYCLING,A5191,AGENCY STAFF
GUILDFORD BOROUGH COUNCIL,STREET CLEANSING,COMENSURA LTD,32435,17-Oct-19,2085497,964.78,0,AGENCY STAFF,OTHER RECRUITMENT AGENCIES AND SERVICE PROVIDERS,Invoice,BACS,None,15-Oct-19,2019,7,1033875,K4551,STREET CLEANSING,A5191,AGENCY STAFF
GUILDFORD BOROUGH COUNCIL,STREET CLEANSING,COMENSURA LTD,32435,31-Oct-19,2087717,433.88,0,AGENCY STAFF,OTHER RECRUITMENT AGENCIES AND SERVICE PROVIDERS,Invoice,BACS,None,29-Oct-19,2019,7,1034565,K4551,STREET CLEANSING,A5191,AGENCY STAFF
GUILDFORD BOROUGH COUNCIL,REFUSE AND RECYCLING,COMENSURA LTD,32435,31-Oct-19,2087717,-0.28,0,AGENCY STAFF,OTHER RECRUITMENT AGENCIES AND SERVICE PROVIDERS,Invoice,BACS,None,29-Oct-19,2019,7,1034565,B7744,GREEN WASTE,A5191,AGENCY STAFF
GUILDFORD BOROUGH COUNCIL,REFUSE AND RECYCLING,COMENSURA LTD,32435,03-Oct-19,2083312,501.72,0,AGENCY STAFF,OTHER RECRUITMENT AGENCIES AND SERVICE PROVIDERS,Invoice,BACS,None,01-Oct-19,2019,7,1033170,B7711,RECYCLING ADMINISTRATION,A5191,AGENCY STAFF
GUILDFORD BOROUGH COUNCIL,DEVELOPMENT CONTROL,COMENSURA LTD,32435,03-Oct-19,2083312,-1.12,0,AGENCY STAFF,OTHER RECRUITMENT AGENCIES AND SERVICE PROVIDERS,Invoice,BACS,None,01-Oct-19,2019,7,1033170,D5100,DEVELOPMENT CONTROL - FEE EARN,A5191,AGENCY STAFF
GUILDFORD BOROUGH COUNCIL,REFUSE AND RECYCLING,COMENSURA LTD,32435,03-Oct-19,2083312,-1.72,0,AGENCY STAFF,OTHER RECRUITMENT AGENCIES AND SERVICE PROVIDERS,Invoice,BACS,None,01-Oct-19,2019,7,1033170,B7766,KERBSIDE RECYCLING,A5191,AGENCY STAFF
GUILDFORD BOROUGH COUNCIL,REFUSE AND RECYCLING,COMENSURA LTD,32435,03-Oct-19,2083312,226.88,0,AGENCY STAFF,OTHER RECRUITMENT AGENCIES AND SERVICE PROVIDERS,Invoice,BACS,None,01-Oct-19,2019,7,1033170,B7744,GREEN WASTE,A5191,AGENCY STAFF
GUILDFORD BOROUGH COUNCIL,REFUSE AND RECYCLING,COMENSURA LTD,32435,03-Oct-19,2083312,433.88,0,AGENCY STAFF,OTHER RECRUITMENT AGENCIES AND SERVICE PROVIDERS,Invoice,BACS,None,01-Oct-19,2019,7,1033170,B7766,KERBSIDE RECYCLING,A5191,AGENCY STAFF
GUILDFORD BOROUGH COUNCIL,DEVELOPMENT CONTROL,COMENSURA LTD,32435,03-Oct-19,2083312,501.72,0,AGENCY STAFF,OTHER RECRUITMENT AGENCIES AND SERVICE PROVIDERS,Invoice,BACS,None,01-Oct-19,2019,7,1033170,D5100,DEVELOPMENT CONTROL - FEE EARN,A5191,AGENCY STAFF
GUILDFORD BOROUGH COUNCIL,STREET CLEANSING,COMENSURA LTD,32435,03-Oct-19,2083312,-1.48,0,AGENCY STAFF,OTHER RECRUITMENT AGENCIES AND SERVICE PROVIDERS,Invoice,BACS,None,01-Oct-19,2019,7,1033170,K4551,STREET CLEANSING,A5191,AGENCY STAFF
GUILDFORD BOROUGH COUNCIL,REFUSE AND RECYCLING,COMENSURA LTD,32435,03-Oct-19,2083312,601.75,0,AGENCY STAFF,OTHER RECRUITMENT AGENCIES AND SERVICE PROVIDERS,Invoice,BACS,None,01-Oct-19,2019,7,1033170,B7766,KERBSIDE RECYCLING,A5191,AGENCY STAFF
GUILDFORD BOROUGH COUNCIL,BUILDING CONTROL SUMMARY,COMENSURA LTD,32435,03-Oct-19,2083312,305.1,0,AGENCY STAFF,OTHER RECRUITMENT AGENCIES AND SERVICE PROVIDERS,Invoice,BACS,None,01-Oct-19,2019,7,1033170,D5700,BUILDING CONTROL - FEE,A5191,AGENCY STAFF
GUILDFORD BOROUGH COUNCIL,POLICY,COMENSURA LTD,32435,10-Oct-19,2084581,-2.31,0,AGENCY STAFF,OTHER RECRUITMENT AGENCIES AND SERVICE PROVIDERS,Invoice,BACS,None,08-Oct-19,2019,7,1033540,D5300,POLICY,A5191,AGENCY STAFF
GUILDFORD BOROUGH COUNCIL,REFUSE AND RECYCLING,COMENSURA LTD,32435,03-Oct-19,2083312,438.6,0,AGENCY STAFF,OTHER RECRUITMENT AGENCIES AND SERVICE PROVIDERS,Invoice,BACS,None,01-Oct-19,2019,7,1033170,B7744,GREEN WASTE,A5191,AGENCY STAFF
GUILDFORD BOROUGH COUNCIL,BUILDING CONTROL SUMMARY,COMENSURA LTD,32435,10-Oct-19,2084581,501.72,0,AGENCY STAFF,OTHER RECRUITMENT AGENCIES AND SERVICE PROVIDERS,Invoice,BACS,None,08-Oct-19,2019,7,1033540,D5700,BUILDING CONTROL - FEE,A5191,AGENCY STAFF
GUILDFORD BOROUGH COUNCIL,STREET CLEANSING,COMENSURA LTD,32435,17-Oct-19,2085497,430.11,0,AGENCY STAFF,OTHER RECRUITMENT AGENCIES AND SERVICE PROVIDERS,Invoice,BACS,None,15-Oct-19,2019,7,1033875,K4551,STREET CLEANSING,A5191,AGENCY STAFF
GUILDFORD BOROUGH COUNCIL,REFUSE AND RECYCLING,COMENSURA LTD,32435,17-Oct-19,2085497,580.63,0,AGENCY STAFF,OTHER RECRUITMENT AGENCIES AND SERVICE PROVIDERS,Invoice,BACS,None,15-Oct-19,2019,7,1033875,B7766,KERBSIDE RECYCLING,A5191,AGENCY STAFF
GUILDFORD BOROUGH COUNCIL,REFUSE AND RECYCLING,COMENSURA LTD,32435,17-Oct-19,2085497,-1.68,0,AGENCY STAFF,OTHER RECRUITMENT AGENCIES AND SERVICE PROVIDERS,Invoice,BACS,None,15-Oct-19,2019,7,1033875,B7766,KERBSIDE RECYCLING,A5191,AGENCY STAFF
GUILDFORD BOROUGH COUNCIL,REFUSE AND RECYCLING,COMENSURA LTD,32435,17-Oct-19,2085497,122.32,0,AGENCY STAFF,OTHER RECRUITMENT AGENCIES AND SERVICE PROVIDERS,Invoice,BACS,None,15-Oct-19,2019,7,1033875,B7744,GREEN WASTE,A5191,AGENCY STAFF
GUILDFORD BOROUGH COUNCIL,ENVIRONMENTAL CONTROL,COMENSURA LTD,32435,17-Oct-19,2085497,585.75,0,AGENCY STAFF,OTHER RECRUITMENT AGENCIES AND SERVICE PROVIDERS,Invoice,BACS,None,15-Oct-19,2019,7,1033875,C1113,ENVIRONMENTAL CONTROL,A5191,AGENCY STAFF
GUILDFORD BOROUGH COUNCIL,STREET CLEANSING,COMENSURA LTD,32435,10-Oct-19,2084581,-1.54,0,AGENCY STAFF,OTHER RECRUITMENT AGENCIES AND SERVICE PROVIDERS,Invoice,BACS,None,08-Oct-19,2019,7,1033540,K4551,STREET CLEANSING,A5191,AGENCY STAFF
GUILDFORD BOROUGH COUNCIL,STREET CLEANSING,COMENSURA LTD,32435,10-Oct-19,2084581,437.4,0,AGENCY STAFF,OTHER RECRUITMENT AGENCIES AND SERVICE PROVIDERS,Invoice,BACS,None,08-Oct-19,2019,7,1033540,K4551,STREET CLEANSING,A5191,AGENCY STAFF
GUILDFORD BOROUGH COUNCIL,REFUSE AND RECYCLING,COMENSURA LTD,32435,10-Oct-19,2084581,253.8,0,AGENCY STAFF,OTHER RECRUITMENT AGENCIES AND SERVICE PROVIDERS,Invoice,BACS,None,08-Oct-19,2019,7,1033540,B7744,GREEN WASTE,A5191,AGENCY STAFF
GUILDFORD BOROUGH COUNCIL,REFUSE AND RECYCLING,COMENSURA LTD,32435,10-Oct-19,2084581,-1.11,0,AGENCY STAFF,OTHER RECRUITMENT AGENCIES AND SERVICE PROVIDERS,Invoice,BACS,None,08-Oct-19,2019,7,1033540,B7711,RECYCLING ADMINISTRATION,A5191,AGENCY STAFF
GUILDFORD BOROUGH COUNCIL,REFUSE AND RECYCLING,COMENSURA LTD,32435,10-Oct-19,2084581,504.68,0,AGENCY STAFF,OTHER RECRUITMENT AGENCIES AND SERVICE PROVIDERS,Invoice,BACS,None,08-Oct-19,2019,7,1033540,B7711,RECYCLING ADMINISTRATION,A5191,AGENCY STAFF
GUILDFORD BOROUGH COUNCIL,REFUSE AND RECYCLING,COMENSURA LTD,32435,10-Oct-19,2084581,78.96,0,AGENCY STAFF,OTHER RECRUITMENT AGENCIES AND SERVICE PROVIDERS,Invoice,BACS,None,08-Oct-19,2019,7,1033540,K3551,REFUSE COLLECTION,A5191,AGENCY STAFF
GUILDFORD BOROUGH COUNCIL,MOT BAY,COMENSURA LTD,32435,03-Oct-19,2083312,-1.6,0,AGENCY STAFF,OTHER RECRUITMENT AGENCIES AND SERVICE PROVIDERS,Invoice,BACS,None,01-Oct-19,2019,7,1033170,V8598,MOT STATION,A5191,AGENCY STAFF
GUILDFORD BOROUGH COUNCIL,REFUSE AND RECYCLING,COMENSURA LTD,32435,24-Oct-19,2086865,524.13,0,AGENCY STAFF,OTHER RECRUITMENT AGENCIES AND SERVICE PROVIDERS,Invoice,BACS,None,22-Oct-19,2019,7,1034221,K3551,REFUSE COLLECTION,A5191,AGENCY STAFF
GUILDFORD BOROUGH COUNCIL,DEVELOPMENT CONTROL,COMENSURA LTD,32435,10-Oct-19,2084581,610.39,0,AGENCY STAFF,OTHER RECRUITMENT AGENCIES AND SERVICE PROVIDERS,Invoice,BACS,None,08-Oct-19,2019,7,1033540,D5200,DEVELOPMENT CONTROL NON FEE,A5191,AGENCY STAFF
GUILDFORD BOROUGH COUNCIL,DEVELOPMENT CONTROL,COMENSURA LTD,32435,10-Oct-19,2084581,501.72,0,AGENCY STAFF,OTHER RECRUITMENT AGENCIES AND SERVICE PROVIDERS,Invoice,BACS,None,08-Oct-19,2019,7,1033540,D5100,DEVELOPMENT CONTROL - FEE EARN,A5191,AGENCY STAFF
GUILDFORD BOROUGH COUNCIL,REFUSE AND RECYCLING,COMENSURA LTD,32435,31-Oct-19,2087717,340.32,0,AGENCY STAFF,OTHER RECRUITMENT AGENCIES AND SERVICE PROVIDERS,Invoice,BACS,None,29-Oct-19,2019,7,1034565,B7744,GREEN WASTE,A5191,AGENCY STAFF
GUILDFORD BOROUGH COUNCIL,REFUSE AND RECYCLING,COMENSURA LTD,32435,31-Oct-19,2087717,524.13,0,AGENCY STAFF,OTHER RECRUITMENT AGENCIES AND SERVICE PROVIDERS,Invoice,BACS,None,29-Oct-19,2019,7,1034565,B7766,KERBSIDE RECYCLING,A5191,AGENCY STAFF
GUILDFORD BOROUGH COUNCIL,REFUSE AND RECYCLING,COMENSURA LTD,32435,31-Oct-19,2087717,169.2,0,AGENCY STAFF,OTHER RECRUITMENT AGENCIES AND SERVICE PROVIDERS,Invoice,BACS,None,29-Oct-19,2019,7,1034565,B7744,GREEN WASTE,A5191,AGENCY STAFF
GUILDFORD BOROUGH COUNCIL,REFUSE AND RECYCLING,COMENSURA LTD,32435,31-Oct-19,2087717,402.38,0,AGENCY STAFF,OTHER RECRUITMENT AGENCIES AND SERVICE PROVIDERS,Invoice,BACS,None,29-Oct-19,2019,7,1034565,B7711,RECYCLING ADMINISTRATION,A5191,AGENCY STAFF
GUILDFORD BOROUGH COUNCIL,REFUSE AND RECYCLING,COMENSURA LTD,32435,31-Oct-19,2087717,559.51,0,AGENCY STAFF,OTHER RECRUITMENT AGENCIES AND SERVICE PROVIDERS,Invoice,BACS,None,29-Oct-19,2019,7,1034565,B7766,KERBSIDE RECYCLING,A5191,AGENCY STAFF
GUILDFORD BOROUGH COUNCIL,OFF STREET PARKING,COMENSURA LTD,32435,03-Oct-19,2083312,705.96,0,AGENCY STAFF,OTHER RECRUITMENT AGENCIES AND SERVICE PROVIDERS,Invoice,BACS,None,01-Oct-19,2019,7,1033170,B2111,CAR PARKS - ADMINISTRATION,A5191,AGENCY STAFF
GUILDFORD BOROUGH COUNCIL,POLICY,COMENSURA LTD,32435,03-Oct-19,2083312,727.76,0,AGENCY STAFF,OTHER RECRUITMENT AGENCIES AND SERVICE PROVIDERS,Invoice,BACS,None,01-Oct-19,2019,7,1033170,D5300,POLICY,A5191,AGENCY STAFF
GUILDFORD BOROUGH COUNCIL,STREET CLEANSING,COMENSURA LTD,32435,24-Oct-19,2086865,248.16,0,AGENCY STAFF,OTHER RECRUITMENT AGENCIES AND SERVICE PROVIDERS,Invoice,BACS,None,22-Oct-19,2019,7,1034221,K4551,STREET CLEANSING,A5191,AGENCY STAFF
GUILDFORD BOROUGH COUNCIL,OFF STREET PARKING,COMENSURA LTD,32435,17-Oct-19,2085497,499.47,0,AGENCY STAFF,OTHER RECRUITMENT AGENCIES AND SERVICE PROVIDERS,Invoice,BACS,None,15-Oct-19,2019,7,1033875,B2111,CAR PARKS - ADMINISTRATION,A5191,AGENCY STAFF
GUILDFORD BOROUGH COUNCIL,REFUSE AND RECYCLING,COMENSURA LTD,32435,24-Oct-19,2086865,453.76,0,AGENCY STAFF,OTHER RECRUITMENT AGENCIES AND SERVICE PROVIDERS,Invoice,BACS,None,22-Oct-19,2019,7,1034221,B7744,GREEN WASTE,A5191,AGENCY STAFF
GUILDFORD BOROUGH COUNCIL,STREET CLEANSING,COMENSURA LTD,32435,17-Oct-19,2085497,560.18,0,AGENCY STAFF,OTHER RECRUITMENT AGENCIES AND SERVICE PROVIDERS,Invoice,BACS,None,15-Oct-19,2019,7,1033875,K4551,STREET CLEANSING,A5191,AGENCY STAFF
GUILDFORD BOROUGH COUNCIL,STREET CLEANSING,COMENSURA LTD,32435,24-Oct-19,2086865,539.46,0,AGENCY STAFF,OTHER RECRUITMENT AGENCIES AND SERVICE PROVIDERS,Invoice,BACS,None,22-Oct-19,2019,7,1034221,K4551,STREET CLEANSING,A5191,AGENCY STAFF
GUILDFORD BOROUGH COUNCIL,REFUSE AND RECYCLING,COMENSURA LTD,32435,24-Oct-19,2086865,-1.11,0,AGENCY STAFF,OTHER RECRUITMENT AGENCIES AND SERVICE PROVIDERS,Invoice,BACS,None,22-Oct-19,2019,7,1034221,B7711,RECYCLING ADMINISTRATION,A5191,AGENCY STAFF
GUILDFORD BOROUGH COUNCIL,MUSEUM,CONCRETE REPAIRS LTD,72288,08-Oct-19,2083957,18.73,0,MECHANICAL/ELECTRICAL MNTCE AG,"CONCRETE CUTTING, DRILLING AND MAINTENANCE CONTRACTORS",Invoice,BACS,None,31-Jul-19,2019,7,INV/015450,A5511,MUSEUM,B1221,MECHANICAL/ELECTRICAL MNTCE AG
GUILDFORD BOROUGH COUNCIL,LEGAL SERVICES,COMENSURA LTD,32435,17-Oct-19,2085497,221.87,0,AGENCY STAFF,OTHER RECRUITMENT AGENCIES AND SERVICE PROVIDERS,Invoice,BACS,None,15-Oct-19,2019,7,1033875,G4525,LEGAL SERVICES,A5191,AGENCY STAFF
GUILDFORD BOROUGH COUNCIL,POLICY,COMENSURA LTD,32435,17-Oct-19,2085497,-2.52,0,AGENCY STAFF,OTHER RECRUITMENT AGENCIES AND SERVICE PROVIDERS,Invoice,BACS,None,15-Oct-19,2019,7,1033875,D5300,POLICY,A5191,AGENCY STAFF
GUILDFORD BOROUGH COUNCIL,REFUSE AND RECYCLING,COMENSURA LTD,32435,17-Oct-19,2085497,524.13,0,AGENCY STAFF,OTHER RECRUITMENT AGENCIES AND SERVICE PROVIDERS,Invoice,BACS,None,15-Oct-19,2019,7,1033875,B7766,KERBSIDE RECYCLING,A5191,AGENCY STAFF
GUILDFORD BOROUGH COUNCIL,STREET CLEANSING,COMENSURA LTD,32435,17-Oct-19,2085497,504.68,0,AGENCY STAFF,OTHER RECRUITMENT AGENCIES AND SERVICE PROVIDERS,Invoice,BACS,None,15-Oct-19,2019,7,1033875,K4551,STREET CLEANSING,A5191,AGENCY STAFF
GUILDFORD BOROUGH COUNCIL,DEVELOPMENT CONTROL,COMENSURA LTD,32435,03-Oct-19,2083312,491.04,0,AGENCY STAFF,OTHER RECRUITMENT AGENCIES AND SERVICE PROVIDERS,Invoice,BACS,None,01-Oct-19,2019,7,1033170,D5200,DEVELOPMENT CONTROL NON FEE,A5191,AGENCY STAFF
GUILDFORD BOROUGH COUNCIL,STREET CLEANSING,COMENSURA LTD,32435,03-Oct-19,2083312,637.72,0,AGENCY STAFF,OTHER RECRUITMENT AGENCIES AND SERVICE PROVIDERS,Invoice,BACS,None,01-Oct-19,2019,7,1033170,K4551,STREET CLEANSING,A5191,AGENCY STAFF
GUILDFORD BOROUGH COUNCIL,STREET CLEANSING,COMENSURA LTD,32435,03-Oct-19,2083312,539.46,0,AGENCY STAFF,OTHER RECRUITMENT AGENCIES AND SERVICE PROVIDERS,Invoice,BACS,None,01-Oct-19,2019,7,1033170,K4551,STREET CLEANSING,A5191,AGENCY STAFF
GUILDFORD BOROUGH COUNCIL,DAY SERVICES,CHEESMAN BROTHERS LIMITED,1291,15-Oct-19,2083159,577.25,0,FOOD PURCHASES,FRUIT AND VEGETABLE SUPPLIERS,Invoice,BACS,None,28-Sep-19,2019,7,818571,C8189,CENTRAL HUB PARK BARN,D1832,FOOD PURCHASES
GUILDFORD BOROUGH COUNCIL,REFUSE AND RECYCLING,COMENSURA LTD,32435,24-Oct-19,2086865,-1.68,0,AGENCY STAFF,OTHER RECRUITMENT AGENCIES AND SERVICE PROVIDERS,Invoice,BACS,None,22-Oct-19,2019,7,1034221,B7744,GREEN WASTE,A5191,AGENCY STAFF
GUILDFORD BOROUGH COUNCIL,STREET CLEANSING,COMENSURA LTD,32435,03-Oct-19,2083312,569.82,0,AGENCY STAFF,OTHER RECRUITMENT AGENCIES AND SERVICE PROVIDERS,Invoice,BACS,None,01-Oct-19,2019,7,1033170,K4551,STREET CLEANSING,A5191,AGENCY STAFF
GUILDFORD BOROUGH COUNCIL,REFUSE AND RECYCLING,COMENSURA LTD,32435,10-Oct-19,2084581,318.57,0,AGENCY STAFF,OTHER RECRUITMENT AGENCIES AND SERVICE PROVIDERS,Invoice,BACS,None,08-Oct-19,2019,7,1033540,K3551,REFUSE COLLECTION,A5191,AGENCY STAFF
GUILDFORD BOROUGH COUNCIL,STREET CLEANSING,COMENSURA LTD,32435,10-Oct-19,2084581,-1.2,0,AGENCY STAFF,OTHER RECRUITMENT AGENCIES AND SERVICE PROVIDERS,Invoice,BACS,None,08-Oct-19,2019,7,1033540,K4551,STREET CLEANSING,A5191,AGENCY STAFF
GUILDFORD BOROUGH COUNCIL,REFUSE AND RECYCLING,COMENSURA LTD,32435,10-Oct-19,2084581,97.35,0,AGENCY STAFF,OTHER RECRUITMENT AGENCIES AND SERVICE PROVIDERS,Invoice,BACS,None,08-Oct-19,2019,7,1033540,K3551,REFUSE COLLECTION,A5191,AGENCY STAFF
GUILDFORD BOROUGH COUNCIL,DEVELOPMENT CONTROL,COMENSURA LTD,32435,10-Oct-19,2084581,483.3,0,AGENCY STAFF,OTHER RECRUITMENT AGENCIES AND SERVICE PROVIDERS,Invoice,BACS,None,08-Oct-19,2019,7,1033540,D5100,DEVELOPMENT CONTROL - FEE EARN,A5191,AGENCY STAFF
GUILDFORD BOROUGH COUNCIL,MOT BAY,COMENSURA LTD,32435,10-Oct-19,2084581,507.52,0,AGENCY STAFF,OTHER RECRUITMENT AGENCIES AND SERVICE PROVIDERS,Invoice,BACS,None,08-Oct-19,2019,7,1033540,V8598,MOT STATION,A5191,AGENCY STAFF
GUILDFORD BOROUGH COUNCIL,REFUSE AND RECYCLING,COMENSURA LTD,32435,31-Oct-19,2087717,113.44,0,AGENCY STAFF,OTHER RECRUITMENT AGENCIES AND SERVICE PROVIDERS,Invoice,BACS,None,29-Oct-19,2019,7,1034565,B7766,KERBSIDE RECYCLING,A5191,AGENCY STAFF
GUILDFORD BOROUGH COUNCIL,REFUSE AND RECYCLING,COMENSURA LTD,32435,31-Oct-19,2087717,214.85,0,AGENCY STAFF,OTHER RECRUITMENT AGENCIES AND SERVICE PROVIDERS,Invoice,BACS,None,29-Oct-19,2019,7,1034565,B7766,KERBSIDE RECYCLING,A5191,AGENCY STAFF
GUILDFORD BOROUGH COUNCIL,REFUSE AND RECYCLING,COMENSURA LTD,32435,31-Oct-19,2087717,303.72,0,AGENCY STAFF,OTHER RECRUITMENT AGENCIES AND SERVICE PROVIDERS,Invoice,BACS,None,29-Oct-19,2019,7,1034565,B7744,GREEN WASTE,A5191,AGENCY STAFF
GUILDFORD BOROUGH COUNCIL,REFUSE AND RECYCLING,COMENSURA LTD,32435,31-Oct-19,2087717,-0.88,0,AGENCY STAFF,OTHER RECRUITMENT AGENCIES AND SERVICE PROVIDERS,Invoice,BACS,None,29-Oct-19,2019,7,1034565,B7711,RECYCLING ADMINISTRATION,A5191,AGENCY STAFF
GUILDFORD BOROUGH COUNCIL,REFUSE AND RECYCLING,COMENSURA LTD,32435,31-Oct-19,2087717,-1.68,0,AGENCY STAFF,OTHER RECRUITMENT AGENCIES AND SERVICE PROVIDERS,Invoice,BACS,None,29-Oct-19,2019,7,1034565,B7766,KERBSIDE RECYCLING,A5191,AGENCY STAFF
GUILDFORD BOROUGH COUNCIL,DEVELOPMENT CONTROL,COMENSURA LTD,32435,03-Oct-19,2083312,-1.08,0,AGENCY STAFF,OTHER RECRUITMENT AGENCIES AND SERVICE PROVIDERS,Invoice,BACS,None,01-Oct-19,2019,7,1033170,D5200,DEVELOPMENT CONTROL NON FEE,A5191,AGENCY STAFF
GUILDFORD BOROUGH COUNCIL,REFUSE AND RECYCLING,COMENSURA LTD,32435,17-Oct-19,2085497,446.47,0,AGENCY STAFF,OTHER RECRUITMENT AGENCIES AND SERVICE PROVIDERS,Invoice,BACS,None,15-Oct-19,2019,7,1033875,B7766,KERBSIDE RECYCLING,A5191,AGENCY STAFF
GUILDFORD BOROUGH COUNCIL,STREET CLEANSING,COMENSURA LTD,32435,03-Oct-19,2083312,468.93,0,AGENCY STAFF,OTHER RECRUITMENT AGENCIES AND SERVICE PROVIDERS,Invoice,BACS,None,01-Oct-19,2019,7,1033170,K4551,STREET CLEANSING,A5191,AGENCY STAFF
GUILDFORD BOROUGH COUNCIL,REFUSE AND RECYCLING,COMENSURA LTD,32435,17-Oct-19,2085497,528,0,AGENCY STAFF,OTHER RECRUITMENT AGENCIES AND SERVICE PROVIDERS,Invoice,BACS,None,15-Oct-19,2019,7,1033875,B7766,KERBSIDE RECYCLING,A5191,AGENCY STAFF
GUILDFORD BOROUGH COUNCIL,REFUSE AND RECYCLING,COMENSURA LTD,32435,03-Oct-19,2083312,169.2,0,AGENCY STAFF,OTHER RECRUITMENT AGENCIES AND SERVICE PROVIDERS,Invoice,BACS,None,01-Oct-19,2019,7,1033170,B7766,KERBSIDE RECYCLING,A5191,AGENCY STAFF
GUILDFORD BOROUGH COUNCIL,ENVIRONMENTAL CONTROL,COMENSURA LTD,32435,24-Oct-19,2086865,-1.12,0,AGENCY STAFF,OTHER RECRUITMENT AGENCIES AND SERVICE PROVIDERS,Invoice,BACS,None,22-Oct-19,2019,7,1034221,C1113,ENVIRONMENTAL CONTROL,A5191,AGENCY STAFF
GUILDFORD BOROUGH COUNCIL,COMMUNITY DEVELOPMENT,COMENSURA LTD,32435,24-Oct-19,2086865,615.92,0,AGENCY STAFF,OTHER RECRUITMENT AGENCIES AND SERVICE PROVIDERS,Invoice,BACS,None,22-Oct-19,2019,7,1034221,F5711,COMMUNITY SAFETY TEAM,A5191,AGENCY STAFF
GUILDFORD BOROUGH COUNCIL,DEVELOPMENT CONTROL,COMENSURA LTD,32435,24-Oct-19,2086865,-0.59,0,AGENCY STAFF,OTHER RECRUITMENT AGENCIES AND SERVICE PROVIDERS,Invoice,BACS,None,22-Oct-19,2019,7,1034221,D5100,DEVELOPMENT CONTROL - FEE EARN,A5191,AGENCY STAFF
GUILDFORD BOROUGH COUNCIL,REFUSE AND RECYCLING,COMENSURA LTD,32435,24-Oct-19,2086865,501.72,0,AGENCY STAFF,OTHER RECRUITMENT AGENCIES AND SERVICE PROVIDERS,Invoice,BACS,None,22-Oct-19,2019,7,1034221,B7711,RECYCLING ADMINISTRATION,A5191,AGENCY STAFF
GUILDFORD BOROUGH COUNCIL,REFUSE AND RECYCLING,COMENSURA LTD,32435,24-Oct-19,2086865,332.76,0,AGENCY STAFF,OTHER RECRUITMENT AGENCIES AND SERVICE PROVIDERS,Invoice,BACS,None,22-Oct-19,2019,7,1034221,K3551,REFUSE COLLECTION,A5191,AGENCY STAFF
GUILDFORD BOROUGH COUNCIL,REFUSE AND RECYCLING,COMENSURA LTD,32435,24-Oct-19,2086865,559.51,0,AGENCY STAFF,OTHER RECRUITMENT AGENCIES AND SERVICE PROVIDERS,Invoice,BACS,None,22-Oct-19,2019,7,1034221,K3551,REFUSE COLLECTION,A5191,AGENCY STAFF
GUILDFORD BOROUGH COUNCIL,REFUSE AND RECYCLING,COMENSURA LTD,32435,24-Oct-19,2086865,559.91,0,AGENCY STAFF,OTHER RECRUITMENT AGENCIES AND SERVICE PROVIDERS,Invoice,BACS,None,22-Oct-19,2019,7,1034221,K3551,REFUSE COLLECTION,A5191,AGENCY STAFF
GUILDFORD BOROUGH COUNCIL,STREET CLEANSING,COMENSURA LTD,32435,24-Oct-19,2086865,252.29,0,AGENCY STAFF,OTHER RECRUITMENT AGENCIES AND SERVICE PROVIDERS,Invoice,BACS,None,22-Oct-19,2019,7,1034221,K4551,STREET CLEANSING,A5191,AGENCY STAFF
GUILDFORD BOROUGH COUNCIL,STREET CLEANSING,COMENSURA LTD,32435,17-Oct-19,2085497,895.41,0,AGENCY STAFF,OTHER RECRUITMENT AGENCIES AND SERVICE PROVIDERS,Invoice,BACS,None,15-Oct-19,2019,7,1033875,K4551,STREET CLEANSING,A5191,AGENCY STAFF
GUILDFORD BOROUGH COUNCIL,COMMUNITY DEVELOPMENT,COMENSURA LTD,32435,03-Oct-19,2083312,615.92,0,AGENCY STAFF,OTHER RECRUITMENT AGENCIES AND SERVICE PROVIDERS,Invoice,BACS,None,01-Oct-19,2019,7,1033170,F5711,COMMUNITY SAFETY TEAM,A5191,AGENCY STAFF
GUILDFORD BOROUGH COUNCIL,LEGAL SERVICES,COMENSURA LTD,32435,03-Oct-19,2083312,2127.16,0,AGENCY STAFF,OTHER RECRUITMENT AGENCIES AND SERVICE PROVIDERS,Invoice,BACS,None,01-Oct-19,2019,7,1033170,G4525,LEGAL SERVICES,A5191,AGENCY STAFF
GUILDFORD BOROUGH COUNCIL,OFF STREET PARKING,CAPITA BUSINESS SERVICES LTD,1204,10-Oct-19,2084127,56.88,0,EXTERNAL PRINTING & DESIGN,MANAGED AND OUTSOURCED BUSINESS SERVICES PROVIDERS,Invoice,BACS,None,30-Sep-19,2019,7,6003924187,B2216,GENERAL UPKEEP- URBAN CAR PKS,D3454,EXTERNAL PRINTING & DESIGN
GUILDFORD BOROUGH COUNCIL,NEW BUILD,CARRINGTON WEST LIMITED,95055,22-Oct-19,2086266,38.8,0,AGENCY STAFF,OTHER RECRUITMENT AGENCIES AND SERVICE PROVIDERS,Invoice,BACS,None,18-Sep-19,2019,7,106512,N30012,APPLETREE PUB SITE,1222,AGENCY STAFF
GUILDFORD BOROUGH COUNCIL,NEW BUILD,CARRINGTON WEST LIMITED,95055,08-Oct-19,2083982,912.5,0,AGENCY STAFF,OTHER RECRUITMENT AGENCIES AND SERVICE PROVIDERS,Invoice,BACS,None,21-Aug-19,2019,7,104427,N30021,PIPELINE PROJECT 1,1222,AGENCY STAFF
GUILDFORD BOROUGH COUNCIL,DAY SERVICES,CARELINE THE AGENCY FOR CARESTAFF LIMITED,23629,29-Oct-19,2086365,185.36,0,AGENCY STAFF,NURSING AND MEDICAL RECRUITMENT AGENCIES,Invoice,BACS,None,02-Oct-19,2019,7,P181680,C8189,CENTRAL HUB PARK BARN,A5191,AGENCY STAFF
GUILDFORD BOROUGH COUNCIL,DAY SERVICES,CARELINE THE AGENCY FOR CARESTAFF LIMITED,23629,31-Oct-19,2087146,92.68,0,AGENCY STAFF,NURSING AND MEDICAL RECRUITMENT AGENCIES,Invoice,BACS,None,16-Oct-19,2019,7,P181825,C8189,CENTRAL HUB PARK BARN,A5191,AGENCY STAFF
GUILDFORD BOROUGH COUNCIL,DAY SERVICES,CARELINE THE AGENCY FOR CARESTAFF LIMITED,23629,15-Oct-19,2082892,463.39,0,AGENCY STAFF,NURSING AND MEDICAL RECRUITMENT AGENCIES,Invoice,BACS,None,18-Sep-19,2019,7,P181546,C8189,CENTRAL HUB PARK BARN,A5191,AGENCY STAFF
GUILDFORD BOROUGH COUNCIL,DAY SERVICES,CARELINE THE AGENCY FOR CARESTAFF LIMITED,23629,29-Oct-19,2086203,92.68,0,AGENCY STAFF,NURSING AND MEDICAL RECRUITMENT AGENCIES,Invoice,BACS,None,09-Oct-19,2019,7,P181748,C8189,CENTRAL HUB PARK BARN,A5191,AGENCY STAFF
GUILDFORD BOROUGH COUNCIL,DAY SERVICES,CARELINE THE AGENCY FOR CARESTAFF LIMITED,23629,31-Oct-19,2081602,92.68,0,AGENCY STAFF,NURSING AND MEDICAL RECRUITMENT AGENCIES,Invoice,BACS,None,11-Sep-19,2019,7,P181471,C8189,CENTRAL HUB PARK BARN,A5191,AGENCY STAFF
GUILDFORD BOROUGH COUNCIL,LEISURE PLAY DEVELOPMENT,CARDINELS IN THE COMMUNITY,97876,15-Oct-19,2084765,234,0,INSTRUCTORS FEES,THIRD PARTY SUPPLIER,Invoice,BACS,None,12-Aug-19,2019,7,012/19,A4126,FISH,D4451,INSTRUCTORS FEES
GUILDFORD BOROUGH COUNCIL,CAR LEASING HOLDING ACCOUNT,CAR HIRE (DAY OF SWANSEA) LTD,85609,15-Oct-19,2083985,4792.78,0,GENERAL ACCOUNT LEASING TRFS,"CAR, VAN AND TRUCK HIRE COMPANIES",Invoice,BACS,None,01-Oct-19,2019,7,INV00228454,G1131,CAR LEASING HOLDING ACCOUNT,C1355,GENERAL ACCOUNT LEASING TRFS
GUILDFORD BOROUGH COUNCIL,STREET CLEANSING,CAR AND METAL RECYCLES LTD,68520,08-Oct-19,2079924,425,0,VEHICLE RECOVERY SERVICES,SCRAP MERCHANTS,Invoice,BACS,None,26-Aug-19,2019,7,320401,K4551,STREET CLEANSING,D1586,VEHICLE RECOVERY SERVICES
GUILDFORD BOROUGH COUNCIL,RESPONSIVE & PLANNED MAINTENAN,C L C CONTRACTORS LIMITED,9829,24-Oct-19,2086657,593.22,0,EXTERNAL DECORATIONS,PROPERTY MAINTENANCE CONTRACTORS,Invoice,BACS,None,04-Oct-19,2019,7,AP84759-001,M5114,REPAIRS-CYCLICAL (BHS),B1324,EXTERNAL DECORATIONS
GUILDFORD BOROUGH COUNCIL,ON STREET PARKING,CAPITA BUSINESS SERVICES LTD,1204,10-Oct-19,2084127,179.9,0,POSTAGE DIRECT USAGE,MANAGED AND OUTSOURCED BUSINESS SERVICES PROVIDERS,Invoice,BACS,None,30-Sep-19,2019,7,6003924187,B2215,WAVERLEY ON-STREET,D5466,POSTAGE DIRECT USAGE
GUILDFORD BOROUGH COUNCIL,POLICY,CARRINGTON WEST LIMITED,95055,22-Oct-19,2085534,1315.72,0,AGENCY STAFF,OTHER RECRUITMENT AGENCIES AND SERVICE PROVIDERS,Invoice,BACS,None,09-Oct-19,2019,7,108224,D5300,POLICY,A5191,AGENCY STAFF
GUILDFORD BOROUGH COUNCIL,OFF STREET PARKING,CAPITA BUSINESS SERVICES LTD,1204,10-Oct-19,2084127,224.7,0,POSTAGE DIRECT USAGE,MANAGED AND OUTSOURCED BUSINESS SERVICES PROVIDERS,Invoice,BACS,None,30-Sep-19,2019,7,6003924187,B2111,CAR PARKS - ADMINISTRATION,D5466,POSTAGE DIRECT USAGE
GUILDFORD BOROUGH COUNCIL,OFF STREET PARKING,CAPITA BUSINESS SERVICES LTD,1204,10-Oct-19,2084127,301,0,POSTAGE DIRECT USAGE,MANAGED AND OUTSOURCED BUSINESS SERVICES PROVIDERS,Invoice,BACS,None,30-Sep-19,2019,7,6003924187,B2216,GENERAL UPKEEP- URBAN CAR PKS,D5466,POSTAGE DIRECT USAGE
GUILDFORD BOROUGH COUNCIL,ON STREET PARKING,CAPITA BUSINESS SERVICES LTD,1204,10-Oct-19,2084127,22.67,0,EXTERNAL PRINTING & DESIGN,MANAGED AND OUTSOURCED BUSINESS SERVICES PROVIDERS,Invoice,BACS,None,30-Sep-19,2019,7,6003924187,B2215,WAVERLEY ON-STREET,D3454,EXTERNAL PRINTING & DESIGN
GUILDFORD BOROUGH COUNCIL,OFF STREET PARKING,CAPITA BUSINESS SERVICES LTD,1204,10-Oct-19,2084127,37.09,0,EXTERNAL PRINTING & DESIGN,MANAGED AND OUTSOURCED BUSINESS SERVICES PROVIDERS,Invoice,BACS,None,30-Sep-19,2019,7,6003924187,B2111,CAR PARKS - ADMINISTRATION,D3454,EXTERNAL PRINTING & DESIGN
GUILDFORD BOROUGH COUNCIL,VEHICLE MAINTENANCE,CAMERON FORECOURT LTD,14310,22-Oct-19,2085096,1080,0,MAINTENANCE AGREEMENTS,PLANT AND CONSTRUCTION EQUIPMENT SUPPLIERS,Invoice,BACS,None,28-Sep-19,2019,7,793828,K5551,VEHICLE MAINTENANCE,D1431,MAINTENANCE AGREEMENTS
GUILDFORD BOROUGH COUNCIL,NEW BUILD,CABLESHEER CONSTRUCTION LIMITED,91093,15-Oct-19,2085101,8259.37,0,CONTRACT PYTS-MAIN CONTRACTOR,PROPERTY MAINTENANCE CONTRACTORS,Invoice,BACS,None,30-Sep-19,2019,7,ICCLH15598,N30015,GARAGE SITE - POND MEADOW,1233,CONTRACT PYTS-MAIN CONTRACTOR
GUILDFORD BOROUGH COUNCIL,NEW BUILD,CABLESHEER CONSTRUCTION LIMITED,91093,15-Oct-19,2085101,8048.1,0,CONTRACT PYTS-MAIN CONTRACTOR,PROPERTY MAINTENANCE CONTRACTORS,Invoice,BACS,None,30-Sep-19,2019,7,ICCLH15598,N30016,GARAGE SITE - ROWAN CLOSE,1233,CONTRACT PYTS-MAIN CONTRACTOR
GUILDFORD BOROUGH COUNCIL,NEW BUILD,CABLESHEER CONSTRUCTION LIMITED,91093,15-Oct-19,2085101,55026.93,0,CONTRACT PYTS-MAIN CONTRACTOR,PROPERTY MAINTENANCE CONTRACTORS,Invoice,BACS,None,30-Sep-19,2019,7,ICCLH15598,N30017,GARAGE SITE - GT GOODWIN DRIVE,1233,CONTRACT PYTS-MAIN CONTRACTOR
GUILDFORD BOROUGH COUNCIL,FLATS COMMUNAL SERVICES,C L C CONTRACTORS LIMITED,9829,24-Oct-19,2086657,236.42,0,R&M - GENERAL,PROPERTY MAINTENANCE CONTRACTORS,Invoice,BACS,None,04-Oct-19,2019,7,AP84759-001,M2953,WALDEN COTTS 11-12A (4),B1231,R&M - GENERAL
GUILDFORD BOROUGH COUNCIL,FLATS COMMUNAL SERVICES,C L C CONTRACTORS LIMITED,9829,24-Oct-19,2086657,289.02,0,R&M - GENERAL,PROPERTY MAINTENANCE CONTRACTORS,Invoice,BACS,None,04-Oct-19,2019,7,AP84759-001,M2953,WALDEN COTTS 11-12A (4),B1231,R&M - GENERAL
GUILDFORD BOROUGH COUNCIL,LEISURE COMMUNITY CENTRES,CASTLE WATER LIMITED,89638,29-Oct-19,2087226,90.21,0,WATER BY METER,MAINS WATER SUPPLIERS,Invoice,BACS,None,15-Oct-19,2019,7,02287094,A8141,PARK BARN YOUTH & COMMUNITY CE,B4221,WATER BY METER
GUILDFORD BOROUGH COUNCIL,STREET CLEANSING,CAR AND METAL RECYCLES LTD,68520,31-Oct-19,2087184,250,0,VEHICLE RECOVERY SERVICES,SCRAP MERCHANTS,Invoice,BACS,None,21-Oct-19,2019,7,322011,K4551,STREET CLEANSING,D1586,VEHICLE RECOVERY SERVICES
GUILDFORD BOROUGH COUNCIL,NEW BUILD,CARRINGTON WEST LIMITED,95055,31-Oct-19,2087753,912.5,0,AGENCY STAFF,OTHER RECRUITMENT AGENCIES AND SERVICE PROVIDERS,Invoice,BACS,None,18-Sep-19,2019,7,106511,N30021,PIPELINE PROJECT 1,1222,AGENCY STAFF
GUILDFORD BOROUGH COUNCIL,LEISURE PLAY DEVELOPMENT,CHIMERA VR LTD,97131,17-Oct-19,2085070,510,0,INSTRUCTORS FEES,OTHER LEISURE SERVICE PROVIDERS,Invoice,BACS,None,21-Aug-19,2019,7,111,A4126,FISH,D4451,INSTRUCTORS FEES
GUILDFORD BOROUGH COUNCIL,DAY SERVICES,CASTLE WATER LIMITED,89638,29-Oct-19,2086826,138.2,0,WATER BY METER,MAINS WATER SUPPLIERS,Invoice,BACS,None,13-Oct-19,2019,7,2284855,C8189,CENTRAL HUB PARK BARN,B4221,WATER BY METER
GUILDFORD BOROUGH COUNCIL,DAY SERVICES,CASTLE WATER LIMITED,89638,29-Oct-19,2086828,186.52,0,WATER BY METER,MAINS WATER SUPPLIERS,Invoice,BACS,None,13-Oct-19,2019,7,2285226,C8188,WEST HUB SHAWFIELD,B4221,WATER BY METER
GUILDFORD BOROUGH COUNCIL,SHELTERED HOUSING,CASTLE WATER LIMITED,89638,29-Oct-19,2086829,15.63,0,WATER BY METER,MAINS WATER SUPPLIERS,Invoice,BACS,None,13-Oct-19,2019,7,2285450,M1580,61 SHAWFIELD ROAD,B4221,WATER BY METER
GUILDFORD BOROUGH COUNCIL,CREMATORIUM,CASTLE WATER LIMITED,89638,22-Oct-19,2086117,35.69,0,WATER BY METER,MAINS WATER SUPPLIERS,Invoice,BACS,None,08-Oct-19,2019,7,2269524,A1500,GUILDFORD CREMATORIUM,B4221,WATER BY METER
GUILDFORD BOROUGH COUNCIL,PARKS & COUNTRYSIDE,CASTLE WATER LIMITED,89638,22-Oct-19,2086119,6.51,0,WATER BY METER,MAINS WATER SUPPLIERS,Invoice,BACS,None,08-Oct-19,2019,7,2271630,A1130,CASTLE GROUNDS,B4221,WATER BY METER
GUILDFORD BOROUGH COUNCIL,PARKS & COUNTRYSIDE,CASTLE WATER LIMITED,89638,22-Oct-19,2086108,241.85,0,WATER BY METER,MAINS WATER SUPPLIERS,Invoice,BACS,None,08-Oct-19,2019,7,2271476,A1285,ONSLOW VILLAGE RECREATION GROU,B4221,WATER BY METER
GUILDFORD BOROUGH COUNCIL,SURREY FAMILY SUPPORT PROG,CASTLE DAYCARE AND PRESCHOOL LTD,88750,10-Oct-19,2082757,1453,0,MISCELLANEOUS EXPENSES,EARLY YEARS SERVICE PROVIDERS,Invoice,BACS,None,23-Sep-19,2019,7,SEPT2019,C3321,REFUGEE SUPPORT,D9483,MISCELLANEOUS EXPENSES
GUILDFORD BOROUGH COUNCIL,NEW BUILD,CARRINGTON WEST LIMITED,95055,22-Oct-19,2086270,912.5,0,AGENCY STAFF,OTHER RECRUITMENT AGENCIES AND SERVICE PROVIDERS,Invoice,BACS,None,25-Sep-19,2019,7,107069,N30012,APPLETREE PUB SITE,1222,AGENCY STAFF
GUILDFORD BOROUGH COUNCIL,NEW BUILD,CARRINGTON WEST LIMITED,95055,08-Oct-19,2083982,912.5,0,AGENCY STAFF,OTHER RECRUITMENT AGENCIES AND SERVICE PROVIDERS,Invoice,BACS,None,21-Aug-19,2019,7,104427,N30012,APPLETREE PUB SITE,1222,AGENCY STAFF
GUILDFORD BOROUGH COUNCIL,POLICY,CARRINGTON WEST LIMITED,95055,15-Oct-19,2084426,1315.72,0,AGENCY STAFF,OTHER RECRUITMENT AGENCIES AND SERVICE PROVIDERS,Invoice,BACS,None,02-Oct-19,2019,7,107657,D5300,POLICY,A5191,AGENCY STAFF
GUILDFORD BOROUGH COUNCIL,NEW BUILD,CARRINGTON WEST LIMITED,95055,03-Oct-19,2083240,912.5,0,AGENCY STAFF,OTHER RECRUITMENT AGENCIES AND SERVICE PROVIDERS,Invoice,BACS,None,28-Aug-19,2019,7,104907,N30012,APPLETREE PUB SITE,1222,AGENCY STAFF
GUILDFORD BOROUGH COUNCIL,NEW BUILD,CARRINGTON WEST LIMITED,95055,31-Oct-19,2085535,1825,0,AGENCY STAFF,OTHER RECRUITMENT AGENCIES AND SERVICE PROVIDERS,Invoice,BACS,None,09-Oct-19,2019,7,108223,N30021,PIPELINE PROJECT 1,1222,AGENCY STAFF
GUILDFORD BOROUGH COUNCIL,NEW BUILD,CARRINGTON WEST LIMITED,95055,31-Oct-19,2087754,912.5,0,AGENCY STAFF,OTHER RECRUITMENT AGENCIES AND SERVICE PROVIDERS,Invoice,BACS,None,02-Oct-19,2019,7,107656,N30021,PIPELINE PROJECT 1,1222,AGENCY STAFF
GUILDFORD BOROUGH COUNCIL,NEW BUILD,CARRINGTON WEST LIMITED,95055,31-Oct-19,2087754,912.5,0,AGENCY STAFF,OTHER RECRUITMENT AGENCIES AND SERVICE PROVIDERS,Invoice,BACS,None,02-Oct-19,2019,7,107656,N30012,APPLETREE PUB SITE,1222,AGENCY STAFF
GUILDFORD BOROUGH COUNCIL,NEW BUILD,CARRINGTON WEST LIMITED,95055,03-Oct-19,2083239,730,0,AGENCY STAFF,OTHER RECRUITMENT AGENCIES AND SERVICE PROVIDERS,Invoice,BACS,None,04-Sep-19,2019,7,105414,N30012,APPLETREE PUB SITE,1222,AGENCY STAFF
GUILDFORD BOROUGH COUNCIL,POLICY,CARRINGTON WEST LIMITED,95055,29-Oct-19,2086726,1315.72,0,AGENCY STAFF,OTHER RECRUITMENT AGENCIES AND SERVICE PROVIDERS,Invoice,BACS,None,16-Oct-19,2019,7,108852,D5300,POLICY,A5191,AGENCY STAFF
GUILDFORD BOROUGH COUNCIL,NEW BUILD,CARRINGTON WEST LIMITED,95055,03-Oct-19,2083238,912.5,0,AGENCY STAFF,OTHER RECRUITMENT AGENCIES AND SERVICE PROVIDERS,Invoice,BACS,None,11-Sep-19,2019,7,105952,N30012,APPLETREE PUB SITE,1222,AGENCY STAFF
GUILDFORD BOROUGH COUNCIL,POLICY,CARRINGTON WEST LIMITED,95055,03-Oct-19,2082897,1315.72,0,AGENCY STAFF,OTHER RECRUITMENT AGENCIES AND SERVICE PROVIDERS,Invoice,BACS,None,25-Sep-19,2019,7,107070,D5300,POLICY,A5191,AGENCY STAFF
GUILDFORD BOROUGH COUNCIL,NEW BUILD,CARRINGTON WEST LIMITED,95055,31-Oct-19,2087753,912.5,0,AGENCY STAFF,OTHER RECRUITMENT AGENCIES AND SERVICE PROVIDERS,Invoice,BACS,None,18-Sep-19,2019,7,106511,N30012,APPLETREE PUB SITE,1222,AGENCY STAFF
GUILDFORD BOROUGH COUNCIL,NEW BUILD,CARRINGTON WEST LIMITED,95055,03-Oct-19,2083238,912.5,0,AGENCY STAFF,OTHER RECRUITMENT AGENCIES AND SERVICE PROVIDERS,Invoice,BACS,None,11-Sep-19,2019,7,105952,N30021,PIPELINE PROJECT 1,1222,AGENCY STAFF
GUILDFORD BOROUGH COUNCIL,NEW BUILD,CARRINGTON WEST LIMITED,95055,22-Oct-19,2086266,38.81,0,AGENCY STAFF,OTHER RECRUITMENT AGENCIES AND SERVICE PROVIDERS,Invoice,BACS,None,18-Sep-19,2019,7,106512,N30021,PIPELINE PROJECT 1,1222,AGENCY STAFF
GUILDFORD BOROUGH COUNCIL,NEW BUILD,CARRINGTON WEST LIMITED,95055,22-Oct-19,2086270,912.5,0,AGENCY STAFF,OTHER RECRUITMENT AGENCIES AND SERVICE PROVIDERS,Invoice,BACS,None,25-Sep-19,2019,7,107069,N30021,PIPELINE PROJECT 1,1222,AGENCY STAFF
GUILDFORD BOROUGH COUNCIL,NEW BUILD,CARRINGTON WEST LIMITED,95055,03-Oct-19,2083240,912.5,0,AGENCY STAFF,OTHER RECRUITMENT AGENCIES AND SERVICE PROVIDERS,Invoice,BACS,None,28-Aug-19,2019,7,104907,N30021,PIPELINE PROJECT 1,1222,AGENCY STAFF
GUILDFORD BOROUGH COUNCIL,RESPONSIVE & PLANNED MAINTENAN,C L C CONTRACTORS LIMITED,9829,24-Oct-19,2086657,157.61,0,PRE-PAINTING PROG; ALL TRADES,PROPERTY MAINTENANCE CONTRACTORS,Invoice,BACS,None,04-Oct-19,2019,7,AP84759-001,M5114,REPAIRS-CYCLICAL (BHS),B1374,PRE-PAINTING PROG; ALL TRADES
GUILDFORD BOROUGH COUNCIL,NEW BUILD,CARRINGTON WEST LIMITED,95055,03-Oct-19,2083239,730,0,AGENCY STAFF,OTHER RECRUITMENT AGENCIES AND SERVICE PROVIDERS,Invoice,BACS,None,04-Sep-19,2019,7,105414,N30021,PIPELINE PROJECT 1,1222,AGENCY STAFF
GUILDFORD BOROUGH COUNCIL,RESPONSIVE & PLANNED MAINTENAN,C L C CONTRACTORS LIMITED,9829,24-Oct-19,2086657,432.91,0,EXTERNAL DECORATIONS,PROPERTY MAINTENANCE CONTRACTORS,Invoice,BACS,None,04-Oct-19,2019,7,AP84759-001,M5114,REPAIRS-CYCLICAL (BHS),B1324,EXTERNAL DECORATIONS
GUILDFORD BOROUGH COUNCIL,RESPONSIVE & PLANNED MAINTENAN,C L C CONTRACTORS LIMITED,9829,29-Oct-19,2087313,239.48,0,EXTERNAL DECORATIONS,PROPERTY MAINTENANCE CONTRACTORS,Invoice,BACS,None,21-Oct-19,2019,7,AP84869-001,M5114,REPAIRS-CYCLICAL (BHS),B1324,EXTERNAL DECORATIONS
GUILDFORD BOROUGH COUNCIL,RESPONSIVE & PLANNED MAINTENAN,C L C CONTRACTORS LIMITED,9829,29-Oct-19,2087313,241.03,0,EXTERNAL DECORATIONS,PROPERTY MAINTENANCE CONTRACTORS,Invoice,BACS,None,21-Oct-19,2019,7,AP84869-001,M5114,REPAIRS-CYCLICAL (BHS),B1324,EXTERNAL DECORATIONS
GUILDFORD BOROUGH COUNCIL,RESPONSIVE & PLANNED MAINTENAN,C L C CONTRACTORS LIMITED,9829,24-Oct-19,2086657,1055.58,0,EXTERNAL DECORATIONS,PROPERTY MAINTENANCE CONTRACTORS,Invoice,BACS,None,04-Oct-19,2019,7,AP84759-001,M5114,REPAIRS-CYCLICAL (BHS),B1324,EXTERNAL DECORATIONS
GUILDFORD BOROUGH COUNCIL,RESPONSIVE & PLANNED MAINTENAN,C L C CONTRACTORS LIMITED,9829,24-Oct-19,2086657,210.08,0,EXTERNAL DECORATIONS,PROPERTY MAINTENANCE CONTRACTORS,Invoice,BACS,None,04-Oct-19,2019,7,AP84759-001,M5114,REPAIRS-CYCLICAL (BHS),B1324,EXTERNAL DECORATIONS
GUILDFORD BOROUGH COUNCIL,RESPONSIVE & PLANNED MAINTENAN,C L C CONTRACTORS LIMITED,9829,24-Oct-19,2086657,925.84,0,EXTERNAL DECORATIONS,PROPERTY MAINTENANCE CONTRACTORS,Invoice,BACS,None,04-Oct-19,2019,7,AP84759-001,M5114,REPAIRS-CYCLICAL (BHS),B1324,EXTERNAL DECORATIONS
GUILDFORD BOROUGH COUNCIL,RESPONSIVE & PLANNED MAINTENAN,C L C CONTRACTORS LIMITED,9829,24-Oct-19,2086657,678.68,0,EXTERNAL DECORATIONS,PROPERTY MAINTENANCE CONTRACTORS,Invoice,BACS,None,04-Oct-19,2019,7,AP84759-001,M5114,REPAIRS-CYCLICAL (BHS),B1324,EXTERNAL DECORATIONS
GUILDFORD BOROUGH COUNCIL,RESPONSIVE & PLANNED MAINTENAN,C L C CONTRACTORS LIMITED,9829,24-Oct-19,2086657,320.49,0,PRE-PAINTING PROG; ALL TRADES,PROPERTY MAINTENANCE CONTRACTORS,Invoice,BACS,None,04-Oct-19,2019,7,AP84759-001,M5114,REPAIRS-CYCLICAL (BHS),B1374,PRE-PAINTING PROG; ALL TRADES
GUILDFORD BOROUGH COUNCIL,RESPONSIVE & PLANNED MAINTENAN,C L C CONTRACTORS LIMITED,9829,24-Oct-19,2086657,453.84,0,PRE-PAINTING PROG; ALL TRADES,PROPERTY MAINTENANCE CONTRACTORS,Invoice,BACS,None,04-Oct-19,2019,7,AP84759-001,M5114,REPAIRS-CYCLICAL (BHS),B1374,PRE-PAINTING PROG; ALL TRADES
GUILDFORD BOROUGH COUNCIL,RESPONSIVE & PLANNED MAINTENAN,C L C CONTRACTORS LIMITED,9829,24-Oct-19,2086657,605.12,0,PRE-PAINTING PROG; ALL TRADES,PROPERTY MAINTENANCE CONTRACTORS,Invoice,BACS,None,04-Oct-19,2019,7,AP84759-001,M5114,REPAIRS-CYCLICAL (BHS),B1374,PRE-PAINTING PROG; ALL TRADES
GUILDFORD BOROUGH COUNCIL,RESPONSIVE & PLANNED MAINTENAN,C L C CONTRACTORS LIMITED,9829,29-Oct-19,2087313,10.51,0,PRE-PAINTING PROG; ALL TRADES,PROPERTY MAINTENANCE CONTRACTORS,Invoice,BACS,None,21-Oct-19,2019,7,AP84869-001,M5114,REPAIRS-CYCLICAL (BHS),B1374,PRE-PAINTING PROG; ALL TRADES
GUILDFORD BOROUGH COUNCIL,RESPONSIVE & PLANNED MAINTENAN,C L C CONTRACTORS LIMITED,9829,24-Oct-19,2086657,2710.56,0,EXTERNAL DECORATIONS,PROPERTY MAINTENANCE CONTRACTORS,Invoice,BACS,None,04-Oct-19,2019,7,AP84759-001,M5114,REPAIRS-CYCLICAL (BHS),B1324,EXTERNAL DECORATIONS
GUILDFORD BOROUGH COUNCIL,RESPONSIVE & PLANNED MAINTENAN,C L C CONTRACTORS LIMITED,9829,29-Oct-19,2087314,503.16,0,EXTERNAL DECORATIONS,PROPERTY MAINTENANCE CONTRACTORS,Invoice,BACS,None,17-Oct-19,2019,7,AP84840-001,M5114,REPAIRS-CYCLICAL (BHS),B1324,EXTERNAL DECORATIONS
GUILDFORD BOROUGH COUNCIL,RESPONSIVE & PLANNED MAINTENAN,C L C CONTRACTORS LIMITED,9829,29-Oct-19,2087313,389.63,0,EXTERNAL DECORATIONS,PROPERTY MAINTENANCE CONTRACTORS,Invoice,BACS,None,21-Oct-19,2019,7,AP84869-001,M5114,REPAIRS-CYCLICAL (BHS),B1324,EXTERNAL DECORATIONS
GUILDFORD BOROUGH COUNCIL,RESPONSIVE & PLANNED MAINTENAN,C L C CONTRACTORS LIMITED,9829,24-Oct-19,2086657,593.12,0,EXTERNAL DECORATIONS,PROPERTY MAINTENANCE CONTRACTORS,Invoice,BACS,None,04-Oct-19,2019,7,AP84759-001,M5114,REPAIRS-CYCLICAL (BHS),B1324,EXTERNAL DECORATIONS
GUILDFORD BOROUGH COUNCIL,RESPONSIVE & PLANNED MAINTENAN,C L C CONTRACTORS LIMITED,9829,24-Oct-19,2086657,1256.63,0,PRE-PAINTING PROG; ALL TRADES,PROPERTY MAINTENANCE CONTRACTORS,Invoice,BACS,None,04-Oct-19,2019,7,AP84759-001,M5114,REPAIRS-CYCLICAL (BHS),B1374,PRE-PAINTING PROG; ALL TRADES
GUILDFORD BOROUGH COUNCIL,RESPONSIVE & PLANNED MAINTENAN,C L C CONTRACTORS LIMITED,9829,24-Oct-19,2086657,315.22,0,PRE-PAINTING PROG; ALL TRADES,PROPERTY MAINTENANCE CONTRACTORS,Invoice,BACS,None,04-Oct-19,2019,7,AP84759-001,M5114,REPAIRS-CYCLICAL (BHS),B1374,PRE-PAINTING PROG; ALL TRADES
GUILDFORD BOROUGH COUNCIL,RESPONSIVE & PLANNED MAINTENAN,C L C CONTRACTORS LIMITED,9829,29-Oct-19,2087312,210.08,0,EXTERNAL DECORATIONS,PROPERTY MAINTENANCE CONTRACTORS,Invoice,BACS,None,17-Oct-19,2019,7,AP84836-001,M5114,REPAIRS-CYCLICAL (BHS),B1324,EXTERNAL DECORATIONS
GUILDFORD BOROUGH COUNCIL,RESPONSIVE & PLANNED MAINTENAN,C L C CONTRACTORS LIMITED,9829,29-Oct-19,2087312,464.3,0,EXTERNAL DECORATIONS,PROPERTY MAINTENANCE CONTRACTORS,Invoice,BACS,None,17-Oct-19,2019,7,AP84836-001,M5114,REPAIRS-CYCLICAL (BHS),B1324,EXTERNAL DECORATIONS
GUILDFORD BOROUGH COUNCIL,RESPONSIVE & PLANNED MAINTENAN,C L C CONTRACTORS LIMITED,9829,29-Oct-19,2087312,503.16,0,EXTERNAL DECORATIONS,PROPERTY MAINTENANCE CONTRACTORS,Invoice,BACS,None,17-Oct-19,2019,7,AP84836-001,M5114,REPAIRS-CYCLICAL (BHS),B1324,EXTERNAL DECORATIONS
GUILDFORD BOROUGH COUNCIL,RESPONSIVE & PLANNED MAINTENAN,C L C CONTRACTORS LIMITED,9829,29-Oct-19,2087312,718.99,0,EXTERNAL DECORATIONS,PROPERTY MAINTENANCE CONTRACTORS,Invoice,BACS,None,17-Oct-19,2019,7,AP84836-001,M5114,REPAIRS-CYCLICAL (BHS),B1324,EXTERNAL DECORATIONS
GUILDFORD BOROUGH COUNCIL,RESPONSIVE & PLANNED MAINTENAN,C L C CONTRACTORS LIMITED,9829,24-Oct-19,2086657,245.78,0,EXTERNAL DECORATIONS,PROPERTY MAINTENANCE CONTRACTORS,Invoice,BACS,None,04-Oct-19,2019,7,AP84759-001,M5114,REPAIRS-CYCLICAL (BHS),B1324,EXTERNAL DECORATIONS
GUILDFORD BOROUGH COUNCIL,RESPONSIVE & PLANNED MAINTENAN,C L C CONTRACTORS LIMITED,9829,24-Oct-19,2086657,283.7,0,PRE-PAINTING PROG; ALL TRADES,PROPERTY MAINTENANCE CONTRACTORS,Invoice,BACS,None,04-Oct-19,2019,7,AP84759-001,M5114,REPAIRS-CYCLICAL (BHS),B1374,PRE-PAINTING PROG; ALL TRADES
GUILDFORD BOROUGH COUNCIL,RESPONSIVE & PLANNED MAINTENAN,C L C CONTRACTORS LIMITED,9829,29-Oct-19,2087312,1957.3,0,EXTERNAL DECORATIONS,PROPERTY MAINTENANCE CONTRACTORS,Invoice,BACS,None,17-Oct-19,2019,7,AP84836-001,M5114,REPAIRS-CYCLICAL (BHS),B1324,EXTERNAL DECORATIONS
GUILDFORD BOROUGH COUNCIL,RESPONSIVE & PLANNED MAINTENAN,C L C CONTRACTORS LIMITED,9829,29-Oct-19,2087313,615.5,0,EXTERNAL DECORATIONS,PROPERTY MAINTENANCE CONTRACTORS,Invoice,BACS,None,21-Oct-19,2019,7,AP84869-001,M5114,REPAIRS-CYCLICAL (BHS),B1324,EXTERNAL DECORATIONS
GUILDFORD BOROUGH COUNCIL,RESPONSIVE & PLANNED MAINTENAN,C L C CONTRACTORS LIMITED,9829,29-Oct-19,2087313,231.12,0,PRE-PAINTING PROG; ALL TRADES,PROPERTY MAINTENANCE CONTRACTORS,Invoice,BACS,None,21-Oct-19,2019,7,AP84869-001,M5114,REPAIRS-CYCLICAL (BHS),B1374,PRE-PAINTING PROG; ALL TRADES
GUILDFORD BOROUGH COUNCIL,RESPONSIVE & PLANNED MAINTENAN,C L C CONTRACTORS LIMITED,9829,29-Oct-19,2087312,1684.8,0,EXTERNAL DECORATIONS,PROPERTY MAINTENANCE CONTRACTORS,Invoice,BACS,None,17-Oct-19,2019,7,AP84836-001,M5114,REPAIRS-CYCLICAL (BHS),B1324,EXTERNAL DECORATIONS
GUILDFORD BOROUGH COUNCIL,RESPONSIVE & PLANNED MAINTENAN,C L C CONTRACTORS LIMITED,9829,24-Oct-19,2086657,2351.26,0,PRE-PAINTING PROG; ALL TRADES,PROPERTY MAINTENANCE CONTRACTORS,Invoice,BACS,None,04-Oct-19,2019,7,AP84759-001,M5114,REPAIRS-CYCLICAL (BHS),B1374,PRE-PAINTING PROG; ALL TRADES
GUILDFORD BOROUGH COUNCIL,RESPONSIVE & PLANNED MAINTENAN,C L C CONTRACTORS LIMITED,9829,24-Oct-19,2086657,718.58,0,PRE-PAINTING PROG; ALL TRADES,PROPERTY MAINTENANCE CONTRACTORS,Invoice,BACS,None,04-Oct-19,2019,7,AP84759-001,M5114,REPAIRS-CYCLICAL (BHS),B1374,PRE-PAINTING PROG; ALL TRADES
GUILDFORD BOROUGH COUNCIL,RESPONSIVE & PLANNED MAINTENAN,C L C CONTRACTORS LIMITED,9829,29-Oct-19,2087312,503.16,0,EXTERNAL DECORATIONS,PROPERTY MAINTENANCE CONTRACTORS,Invoice,BACS,None,17-Oct-19,2019,7,AP84836-001,M5114,REPAIRS-CYCLICAL (BHS),B1324,EXTERNAL DECORATIONS
GUILDFORD BOROUGH COUNCIL,RESPONSIVE & PLANNED MAINTENAN,C L C CONTRACTORS LIMITED,9829,29-Oct-19,2087312,831.9,0,EXTERNAL DECORATIONS,PROPERTY MAINTENANCE CONTRACTORS,Invoice,BACS,None,17-Oct-19,2019,7,AP84836-001,M5114,REPAIRS-CYCLICAL (BHS),B1324,EXTERNAL DECORATIONS
GUILDFORD BOROUGH COUNCIL,RESPONSIVE & PLANNED MAINTENAN,C L C CONTRACTORS LIMITED,9829,29-Oct-19,2087313,422.37,0,EXTERNAL DECORATIONS,PROPERTY MAINTENANCE CONTRACTORS,Invoice,BACS,None,21-Oct-19,2019,7,AP84869-001,M5114,REPAIRS-CYCLICAL (BHS),B1324,EXTERNAL DECORATIONS
GUILDFORD BOROUGH COUNCIL,RESPONSIVE & PLANNED MAINTENAN,C L C CONTRACTORS LIMITED,9829,29-Oct-19,2087313,677.05,0,EXTERNAL DECORATIONS,PROPERTY MAINTENANCE CONTRACTORS,Invoice,BACS,None,21-Oct-19,2019,7,AP84869-001,M5114,REPAIRS-CYCLICAL (BHS),B1324,EXTERNAL DECORATIONS
GUILDFORD BOROUGH COUNCIL,RESPONSIVE & PLANNED MAINTENAN,C L C CONTRACTORS LIMITED,9829,29-Oct-19,2087314,503.16,0,EXTERNAL DECORATIONS,PROPERTY MAINTENANCE CONTRACTORS,Invoice,BACS,None,17-Oct-19,2019,7,AP84840-001,M5114,REPAIRS-CYCLICAL (BHS),B1324,EXTERNAL DECORATIONS
GUILDFORD BOROUGH COUNCIL,RESPONSIVE & PLANNED MAINTENAN,C L C CONTRACTORS LIMITED,9829,24-Oct-19,2086657,161.74,0,EXTERNAL DECORATIONS,PROPERTY MAINTENANCE CONTRACTORS,Invoice,BACS,None,04-Oct-19,2019,7,AP84759-001,M5114,REPAIRS-CYCLICAL (BHS),B1324,EXTERNAL DECORATIONS
GUILDFORD BOROUGH COUNCIL,RESPONSIVE & PLANNED MAINTENAN,C L C CONTRACTORS LIMITED,9829,24-Oct-19,2086657,1957.3,0,EXTERNAL DECORATIONS,PROPERTY MAINTENANCE CONTRACTORS,Invoice,BACS,None,04-Oct-19,2019,7,AP84759-001,M5114,REPAIRS-CYCLICAL (BHS),B1324,EXTERNAL DECORATIONS
GUILDFORD BOROUGH COUNCIL,RESPONSIVE & PLANNED MAINTENAN,C L C CONTRACTORS LIMITED,9829,24-Oct-19,2086657,339.36,0,EXTERNAL DECORATIONS,PROPERTY MAINTENANCE CONTRACTORS,Invoice,BACS,None,04-Oct-19,2019,7,AP84759-001,M5114,REPAIRS-CYCLICAL (BHS),B1324,EXTERNAL DECORATIONS
GUILDFORD BOROUGH COUNCIL,RESPONSIVE & PLANNED MAINTENAN,C L C CONTRACTORS LIMITED,9829,24-Oct-19,2086657,5153.7,0,EXTERNAL DECORATIONS,PROPERTY MAINTENANCE CONTRACTORS,Invoice,BACS,None,04-Oct-19,2019,7,AP84759-001,M5114,REPAIRS-CYCLICAL (BHS),B1324,EXTERNAL DECORATIONS
GUILDFORD BOROUGH COUNCIL,RESPONSIVE & PLANNED MAINTENAN,C L C CONTRACTORS LIMITED,9829,29-Oct-19,2087313,503.16,0,EXTERNAL DECORATIONS,PROPERTY MAINTENANCE CONTRACTORS,Invoice,BACS,None,21-Oct-19,2019,7,AP84869-001,M5114,REPAIRS-CYCLICAL (BHS),B1324,EXTERNAL DECORATIONS
GUILDFORD BOROUGH COUNCIL,RESPONSIVE & PLANNED MAINTENAN,C L C CONTRACTORS LIMITED,9829,24-Oct-19,2086657,309.96,0,PRE-PAINTING PROG; ALL TRADES,PROPERTY MAINTENANCE CONTRACTORS,Invoice,BACS,None,04-Oct-19,2019,7,AP84759-001,M5114,REPAIRS-CYCLICAL (BHS),B1374,PRE-PAINTING PROG; ALL TRADES
GUILDFORD BOROUGH COUNCIL,RESPONSIVE & PLANNED MAINTENAN,C L C CONTRACTORS LIMITED,9829,29-Oct-19,2087313,249.97,0,EXTERNAL DECORATIONS,PROPERTY MAINTENANCE CONTRACTORS,Invoice,BACS,None,21-Oct-19,2019,7,AP84869-001,M5114,REPAIRS-CYCLICAL (BHS),B1324,EXTERNAL DECORATIONS
GUILDFORD BOROUGH COUNCIL,RESPONSIVE & PLANNED MAINTENAN,C L C CONTRACTORS LIMITED,9829,29-Oct-19,2087313,622.44,0,EXTERNAL DECORATIONS,PROPERTY MAINTENANCE CONTRACTORS,Invoice,BACS,None,21-Oct-19,2019,7,AP84869-001,M5114,REPAIRS-CYCLICAL (BHS),B1324,EXTERNAL DECORATIONS
GUILDFORD BOROUGH COUNCIL,RESPONSIVE & PLANNED MAINTENAN,C L C CONTRACTORS LIMITED,9829,24-Oct-19,2086657,84.04,0,EXTERNAL DECORATIONS,PROPERTY MAINTENANCE CONTRACTORS,Invoice,BACS,None,04-Oct-19,2019,7,AP84759-001,M5114,REPAIRS-CYCLICAL (BHS),B1324,EXTERNAL DECORATIONS
GUILDFORD BOROUGH COUNCIL,RESPONSIVE & PLANNED MAINTENAN,C L C CONTRACTORS LIMITED,9829,29-Oct-19,2087313,270.98,0,EXTERNAL DECORATIONS,PROPERTY MAINTENANCE CONTRACTORS,Invoice,BACS,None,21-Oct-19,2019,7,AP84869-001,M5114,REPAIRS-CYCLICAL (BHS),B1324,EXTERNAL DECORATIONS
GUILDFORD BOROUGH COUNCIL,RESPONSIVE & PLANNED MAINTENAN,C L C CONTRACTORS LIMITED,9829,29-Oct-19,2087313,705.32,0,EXTERNAL DECORATIONS,PROPERTY MAINTENANCE CONTRACTORS,Invoice,BACS,None,21-Oct-19,2019,7,AP84869-001,M5114,REPAIRS-CYCLICAL (BHS),B1324,EXTERNAL DECORATIONS
GUILDFORD BOROUGH COUNCIL,FLATS COMMUNAL SERVICES,C L C CONTRACTORS LIMITED,9829,24-Oct-19,2086657,346.73,0,R&M - GENERAL,PROPERTY MAINTENANCE CONTRACTORS,Invoice,BACS,None,04-Oct-19,2019,7,AP84759-001,M2953,WALDEN COTTS 11-12A (4),B1231,R&M - GENERAL
GUILDFORD BOROUGH COUNCIL,RESPONSIVE & PLANNED MAINTENAN,C L C CONTRACTORS LIMITED,9829,24-Oct-19,2086657,462.92,0,EXTERNAL DECORATIONS,PROPERTY MAINTENANCE CONTRACTORS,Invoice,BACS,None,04-Oct-19,2019,7,AP84759-001,M5114,REPAIRS-CYCLICAL (BHS),B1324,EXTERNAL DECORATIONS
GUILDFORD BOROUGH COUNCIL,RESPONSIVE & PLANNED MAINTENAN,C L C CONTRACTORS LIMITED,9829,24-Oct-19,2086657,231.16,0,PRE-PAINTING PROG; ALL TRADES,PROPERTY MAINTENANCE CONTRACTORS,Invoice,BACS,None,04-Oct-19,2019,7,AP84759-001,M5114,REPAIRS-CYCLICAL (BHS),B1374,PRE-PAINTING PROG; ALL TRADES
GUILDFORD BOROUGH COUNCIL,RESPONSIVE & PLANNED MAINTENAN,C L C CONTRACTORS LIMITED,9829,29-Oct-19,2087312,1663.8,0,EXTERNAL DECORATIONS,PROPERTY MAINTENANCE CONTRACTORS,Invoice,BACS,None,17-Oct-19,2019,7,AP84836-001,M5114,REPAIRS-CYCLICAL (BHS),B1324,EXTERNAL DECORATIONS
GUILDFORD BOROUGH COUNCIL,RESPONSIVE & PLANNED MAINTENAN,C L C CONTRACTORS LIMITED,9829,29-Oct-19,2087312,389.63,0,EXTERNAL DECORATIONS,PROPERTY MAINTENANCE CONTRACTORS,Invoice,BACS,None,17-Oct-19,2019,7,AP84836-001,M5114,REPAIRS-CYCLICAL (BHS),B1324,EXTERNAL DECORATIONS
GUILDFORD BOROUGH COUNCIL,RESPONSIVE & PLANNED MAINTENAN,C L C CONTRACTORS LIMITED,9829,29-Oct-19,2087313,295.14,0,EXTERNAL DECORATIONS,PROPERTY MAINTENANCE CONTRACTORS,Invoice,BACS,None,21-Oct-19,2019,7,AP84869-001,M5114,REPAIRS-CYCLICAL (BHS),B1324,EXTERNAL DECORATIONS
GUILDFORD BOROUGH COUNCIL,GUILDFORD HOUSE,CASTLE WATER LIMITED,89638,29-Oct-19,2087228,204.35,0,WATER BY METER,MAINS WATER SUPPLIERS,Invoice,BACS,None,15-Oct-19,2019,7,02287177,A4511,GUILDFORD HOUSE ADMINISTRATION,B4221,WATER BY METER
GUILDFORD BOROUGH COUNCIL,RESPONSIVE & PLANNED MAINTENAN,C L C CONTRACTORS LIMITED,9829,24-Oct-19,2086657,1004.45,0,PRE-PAINTING PROG; ALL TRADES,PROPERTY MAINTENANCE CONTRACTORS,Invoice,BACS,None,04-Oct-19,2019,7,AP84759-001,M5114,REPAIRS-CYCLICAL (BHS),B1374,PRE-PAINTING PROG; ALL TRADES
GUILDFORD BOROUGH COUNCIL,VEHICLE MAINTENANCE,CERTAS ENERGY UK LIMITED,7593,08-Oct-19,2082459,1756.05,0,FUEL & OIL,OIL FUEL SUPPLIERS,Invoice,BACS,None,19-Sep-19,2019,7,2977951,K5551,VEHICLE MAINTENANCE,C1321,FUEL & OIL
GUILDFORD BOROUGH COUNCIL,DAY SERVICES,CHAMBERS WASTE MANAGEMENT PLC,1275,17-Oct-19,2084142,306,0,R&M - GENERAL,OTHER WASTE DISPOSAL SUPPLIERS,Invoice,BACS,None,30-Sep-19,2019,7,P366060,C8189,CENTRAL HUB PARK BARN,B1231,R&M - GENERAL
GUILDFORD BOROUGH COUNCIL,BUILDING MAINTENANCE,CHAMBERS WASTE MANAGEMENT PLC,1275,15-Oct-19,2080554,744,0,TIPPING FEES,OTHER WASTE DISPOSAL SUPPLIERS,Invoice,BACS,None,07-Sep-19,2019,7,P364438,K1515,BUILDING MAINTENANCE,D4489,TIPPING FEES
GUILDFORD BOROUGH COUNCIL,BUILDING MAINTENANCE,CHAMBERS WASTE MANAGEMENT PLC,1275,15-Oct-19,2080592,664.75,0,TIPPING FEES,OTHER WASTE DISPOSAL SUPPLIERS,Invoice,BACS,None,07-Sep-19,2019,7,P364184,K1515,BUILDING MAINTENANCE,D4489,TIPPING FEES
GUILDFORD BOROUGH COUNCIL,BUILDING MAINTENANCE,CHAMBERS WASTE MANAGEMENT PLC,1275,22-Oct-19,2081664,1349.57,0,TIPPING FEES,OTHER WASTE DISPOSAL SUPPLIERS,Invoice,BACS,None,14-Sep-19,2019,7,P364607,K1515,BUILDING MAINTENANCE,D4489,TIPPING FEES
GUILDFORD BOROUGH COUNCIL,BUILDING MAINTENANCE,CHAMBERS WASTE MANAGEMENT PLC,1275,22-Oct-19,2081665,341,0,MATERIALS; DIRECT TO SITE,OTHER WASTE DISPOSAL SUPPLIERS,Invoice,BACS,None,14-Sep-19,2019,7,P364610,K1515,BUILDING MAINTENANCE,D1543,MATERIALS; DIRECT TO SITE
GUILDFORD BOROUGH COUNCIL,BUILDING MAINTENANCE,CHAMBERS WASTE MANAGEMENT PLC,1275,29-Oct-19,2084143,779.48,0,TIPPING FEES,OTHER WASTE DISPOSAL SUPPLIERS,Invoice,BACS,None,30-Sep-19,2019,7,P366058,K1515,BUILDING MAINTENANCE,D4489,TIPPING FEES
GUILDFORD BOROUGH COUNCIL,STREET CLEANSING,CHAMBERS RUNFOLD PLC,1274,08-Oct-19,2067982,600,0,PAYMENT TO CONTRACTORS,QUARRY AND AGGREGATES SUPPLIERS,Invoice,BACS,None,12-Jun-19,2019,7,149399,K4551,STREET CLEANSING,D4468,PAYMENT TO CONTRACTORS
GUILDFORD BOROUGH COUNCIL,STREET CLEANSING,CHAMBERS RUNFOLD PLC,1274,08-Oct-19,2080555,300,0,PAYMENT TO CONTRACTORS,QUARRY AND AGGREGATES SUPPLIERS,Invoice,BACS,None,13-Jun-19,2019,7,0000003732,K4551,STREET CLEANSING,D4468,PAYMENT TO CONTRACTORS
GUILDFORD BOROUGH COUNCIL,BUILDING MAINTENANCE,CERTSURE LLP,6193,10-Oct-19,2084516,24,0,GENERAL SUBSCRIPTIONS,PROFESSIONAL ASSOCIATIONS,Invoice,BACS,None,09-Sep-19,2019,7,0086632172,K1515,BUILDING MAINTENANCE,D7497,GENERAL SUBSCRIPTIONS
GUILDFORD BOROUGH COUNCIL,STOCKS,CERTAS ENERGY UK LIMITED,7593,22-Oct-19,2084762,15462.94,0,PURCHASES,OIL FUEL SUPPLIERS,Invoice,BACS,None,30-Sep-19,2019,7,3012458,I03001,FUEL (FLEET MNGT),2591,PURCHASES
GUILDFORD BOROUGH COUNCIL,CEMETERIES,CASTLE WATER LIMITED,89638,08-Oct-19,2083412,366.04,0,WATER BY METER,MAINS WATER SUPPLIERS,Invoice,BACS,None,17-Sep-19,2019,7,02216928,A1432,STOKE CEMET MESSROOM TOOLSHED,B4221,WATER BY METER
GUILDFORD BOROUGH COUNCIL,STOCKS,CERTAS ENERGY UK LIMITED,7593,22-Oct-19,2084940,2897.5,0,PURCHASES,OIL FUEL SUPPLIERS,Invoice,BACS,None,03-Oct-19,2019,7,3623944,I03001,FUEL (FLEET MNGT),2591,PURCHASES
GUILDFORD BOROUGH COUNCIL,BUILDING MAINTENANCE,CHAMBERS WASTE MANAGEMENT PLC,1275,22-Oct-19,2081757,279,0,TIPPING FEES,OTHER WASTE DISPOSAL SUPPLIERS,Invoice,BACS,None,14-Sep-19,2019,7,P365041,K1515,BUILDING MAINTENANCE,D4489,TIPPING FEES
GUILDFORD BOROUGH COUNCIL,VEHICLE MAINTENANCE,CERTAS ENERGY UK LIMITED,7593,08-Oct-19,2082458,15489.47,0,FUEL & OIL,OIL FUEL SUPPLIERS,Invoice,BACS,None,19-Sep-19,2019,7,2977883,K5551,VEHICLE MAINTENANCE,C1321,FUEL & OIL
GUILDFORD BOROUGH COUNCIL,RENOVATIONS,CENTRAL LINEMARKINGS LTD,1258,24-Oct-19,2086618,250,0,CONTRACT PYTS-MAIN CONTRACTOR,ROAD MARKING SERVICE PROVIDERS,Invoice,BACS,None,27-Sep-19,2019,7,51901,N40272,DISABLED ADAPTS 2019-20,1233,CONTRACT PYTS-MAIN CONTRACTOR
GUILDFORD BOROUGH COUNCIL,OFF STREET PARKING,CEMPLAS W & C R LIMITED,66801,17-Oct-19,2085460,95703.44,0,CONTRACT PYTS-MAIN CONTRACTOR,OTHER CONSTRUCTION CONTRACTORS,Invoice,BACS,None,25-Sep-19,2019,7,22885/11585,P37524,MSCP DECK SURFACE & BARRIERS,1233,CONTRACT PYTS-MAIN CONTRACTOR
GUILDFORD BOROUGH COUNCIL,MAJOR PROJECTS,CAUSE4,97101,10-Oct-19,2084377,2495,0,CONSULTANTS (ADVICE),OTHER CONSTRUCTION CONSULTANTS,Invoice,BACS,None,22-Aug-19,2019,7,202416,F5620,GUILDFORD MUSEUM REDEVELOPMENT,D4520,CONSULTANTS (ADVICE)
GUILDFORD BOROUGH COUNCIL,MAJOR PROJECTS,CAUSE4,97101,10-Oct-19,2084050,2495,0,CONSULTANTS (ADVICE),OTHER CONSTRUCTION CONSULTANTS,Invoice,BACS,None,21-Aug-19,2019,7,202415,F5620,GUILDFORD MUSEUM REDEVELOPMENT,D4520,CONSULTANTS (ADVICE)
GUILDFORD BOROUGH COUNCIL,BUILDING MAINTENANCE,CATALIN ZAHARIA,95448,10-Oct-19,2084502,952.2,0,PAYMENT TO CONTRACTORS,PAINTERS AND DECORATORS,Invoice,BACS,None,04-Oct-19,2019,7,ORD X0068084,K1515,BUILDING MAINTENANCE,D4468,PAYMENT TO CONTRACTORS
GUILDFORD BOROUGH COUNCIL,BUILDING MAINTENANCE,CATALIN ZAHARIA,95448,10-Oct-19,2084501,781,0,PAYMENT TO CONTRACTORS,PAINTERS AND DECORATORS,Invoice,BACS,None,04-Oct-19,2019,7,ORD X0068084,K1515,BUILDING MAINTENANCE,D4468,PAYMENT TO CONTRACTORS
GUILDFORD BOROUGH COUNCIL,BUILDING MAINTENANCE,CATALIN ZAHARIA,95448,10-Oct-19,2084500,1412.3,0,PAYMENT TO CONTRACTORS,PAINTERS AND DECORATORS,Invoice,BACS,None,04-Oct-19,2019,7,ORD X0068084,K1515,BUILDING MAINTENANCE,D4468,PAYMENT TO CONTRACTORS
GUILDFORD BOROUGH COUNCIL,MARKETS,CASTLE WATER LIMITED,89638,29-Oct-19,2087233,1.08,0,WATER BY METER,MAINS WATER SUPPLIERS,Invoice,BACS,None,15-Oct-19,2019,7,02286902,B5721,NORTH STREET MARKET,B4221,WATER BY METER
GUILDFORD BOROUGH COUNCIL,SHELTERED HOUSING,CASTLE WATER LIMITED,89638,29-Oct-19,2087235,2.62,0,WATER BY METER,MAINS WATER SUPPLIERS,Invoice,BACS,None,15-Oct-19,2019,7,02287081,M1580,61 SHAWFIELD ROAD,B4221,WATER BY METER
GUILDFORD BOROUGH COUNCIL,FLATS COMMUNAL SERVICES,CASTLE WATER LIMITED,89638,29-Oct-19,2086816,8.72,0,WATER BY METER,MAINS WATER SUPPLIERS,Invoice,BACS,None,13-Oct-19,2019,7,2285329,M2618,SANDMORE FLATS,B4221,WATER BY METER
GUILDFORD BOROUGH COUNCIL,VEHICLE MAINTENANCE,CERTAS ENERGY UK LIMITED,7593,15-Oct-19,2083801,13550.3,0,FUEL & OIL,OIL FUEL SUPPLIERS,Invoice,BACS,None,29-Aug-19,2019,7,2879323,K5551,VEHICLE MAINTENANCE,C1321,FUEL & OIL
GUILDFORD BOROUGH COUNCIL,HOMELESSNESS,CHASE INVENTORY SERVICES LTD,42781,17-Oct-19,2084407,100,0,BUILDING CONDITION SURVEYS,REMOVAL SERVICE PROVIDERS,Invoice,BACS,None,01-Oct-19,2019,7,100488,C3316,EMERGENCY ACCOMMODATION,D4420,BUILDING CONDITION SURVEYS
GUILDFORD BOROUGH COUNCIL,LEGAL SERVICES,COMENSURA LTD,32435,17-Oct-19,2085497,390.49,0,AGENCY STAFF,OTHER RECRUITMENT AGENCIES AND SERVICE PROVIDERS,Invoice,BACS,None,15-Oct-19,2019,7,1033875,G4525,LEGAL SERVICES,A5191,AGENCY STAFF
GUILDFORD BOROUGH COUNCIL,HOMELESSNESS,CHASE INVENTORY SERVICES LTD,42781,29-Oct-19,2075176,85,0,BUILDING CONDITION SURVEYS,REMOVAL SERVICE PROVIDERS,Invoice,BACS,None,07-Aug-19,2019,7,99356,C3316,EMERGENCY ACCOMMODATION,D4420,BUILDING CONDITION SURVEYS
GUILDFORD BOROUGH COUNCIL,HOMELESSNESS,CHASE INVENTORY SERVICES LTD,42781,29-Oct-19,2074345,85,0,BUILDING CONDITION SURVEYS,REMOVAL SERVICE PROVIDERS,Invoice,BACS,None,30-Jul-19,2019,7,99089,C3316,EMERGENCY ACCOMMODATION,D4420,BUILDING CONDITION SURVEYS
GUILDFORD BOROUGH COUNCIL,HOMELESSNESS,CHASE INVENTORY SERVICES LTD,42781,29-Oct-19,2086608,75,0,BUILDING CONDITION SURVEYS,REMOVAL SERVICE PROVIDERS,Invoice,BACS,None,17-Oct-19,2019,7,100757,C3316,EMERGENCY ACCOMMODATION,D4420,BUILDING CONDITION SURVEYS
GUILDFORD BOROUGH COUNCIL,HOMELESSNESS,CHASE INVENTORY SERVICES LTD,42781,29-Oct-19,2085972,85,0,BUILDING CONDITION SURVEYS,REMOVAL SERVICE PROVIDERS,Invoice,BACS,None,09-Oct-19,2019,7,100633,C3316,EMERGENCY ACCOMMODATION,D4420,BUILDING CONDITION SURVEYS
GUILDFORD BOROUGH COUNCIL,HOMELESSNESS,CHASE INVENTORY SERVICES LTD,42781,29-Oct-19,2085971,85,0,BUILDING CONDITION SURVEYS,REMOVAL SERVICE PROVIDERS,Invoice,BACS,None,09-Oct-19,2019,7,100634,C3316,EMERGENCY ACCOMMODATION,D4420,BUILDING CONDITION SURVEYS
GUILDFORD BOROUGH COUNCIL,HOMELESSNESS,CHASE INVENTORY SERVICES LTD,42781,29-Oct-19,2086341,75,0,BUILDING CONDITION SURVEYS,REMOVAL SERVICE PROVIDERS,Invoice,BACS,None,14-Oct-19,2019,7,100717,C3316,EMERGENCY ACCOMMODATION,D4420,BUILDING CONDITION SURVEYS
GUILDFORD BOROUGH COUNCIL,HOMELESSNESS,CHASE INVENTORY SERVICES LTD,42781,29-Oct-19,2072650,85,0,BUILDING CONDITION SURVEYS,REMOVAL SERVICE PROVIDERS,Invoice,BACS,None,17-Jul-19,2019,7,98866,C3316,EMERGENCY ACCOMMODATION,D4420,BUILDING CONDITION SURVEYS
GUILDFORD BOROUGH COUNCIL,HOMELESSNESS,CHASE INVENTORY SERVICES LTD,42781,17-Oct-19,2084406,75,0,BUILDING CONDITION SURVEYS,REMOVAL SERVICE PROVIDERS,Invoice,BACS,None,01-Oct-19,2019,7,100487,C3316,EMERGENCY ACCOMMODATION,D4420,BUILDING CONDITION SURVEYS
GUILDFORD BOROUGH COUNCIL,HOMELESSNESS,CHASE INVENTORY SERVICES LTD,42781,29-Oct-19,2086607,75,0,BUILDING CONDITION SURVEYS,REMOVAL SERVICE PROVIDERS,Invoice,BACS,None,17-Oct-19,2019,7,100758,C3316,EMERGENCY ACCOMMODATION,D4420,BUILDING CONDITION SURVEYS
GUILDFORD BOROUGH COUNCIL,HOMELESSNESS,CHASE INVENTORY SERVICES LTD,42781,29-Oct-19,2086609,85,0,BUILDING CONDITION SURVEYS,REMOVAL SERVICE PROVIDERS,Invoice,BACS,None,14-Oct-19,2019,7,100744,C3316,EMERGENCY ACCOMMODATION,D4420,BUILDING CONDITION SURVEYS
GUILDFORD BOROUGH COUNCIL,BUILDING MAINTENANCE,CHAMBERS WASTE MANAGEMENT PLC,1275,22-Oct-19,2082822,294,0,TIPPING FEES,OTHER WASTE DISPOSAL SUPPLIERS,Invoice,BACS,None,21-Sep-19,2019,7,P365665,K1515,BUILDING MAINTENANCE,D4489,TIPPING FEES
GUILDFORD BOROUGH COUNCIL,HOMELESSNESS,REDACTED,0,01-Oct-19,2082823,100,0,BONDS CLAIMED,REMOVAL SERVICE PROVIDERS,Invoice,BACS,None,24-Sep-19,2019,7,REDACTED,C3316,EMERGENCY ACCOMMODATION,D4525,BONDS CLAIMED
GUILDFORD BOROUGH COUNCIL,BUILDING MAINTENANCE,CHAMBERS WASTE MANAGEMENT PLC,1275,22-Oct-19,2081662,52.3,0,TIPPING FEES,OTHER WASTE DISPOSAL SUPPLIERS,Invoice,BACS,None,14-Sep-19,2019,7,P36409,K1515,BUILDING MAINTENANCE,D4489,TIPPING FEES
GUILDFORD BOROUGH COUNCIL,HOMELESSNESS,CHASE INVENTORY SERVICES LTD,42781,01-Oct-19,2082824,100,0,BUILDING CONDITION SURVEYS,REMOVAL SERVICE PROVIDERS,Invoice,BACS,None,24-Sep-19,2019,7,100376,C3316,EMERGENCY ACCOMMODATION,D4420,BUILDING CONDITION SURVEYS
GUILDFORD BOROUGH COUNCIL,HOMELESSNESS,CHASE INVENTORY SERVICES LTD,42781,29-Oct-19,2074335,85,0,BUILDING CONDITION SURVEYS,REMOVAL SERVICE PROVIDERS,Invoice,BACS,None,30-Jul-19,2019,7,99090,C3316,EMERGENCY ACCOMMODATION,D4420,BUILDING CONDITION SURVEYS
GUILDFORD BOROUGH COUNCIL,CREMATORIUM,CHAMBERS WASTE MANAGEMENT PLC,1275,29-Oct-19,2084774,27.58,0,EQUIP. & TOOLS HIRE,OTHER WASTE DISPOSAL SUPPLIERS,Invoice,BACS,None,30-Sep-19,2019,7,P365779,A1500,GUILDFORD CREMATORIUM,D1430,EQUIP. & TOOLS HIRE
GUILDFORD BOROUGH COUNCIL,BUILDING MAINTENANCE,CHAMBERS WASTE MANAGEMENT PLC,1275,15-Oct-19,2080591,52.3,0,TIPPING FEES,OTHER WASTE DISPOSAL SUPPLIERS,Invoice,BACS,None,07-Sep-19,2019,7,P364185,K1515,BUILDING MAINTENANCE,D4489,TIPPING FEES
GUILDFORD BOROUGH COUNCIL,BUILDING MAINTENANCE,CHAMBERS WASTE MANAGEMENT PLC,1275,22-Oct-19,2082833,52.3,0,TIPPING FEES,OTHER WASTE DISPOSAL SUPPLIERS,Invoice,BACS,None,21-Sep-19,2019,7,P365418,K1515,BUILDING MAINTENANCE,D4489,TIPPING FEES
GUILDFORD BOROUGH COUNCIL,CREMATORIUM,CHAMBERS WASTE MANAGEMENT PLC,1275,15-Oct-19,2081642,27.58,0,EQUIP. & TOOLS HIRE,OTHER WASTE DISPOSAL SUPPLIERS,Invoice,BACS,None,14-Sep-19,2019,7,P364869,A1500,GUILDFORD CREMATORIUM,D1430,EQUIP. & TOOLS HIRE
GUILDFORD BOROUGH COUNCIL,CREMATORIUM,CHAMBERS WASTE MANAGEMENT PLC,1275,15-Oct-19,2082774,27.58,0,EQUIP. & TOOLS HIRE,OTHER WASTE DISPOSAL SUPPLIERS,Invoice,BACS,None,21-Sep-19,2019,7,P365141,A1500,GUILDFORD CREMATORIUM,D1430,EQUIP. & TOOLS HIRE
GUILDFORD BOROUGH COUNCIL,BUILDING MAINTENANCE,CHAMBERS WASTE MANAGEMENT PLC,1275,22-Oct-19,2082832,1510.21,0,TIPPING FEES,OTHER WASTE DISPOSAL SUPPLIERS,Invoice,BACS,None,21-Sep-19,2019,7,P365417,K1515,BUILDING MAINTENANCE,D4489,TIPPING FEES
GUILDFORD BOROUGH COUNCIL,BUILDING MAINTENANCE,CHAMBERS WASTE MANAGEMENT PLC,1275,08-Oct-19,2075194,515.59,0,TIPPING FEES,OTHER WASTE DISPOSAL SUPPLIERS,Invoice,BACS,None,31-Jul-19,2019,7,P354339,K1515,BUILDING MAINTENANCE,D4489,TIPPING FEES
GUILDFORD BOROUGH COUNCIL,CREMATORIUM,CHAMBERS WASTE MANAGEMENT PLC,1275,15-Oct-19,2081660,545.88,0,REMOVAL OF REFUSE,OTHER WASTE DISPOSAL SUPPLIERS,Invoice,BACS,None,14-Sep-19,2019,7,P364611,A1500,GUILDFORD CREMATORIUM,B6261,REMOVAL OF REFUSE
GUILDFORD BOROUGH COUNCIL,PARKS & COUNTRYSIDE,CASTLE WATER LIMITED,89638,29-Oct-19,2086815,8.53,0,WATER BY METER,MAINS WATER SUPPLIERS,Invoice,BACS,None,13-Oct-19,2019,7,2284669,A1265,CARDWELLS KEEP,B4221,WATER BY METER
GUILDFORD BOROUGH COUNCIL,HOMELESSNESS,CHASE INVENTORY SERVICES LTD,42781,29-Oct-19,2085970,85,0,BUILDING CONDITION SURVEYS,REMOVAL SERVICE PROVIDERS,Invoice,BACS,None,09-Oct-19,2019,7,100635,C3316,EMERGENCY ACCOMMODATION,D4420,BUILDING CONDITION SURVEYS
GUILDFORD BOROUGH COUNCIL,DAY SERVICES,CASTLE WATER LIMITED,89638,29-Oct-19,2087236,34.52,0,WATER BY METER,MAINS WATER SUPPLIERS,Invoice,BACS,None,15-Oct-19,2019,7,02286802,C8188,WEST HUB SHAWFIELD,B4221,WATER BY METER
GUILDFORD BOROUGH COUNCIL,GUILDHALL,CASTLE WATER LIMITED,89638,29-Oct-19,2086217,36.7,0,WATER BY METER,MAINS WATER SUPPLIERS,Invoice,BACS,None,08-Oct-19,2019,7,2270645,F3311,GUILDHALL,B4221,WATER BY METER
GUILDFORD BOROUGH COUNCIL,WOKING ROAD DEPOT,CASTLE WATER LIMITED,89638,15-Oct-19,2084905,2836.92,0,WATER BY METER,MAINS WATER SUPPLIERS,Invoice,BACS,None,01-Oct-19,2019,7,TE00201630,B4452,WOKING ROAD DEPOT,B4221,WATER BY METER
GUILDFORD BOROUGH COUNCIL,MUSEUM,CASTLE WATER LIMITED,89638,29-Oct-19,2086818,7.84,0,WATER BY METER,MAINS WATER SUPPLIERS,Invoice,BACS,None,13-Oct-19,2019,7,2281621,A5531,UNDERCROFT 72/74 HIGH STREET,B4221,WATER BY METER
GUILDFORD BOROUGH COUNCIL,PARKS & COUNTRYSIDE,CASTLE WATER LIMITED,89638,29-Oct-19,2086820,2.32,0,WATER BY METER,MAINS WATER SUPPLIERS,Invoice,BACS,None,13-Oct-19,2019,7,2283115,A1250,STOKE PARK,B4221,WATER BY METER
GUILDFORD BOROUGH COUNCIL,FLATS COMMUNAL SERVICES,CASTLE WATER LIMITED,89638,22-Oct-19,2086106,534.73,0,WATER BY METER,MAINS WATER SUPPLIERS,Invoice,BACS,None,08-Oct-19,2019,7,2270659,M3513,EPSOM ROAD EQUITY SHARE,B4221,WATER BY METER
GUILDFORD BOROUGH COUNCIL,MUSEUM,CASTLE WATER LIMITED,89638,29-Oct-19,2087230,1.36,0,WATER BY METER,MAINS WATER SUPPLIERS,Invoice,BACS,None,15-Oct-19,2019,7,02286818,A5531,UNDERCROFT 72/74 HIGH STREET,B4221,WATER BY METER
GUILDFORD BOROUGH COUNCIL,GARAGE MANAGEMENT,CASTLE WATER LIMITED,89638,29-Oct-19,2087224,7.12,0,WATER BY METER,MAINS WATER SUPPLIERS,Invoice,BACS,None,15-Oct-19,2019,7,02287127,M1172,GARAGE MANAGEMENT (BHS),B4221,WATER BY METER
GUILDFORD BOROUGH COUNCIL,PARKS & COUNTRYSIDE,CASTLE WATER LIMITED,89638,03-Oct-19,2083140,428.37,0,WATER BY METER,MAINS WATER SUPPLIERS,Invoice,BACS,None,12-Sep-19,2019,7,02208481,A1285,ONSLOW VILLAGE RECREATION GROU,B4221,WATER BY METER
GUILDFORD BOROUGH COUNCIL,PARKS & COUNTRYSIDE,CASTLE WATER LIMITED,89638,08-Oct-19,2083415,1559.87,0,WATER BY METER,MAINS WATER SUPPLIERS,Invoice,BACS,None,17-Sep-19,2019,7,02217054,A1270,WOODBRIDGE ROAD,B4221,WATER BY METER
GUILDFORD BOROUGH COUNCIL,GYPSY AND TRAVELLER SITES,CASTLE WATER LIMITED,89638,29-Oct-19,2086734,160.24,0,WATER BY METER,MAINS WATER SUPPLIERS,Invoice,BACS,None,13-Oct-19,2019,7,TW-2978918484,C1521,COBBETTS CLOSE,B4221,WATER BY METER
GUILDFORD BOROUGH COUNCIL,PARKS & COUNTRYSIDE,CASTLE WATER LIMITED,89638,29-Oct-19,2086831,632.68,0,WATER BY METER,MAINS WATER SUPPLIERS,Invoice,BACS,None,13-Oct-19,2019,7,2281090,A1248,STOKE PARK PADD POOL PLANT RM,B4221,WATER BY METER
GUILDFORD BOROUGH COUNCIL,PARKS & COUNTRYSIDE,CASTLE WATER LIMITED,89638,22-Oct-19,2086105,9.39,0,WATER BY METER,MAINS WATER SUPPLIERS,Invoice,BACS,None,08-Oct-19,2019,7,2271513,A1250,STOKE PARK,B4221,WATER BY METER
GUILDFORD BOROUGH COUNCIL,MARKETS,CASTLE WATER LIMITED,89638,29-Oct-19,2086832,6.95,0,WATER BY METER,MAINS WATER SUPPLIERS,Invoice,BACS,None,13-Oct-19,2019,7,2284187,B5721,NORTH STREET MARKET,B4221,WATER BY METER
GUILDFORD BOROUGH COUNCIL,GYPSY AND TRAVELLER SITES,CASTLE WATER LIMITED,89638,29-Oct-19,2086723,851.63,0,WATER BY METER,MAINS WATER SUPPLIERS,Invoice,BACS,None,13-Oct-19,2019,7,TW-6229862057,C1511,ASH BRIDGE CARAVAN SITE,B4221,WATER BY METER
GUILDFORD BOROUGH COUNCIL,PUBLIC CONVENIENCES,CASTLE WATER LIMITED,89638,29-Oct-19,2086744,12.99,0,WATER BY METER,MAINS WATER SUPPLIERS,Invoice,BACS,None,13-Oct-19,2019,7,2283611,K6563,NORTH STREET - URINAL,B4221,WATER BY METER
GUILDFORD BOROUGH COUNCIL,PARKS & COUNTRYSIDE,CASTLE WATER LIMITED,89638,22-Oct-19,2086115,16.93,0,WATER BY METER,MAINS WATER SUPPLIERS,Invoice,BACS,None,08-Oct-19,2019,7,2269837,A1600,STOKE NURSERY DEPOT,B4221,WATER BY METER
GUILDFORD BOROUGH COUNCIL,PARKS & COUNTRYSIDE,CASTLE WATER LIMITED,89638,22-Oct-19,2085540,2.92,0,WATER BY METER,MAINS WATER SUPPLIERS,Invoice,BACS,None,05-Oct-19,2019,7,2263264,A1300,TREES & COUNTRYSIDE,B4221,WATER BY METER
GUILDFORD BOROUGH COUNCIL,PUBLIC CONVENIENCES,CASTLE WATER LIMITED,89638,22-Oct-19,2086099,107.1,0,WATER BY METER,MAINS WATER SUPPLIERS,Invoice,BACS,None,08-Oct-19,2019,7,2269894,K6561,WARD STREET PUB CON,B4221,WATER BY METER
GUILDFORD BOROUGH COUNCIL,PARKS & COUNTRYSIDE,CASTLE WATER LIMITED,89638,22-Oct-19,2086102,175.04,0,WATER BY METER,MAINS WATER SUPPLIERS,Invoice,BACS,None,08-Oct-19,2019,7,2272034,A1220,SHALFORD PARK,B4221,WATER BY METER
GUILDFORD BOROUGH COUNCIL,GYPSY AND TRAVELLER SITES,CASTLE WATER LIMITED,89638,29-Oct-19,2087225,51.55,0,WATER BY METER,MAINS WATER SUPPLIERS,Invoice,BACS,None,15-Oct-19,2019,7,02286883,C1521,COBBETTS CLOSE,B4221,WATER BY METER
GUILDFORD BOROUGH COUNCIL,CEMETERIES,CASTLE WATER LIMITED,89638,29-Oct-19,2086740,18.3,0,WATER BY METER,MAINS WATER SUPPLIERS,Invoice,BACS,None,13-Oct-19,2019,7,2281736,A1420,THE MOUNT CEMETERY,B4221,WATER BY METER
GUILDFORD BOROUGH COUNCIL,INDUSTRIAL ESTATES,CASTLE WATER LIMITED,89638,29-Oct-19,2086722,41.55,0,WATER BY METER,MAINS WATER SUPPLIERS,Invoice,BACS,None,13-Oct-19,2019,7,2281941,B5376,SLYFIELD FOUND UNITS (RECH),B4221,WATER BY METER
GUILDFORD BOROUGH COUNCIL,OFFICE SERVICES TEAM,CASTLE WATER LIMITED,89638,22-Oct-19,2086114,735.2,0,WATER BY METER,MAINS WATER SUPPLIERS,Invoice,BACS,None,08-Oct-19,2019,7,2271316,G7511,MILLMEAD HOUSE,B4221,WATER BY METER
GUILDFORD BOROUGH COUNCIL,PUBLIC CONVENIENCES,CASTLE WATER LIMITED,89638,22-Oct-19,2086112,18.71,0,WATER BY METER,MAINS WATER SUPPLIERS,Invoice,BACS,None,08-Oct-19,2019,7,2269672,K6562,WOODBRIDGE ROAD TOILETS,B4221,WATER BY METER
GUILDFORD BOROUGH COUNCIL,CEMETERIES,CASTLE WATER LIMITED,89638,29-Oct-19,2086746,75.43,0,WATER BY METER,MAINS WATER SUPPLIERS,Invoice,BACS,None,13-Oct-19,2019,7,2282913,A1432,STOKE CEMET MESSROOM TOOLSHED,B4221,WATER BY METER
GUILDFORD BOROUGH COUNCIL,GYPSY AND TRAVELLER SITES,CASTLE WATER LIMITED,89638,08-Oct-19,2083424,880.02,0,WATER BY METER,MAINS WATER SUPPLIERS,Invoice,BACS,None,15-Sep-19,2019,7,2211609,C1511,ASH BRIDGE CARAVAN SITE,B4221,WATER BY METER
GUILDFORD BOROUGH COUNCIL,OFF STREET PARKING,CASTLE WATER LIMITED,89638,29-Oct-19,2086817,8.12,0,WATER BY METER,MAINS WATER SUPPLIERS,Invoice,BACS,None,13-Oct-19,2019,7,2283023,B2277,CASTLE MSCP,B4221,WATER BY METER
GUILDFORD BOROUGH COUNCIL,PARKS & COUNTRYSIDE,CASTLE WATER LIMITED,89638,29-Oct-19,2086830,260.93,0,WATER BY METER,MAINS WATER SUPPLIERS,Invoice,BACS,None,13-Oct-19,2019,7,2283767,A1270,WOODBRIDGE ROAD,B4221,WATER BY METER
GUILDFORD BOROUGH COUNCIL,OFF STREET PARKING,CASTLE WATER LIMITED,89638,22-Oct-19,2086110,22.75,0,WATER BY METER,MAINS WATER SUPPLIERS,Invoice,BACS,None,08-Oct-19,2019,7,2269563,B2257,LEAPALE ROAD MSCP,B4221,WATER BY METER
GUILDFORD BOROUGH COUNCIL,PUBLIC CONVENIENCES,CASTLE WATER LIMITED,89638,22-Oct-19,2084998,-405.74,0,WATER BY METER,MAINS WATER SUPPLIERS,Credit Note,,None,25-Sep-19,2019,7,02237710,K6549,FARNHAM ROAD MSCP PUB CON,B4221,WATER BY METER
GUILDFORD BOROUGH COUNCIL,PARKS & COUNTRYSIDE,CASTLE WATER LIMITED,89638,22-Oct-19,2084949,-145.79,0,WATER BY METER,MAINS WATER SUPPLIERS,Credit Note,,None,25-Sep-19,2019,7,02237331,A1340,CHANTRY WOOD,B4221,WATER BY METER
GUILDFORD BOROUGH COUNCIL,PUBLIC CONVENIENCES,CASTLE WATER LIMITED,89638,22-Oct-19,2086100,76.22,0,WATER BY METER,MAINS WATER SUPPLIERS,Invoice,BACS,None,08-Oct-19,2019,7,2270392,K6560,TUNSGATE PUB CON,B4221,WATER BY METER
GUILDFORD BOROUGH COUNCIL,PARKS & COUNTRYSIDE,CASTLE WATER LIMITED,89638,29-Oct-19,2087231,168.22,0,WATER BY METER,MAINS WATER SUPPLIERS,Invoice,BACS,None,15-Oct-19,2019,7,02286860,A1248,STOKE PARK PADD POOL PLANT RM,B4221,WATER BY METER
GUILDFORD BOROUGH COUNCIL,PARKS & COUNTRYSIDE,CASTLE WATER LIMITED,89638,29-Oct-19,2087234,0.4,0,WATER BY METER,MAINS WATER SUPPLIERS,Invoice,BACS,None,15-Oct-19,2019,7,02286839,A1600,STOKE NURSERY DEPOT,B4221,WATER BY METER
GUILDFORD BOROUGH COUNCIL,PARK & RIDE SERVICES,CASTLE WATER LIMITED,89638,29-Oct-19,2086827,2.63,0,WATER BY METER,MAINS WATER SUPPLIERS,Invoice,BACS,None,13-Oct-19,2019,7,2283773,B5201,ARTINGTON PARK & RIDE,B4221,WATER BY METER
GUILDFORD BOROUGH COUNCIL,SHELTERED HOUSING,CASTLE WATER LIMITED,89638,22-Oct-19,2086109,123.19,0,WATER BY METER,MAINS WATER SUPPLIERS,Invoice,BACS,None,08-Oct-19,2019,7,2270257,M1515,SHELTERED ACCOMODATION,B4221,WATER BY METER
GUILDFORD BOROUGH COUNCIL,PARKS & COUNTRYSIDE,CASTLE WATER LIMITED,89638,22-Oct-19,2086103,1.73,0,WATER BY METER,MAINS WATER SUPPLIERS,Invoice,BACS,None,08-Oct-19,2019,7,2271200,A1220,SHALFORD PARK,B4221,WATER BY METER
GUILDFORD BOROUGH COUNCIL,CEMETERIES,CASTLE WATER LIMITED,89638,29-Oct-19,2086721,1.82,0,WATER BY METER,MAINS WATER SUPPLIERS,Invoice,BACS,None,13-Oct-19,2019,7,2280942,A1420,THE MOUNT CEMETERY,B4221,WATER BY METER
GUILDFORD BOROUGH COUNCIL,PARKS & COUNTRYSIDE,CASTLE WATER LIMITED,89638,29-Oct-19,2087227,56.72,0,WATER BY METER,MAINS WATER SUPPLIERS,Invoice,BACS,None,15-Oct-19,2019,7,02287060,A1250,STOKE PARK,B4221,WATER BY METER
GUILDFORD BOROUGH COUNCIL,INDUSTRIAL ESTATES,CASTLE WATER LIMITED,89638,08-Oct-19,2083418,94.49,0,WATER BY METER,MAINS WATER SUPPLIERS,Invoice,BACS,None,17-Sep-19,2019,7,02217261,B5376,SLYFIELD FOUND UNITS (RECH),B4221,WATER BY METER
GUILDFORD BOROUGH COUNCIL,CEMETERIES,CASTLE WATER LIMITED,89638,29-Oct-19,2086747,12.73,0,WATER BY METER,MAINS WATER SUPPLIERS,Invoice,BACS,None,13-Oct-19,2019,7,TW--6366S78043,A1430,STOKE CEMETERY,B4221,WATER BY METER
GUILDFORD BOROUGH COUNCIL,GARAGE MANAGEMENT,CASTLE WATER LIMITED,89638,22-Oct-19,2086113,2.19,0,WATER BY METER,MAINS WATER SUPPLIERS,Invoice,BACS,None,08-Oct-19,2019,7,2269532,M1172,GARAGE MANAGEMENT (BHS),B4221,WATER BY METER
GUILDFORD BOROUGH COUNCIL,OFF STREET PARKING,CASTLE WATER LIMITED,89638,22-Oct-19,2086116,54.91,0,WATER BY METER,MAINS WATER SUPPLIERS,Invoice,BACS,None,08-Oct-19,2019,7,2270341,B2219,BEDFORD ROAD MSCP,B4221,WATER BY METER
GUILDFORD BOROUGH COUNCIL,CREMATORIUM,CASTLE WATER LIMITED,89638,22-Oct-19,2086118,124.4,0,WATER BY METER,MAINS WATER SUPPLIERS,Invoice,BACS,None,08-Oct-19,2019,7,2269728,A1500,GUILDFORD CREMATORIUM,B4221,WATER BY METER
GUILDFORD BOROUGH COUNCIL,Investment Property,CASTLE WATER LIMITED,89638,22-Oct-19,2086111,40.64,0,WATER BY METER,MAINS WATER SUPPLIERS,Invoice,BACS,None,08-Oct-19,2019,7,2269880,B6131,HAYDON PLACE 15 - 17,B4221,WATER BY METER
GUILDFORD BOROUGH COUNCIL,GUILDFORD HOUSE,CASTLE WATER LIMITED,89638,22-Oct-19,2086101,100.64,0,WATER BY METER,MAINS WATER SUPPLIERS,Invoice,BACS,None,08-Oct-19,2019,7,2272688,A4511,GUILDFORD HOUSE ADMINISTRATION,B4221,WATER BY METER
GUILDFORD BOROUGH COUNCIL,SHELTERED HOUSING,CASTLE WATER LIMITED,89638,22-Oct-19,2086104,435.43,0,WATER BY METER,MAINS WATER SUPPLIERS,Invoice,BACS,None,08-Oct-19,2019,7,2270549,M1515,SHELTERED ACCOMODATION,B4221,WATER BY METER
GUILDFORD BOROUGH COUNCIL,PARKS & COUNTRYSIDE,CASTLE WATER LIMITED,89638,22-Oct-19,2086107,32.77,0,WATER BY METER,MAINS WATER SUPPLIERS,Invoice,BACS,None,08-Oct-19,2019,7,2272571,A1250,STOKE PARK,B4221,WATER BY METER
GUILDFORD BOROUGH COUNCIL,OFFICE SERVICES TEAM,CASTLE WATER LIMITED,89638,29-Oct-19,2087229,2394.4,0,WATER BY METER,MAINS WATER SUPPLIERS,Invoice,BACS,None,15-Oct-19,2019,7,02286939,G7511,MILLMEAD HOUSE,B4221,WATER BY METER
GUILDFORD BOROUGH COUNCIL,PARKS & COUNTRYSIDE,CASTLE WATER LIMITED,89638,29-Oct-19,2086819,1.73,0,WATER BY METER,MAINS WATER SUPPLIERS,Invoice,BACS,None,13-Oct-19,2019,7,2281427,A1600,STOKE NURSERY DEPOT,B4221,WATER BY METER
GUILDFORD BOROUGH COUNCIL,DAY SERVICES,CHEESMAN BROTHERS LIMITED,1291,03-Oct-19,2083160,472.29,0,FOOD PURCHASES,FRUIT AND VEGETABLE SUPPLIERS,Invoice,BACS,None,28-Sep-19,2019,7,818572,C8188,WEST HUB SHAWFIELD,D1832,FOOD PURCHASES
GUILDFORD BOROUGH COUNCIL,DAY SERVICES,CASTLE WATER LIMITED,89638,29-Oct-19,2087232,21.31,0,WATER BY METER,MAINS WATER SUPPLIERS,Invoice,BACS,None,15-Oct-19,2019,7,02287251,C8189,CENTRAL HUB PARK BARN,B4221,WATER BY METER
GUILDFORD BOROUGH COUNCIL,MOT BAY,COMENSURA LTD,32435,31-Oct-19,2087717,-2.2,0,AGENCY STAFF,OTHER RECRUITMENT AGENCIES AND SERVICE PROVIDERS,Invoice,BACS,None,29-Oct-19,2019,7,1034565,V8598,MOT STATION,A5191,AGENCY STAFF
GUILDFORD BOROUGH COUNCIL,DEVELOPMENT CONTROL,COMENSURA LTD,32435,31-Oct-19,2087717,-1.02,0,AGENCY STAFF,OTHER RECRUITMENT AGENCIES AND SERVICE PROVIDERS,Invoice,BACS,None,29-Oct-19,2019,7,1034565,D5200,DEVELOPMENT CONTROL NON FEE,A5191,AGENCY STAFF
GUILDFORD BOROUGH COUNCIL,POLICY,COMENSURA LTD,32435,31-Oct-19,2087717,-2.31,0,AGENCY STAFF,OTHER RECRUITMENT AGENCIES AND SERVICE PROVIDERS,Invoice,BACS,None,29-Oct-19,2019,7,1034565,D5300,POLICY,A5191,AGENCY STAFF
GUILDFORD BOROUGH COUNCIL,MOT BAY,COMENSURA LTD,32435,31-Oct-19,2087717,747.4,0,AGENCY STAFF,OTHER RECRUITMENT AGENCIES AND SERVICE PROVIDERS,Invoice,BACS,None,29-Oct-19,2019,7,1034565,V8598,MOT STATION,A5191,AGENCY STAFF
GUILDFORD BOROUGH COUNCIL,FOOD AND SAFETY SERVICES,COMENSURA LTD,32435,31-Oct-19,2087717,881.77,0,AGENCY STAFF,OTHER RECRUITMENT AGENCIES AND SERVICE PROVIDERS,Invoice,BACS,None,29-Oct-19,2019,7,1034565,C1111,FOOD AND SAFETY SERVICES,A5191,AGENCY STAFF
GUILDFORD BOROUGH COUNCIL,REFUSE AND RECYCLING,COMENSURA LTD,32435,31-Oct-19,2087717,106.15,0,AGENCY STAFF,OTHER RECRUITMENT AGENCIES AND SERVICE PROVIDERS,Invoice,BACS,None,29-Oct-19,2019,7,1034565,B7766,KERBSIDE RECYCLING,A5191,AGENCY STAFF
GUILDFORD BOROUGH COUNCIL,REFUSE AND RECYCLING,COMENSURA LTD,32435,31-Oct-19,2087717,84.6,0,AGENCY STAFF,OTHER RECRUITMENT AGENCIES AND SERVICE PROVIDERS,Invoice,BACS,None,29-Oct-19,2019,7,1034565,B7766,KERBSIDE RECYCLING,A5191,AGENCY STAFF
GUILDFORD BOROUGH COUNCIL,REFUSE AND RECYCLING,COMENSURA LTD,32435,24-Oct-19,2086865,603.45,0,AGENCY STAFF,OTHER RECRUITMENT AGENCIES AND SERVICE PROVIDERS,Invoice,BACS,None,22-Oct-19,2019,7,1034221,B7744,GREEN WASTE,A5191,AGENCY STAFF
GUILDFORD BOROUGH COUNCIL,REFUSE AND RECYCLING,COMENSURA LTD,32435,31-Oct-19,2087717,-1.34,0,AGENCY STAFF,OTHER RECRUITMENT AGENCIES AND SERVICE PROVIDERS,Invoice,BACS,None,29-Oct-19,2019,7,1034565,B7766,KERBSIDE RECYCLING,A5191,AGENCY STAFF
GUILDFORD BOROUGH COUNCIL,DEVELOPMENT CONTROL,COMENSURA LTD,32435,10-Oct-19,2084581,553.62,0,AGENCY STAFF,OTHER RECRUITMENT AGENCIES AND SERVICE PROVIDERS,Invoice,BACS,None,08-Oct-19,2019,7,1033540,D5100,DEVELOPMENT CONTROL - FEE EARN,A5191,AGENCY STAFF
GUILDFORD BOROUGH COUNCIL,REFUSE AND RECYCLING,COMENSURA LTD,32435,03-Oct-19,2083312,338.4,0,AGENCY STAFF,OTHER RECRUITMENT AGENCIES AND SERVICE PROVIDERS,Invoice,BACS,None,01-Oct-19,2019,7,1033170,B7766,KERBSIDE RECYCLING,A5191,AGENCY STAFF
GUILDFORD BOROUGH COUNCIL,REFUSE AND RECYCLING,COMENSURA LTD,32435,03-Oct-19,2083312,78.6,0,AGENCY STAFF,OTHER RECRUITMENT AGENCIES AND SERVICE PROVIDERS,Invoice,BACS,None,01-Oct-19,2019,7,1033170,B7766,KERBSIDE RECYCLING,A5191,AGENCY STAFF
GUILDFORD BOROUGH COUNCIL,STREET CLEANSING,COMENSURA LTD,32435,03-Oct-19,2083312,1069.28,0,AGENCY STAFF,OTHER RECRUITMENT AGENCIES AND SERVICE PROVIDERS,Invoice,BACS,None,01-Oct-19,2019,7,1033170,K4551,STREET CLEANSING,A5191,AGENCY STAFF
GUILDFORD BOROUGH COUNCIL,REFUSE AND RECYCLING,COMENSURA LTD,32435,03-Oct-19,2083312,101.24,0,AGENCY STAFF,OTHER RECRUITMENT AGENCIES AND SERVICE PROVIDERS,Invoice,BACS,None,01-Oct-19,2019,7,1033170,B7744,GREEN WASTE,A5191,AGENCY STAFF
GUILDFORD BOROUGH COUNCIL,STREET CLEANSING,COMENSURA LTD,32435,24-Oct-19,2086865,-1.9,0,AGENCY STAFF,OTHER RECRUITMENT AGENCIES AND SERVICE PROVIDERS,Invoice,BACS,None,22-Oct-19,2019,7,1034221,K4551,STREET CLEANSING,A5191,AGENCY STAFF
GUILDFORD BOROUGH COUNCIL,DEVELOPMENT CONTROL,COMENSURA LTD,32435,24-Oct-19,2086865,-1.14,0,AGENCY STAFF,OTHER RECRUITMENT AGENCIES AND SERVICE PROVIDERS,Invoice,BACS,None,22-Oct-19,2019,7,1034221,D5200,DEVELOPMENT CONTROL NON FEE,A5191,AGENCY STAFF
GUILDFORD BOROUGH COUNCIL,STREET CLEANSING,COMENSURA LTD,32435,31-Oct-19,2087717,417.36,0,AGENCY STAFF,OTHER RECRUITMENT AGENCIES AND SERVICE PROVIDERS,Invoice,BACS,None,29-Oct-19,2019,7,1034565,K4551,STREET CLEANSING,A5191,AGENCY STAFF
GUILDFORD BOROUGH COUNCIL,STREET CLEANSING,COMENSURA LTD,32435,17-Oct-19,2085497,442.13,0,AGENCY STAFF,OTHER RECRUITMENT AGENCIES AND SERVICE PROVIDERS,Invoice,BACS,None,15-Oct-19,2019,7,1033875,K4551,STREET CLEANSING,A5191,AGENCY STAFF
GUILDFORD BOROUGH COUNCIL,REFUSE AND RECYCLING,COMENSURA LTD,32435,24-Oct-19,2086865,84.6,0,AGENCY STAFF,OTHER RECRUITMENT AGENCIES AND SERVICE PROVIDERS,Invoice,BACS,None,22-Oct-19,2019,7,1034221,B7744,GREEN WASTE,A5191,AGENCY STAFF
GUILDFORD BOROUGH COUNCIL,REFUSE AND RECYCLING,COMENSURA LTD,32435,24-Oct-19,2086865,499.71,0,AGENCY STAFF,OTHER RECRUITMENT AGENCIES AND SERVICE PROVIDERS,Invoice,BACS,None,22-Oct-19,2019,7,1034221,K3551,REFUSE COLLECTION,A5191,AGENCY STAFF
GUILDFORD BOROUGH COUNCIL,REFUSE AND RECYCLING,COMENSURA LTD,32435,03-Oct-19,2083312,504.33,0,AGENCY STAFF,OTHER RECRUITMENT AGENCIES AND SERVICE PROVIDERS,Invoice,BACS,None,01-Oct-19,2019,7,1033170,B7766,KERBSIDE RECYCLING,A5191,AGENCY STAFF
GUILDFORD BOROUGH COUNCIL,STREET CLEANSING,COMENSURA LTD,32435,03-Oct-19,2083312,-2.28,0,AGENCY STAFF,OTHER RECRUITMENT AGENCIES AND SERVICE PROVIDERS,Invoice,BACS,None,01-Oct-19,2019,7,1033170,K4551,STREET CLEANSING,A5191,AGENCY STAFF
GUILDFORD BOROUGH COUNCIL,MUSEUM,COMENSURA LTD,32435,17-Oct-19,2085497,548.7,0,AGENCY STAFF,OTHER RECRUITMENT AGENCIES AND SERVICE PROVIDERS,Invoice,BACS,None,15-Oct-19,2019,7,1033875,A5511,MUSEUM,A5191,AGENCY STAFF
GUILDFORD BOROUGH COUNCIL,REFUSE AND RECYCLING,COMENSURA LTD,32435,17-Oct-19,2085497,219.59,0,AGENCY STAFF,OTHER RECRUITMENT AGENCIES AND SERVICE PROVIDERS,Invoice,BACS,None,15-Oct-19,2019,7,1033875,B7766,KERBSIDE RECYCLING,A5191,AGENCY STAFF
GUILDFORD BOROUGH COUNCIL,STREET CLEANSING,COMENSURA LTD,32435,10-Oct-19,2084581,442.13,0,AGENCY STAFF,OTHER RECRUITMENT AGENCIES AND SERVICE PROVIDERS,Invoice,BACS,None,08-Oct-19,2019,7,1033540,K4551,STREET CLEANSING,A5191,AGENCY STAFF
GUILDFORD BOROUGH COUNCIL,REFUSE AND RECYCLING,COMENSURA LTD,32435,17-Oct-19,2085497,169.2,0,AGENCY STAFF,OTHER RECRUITMENT AGENCIES AND SERVICE PROVIDERS,Invoice,BACS,None,15-Oct-19,2019,7,1033875,B7744,GREEN WASTE,A5191,AGENCY STAFF
GUILDFORD BOROUGH COUNCIL,STREET CLEANSING,COMENSURA LTD,32435,31-Oct-19,2087717,332.76,0,AGENCY STAFF,OTHER RECRUITMENT AGENCIES AND SERVICE PROVIDERS,Invoice,BACS,None,29-Oct-19,2019,7,1034565,K4551,STREET CLEANSING,A5191,AGENCY STAFF
GUILDFORD BOROUGH COUNCIL,STREET CLEANSING,COMENSURA LTD,32435,10-Oct-19,2084581,580.56,0,AGENCY STAFF,OTHER RECRUITMENT AGENCIES AND SERVICE PROVIDERS,Invoice,BACS,None,08-Oct-19,2019,7,1033540,K4551,STREET CLEANSING,A5191,AGENCY STAFF
GUILDFORD BOROUGH COUNCIL,STREET CLEANSING,COMENSURA LTD,32435,10-Oct-19,2084581,417.36,0,AGENCY STAFF,OTHER RECRUITMENT AGENCIES AND SERVICE PROVIDERS,Invoice,BACS,None,08-Oct-19,2019,7,1033540,K4551,STREET CLEANSING,A5191,AGENCY STAFF
GUILDFORD BOROUGH COUNCIL,STREET CLEANSING,COMENSURA LTD,32435,10-Oct-19,2084581,-1.48,0,AGENCY STAFF,OTHER RECRUITMENT AGENCIES AND SERVICE PROVIDERS,Invoice,BACS,None,08-Oct-19,2019,7,1033540,K4551,STREET CLEANSING,A5191,AGENCY STAFF
GUILDFORD BOROUGH COUNCIL,REFUSE AND RECYCLING,COMENSURA LTD,32435,10-Oct-19,2084581,94.75,0,AGENCY STAFF,OTHER RECRUITMENT AGENCIES AND SERVICE PROVIDERS,Invoice,BACS,None,08-Oct-19,2019,7,1033540,B7744,GREEN WASTE,A5191,AGENCY STAFF
GUILDFORD BOROUGH COUNCIL,REFUSE AND RECYCLING,COMENSURA LTD,32435,10-Oct-19,2084581,559.91,0,AGENCY STAFF,OTHER RECRUITMENT AGENCIES AND SERVICE PROVIDERS,Invoice,BACS,None,08-Oct-19,2019,7,1033540,K3551,REFUSE COLLECTION,A5191,AGENCY STAFF
GUILDFORD BOROUGH COUNCIL,REFUSE AND RECYCLING,COMENSURA LTD,32435,10-Oct-19,2084581,123.64,0,AGENCY STAFF,OTHER RECRUITMENT AGENCIES AND SERVICE PROVIDERS,Invoice,BACS,None,08-Oct-19,2019,7,1033540,K3551,REFUSE COLLECTION,A5191,AGENCY STAFF
GUILDFORD BOROUGH COUNCIL,STREET CLEANSING,COMENSURA LTD,32435,24-Oct-19,2086865,332.76,0,AGENCY STAFF,OTHER RECRUITMENT AGENCIES AND SERVICE PROVIDERS,Invoice,BACS,None,22-Oct-19,2019,7,1034221,K4551,STREET CLEANSING,A5191,AGENCY STAFF
GUILDFORD BOROUGH COUNCIL,POLICY,COMENSURA LTD,32435,17-Oct-19,2085497,745.51,0,AGENCY STAFF,OTHER RECRUITMENT AGENCIES AND SERVICE PROVIDERS,Invoice,BACS,None,15-Oct-19,2019,7,1033875,D5300,POLICY,A5191,AGENCY STAFF
GUILDFORD BOROUGH COUNCIL,DEVELOPMENT CONTROL,COMENSURA LTD,32435,24-Oct-19,2086865,518.32,0,AGENCY STAFF,OTHER RECRUITMENT AGENCIES AND SERVICE PROVIDERS,Invoice,BACS,None,22-Oct-19,2019,7,1034221,D5200,DEVELOPMENT CONTROL NON FEE,A5191,AGENCY STAFF
GUILDFORD BOROUGH COUNCIL,LEGAL SERVICES,COMENSURA LTD,32435,03-Oct-19,2083312,266.24,0,AGENCY STAFF,OTHER RECRUITMENT AGENCIES AND SERVICE PROVIDERS,Invoice,BACS,None,01-Oct-19,2019,7,1033170,G4525,LEGAL SERVICES,A5191,AGENCY STAFF
GUILDFORD BOROUGH COUNCIL,DEVELOPMENT CONTROL,COMENSURA LTD,32435,03-Oct-19,2083312,596.07,0,AGENCY STAFF,OTHER RECRUITMENT AGENCIES AND SERVICE PROVIDERS,Invoice,BACS,None,01-Oct-19,2019,7,1033170,D5100,DEVELOPMENT CONTROL - FEE EARN,A5191,AGENCY STAFF
GUILDFORD BOROUGH COUNCIL,REFUSE AND RECYCLING,COMENSURA LTD,32435,03-Oct-19,2083312,84.6,0,AGENCY STAFF,OTHER RECRUITMENT AGENCIES AND SERVICE PROVIDERS,Invoice,BACS,None,01-Oct-19,2019,7,1033170,B7744,GREEN WASTE,A5191,AGENCY STAFF
GUILDFORD BOROUGH COUNCIL,REFUSE AND RECYCLING,COMENSURA LTD,32435,03-Oct-19,2083312,417.36,0,AGENCY STAFF,OTHER RECRUITMENT AGENCIES AND SERVICE PROVIDERS,Invoice,BACS,None,01-Oct-19,2019,7,1033170,B7766,KERBSIDE RECYCLING,A5191,AGENCY STAFF
GUILDFORD BOROUGH COUNCIL,REFUSE AND RECYCLING,COMENSURA LTD,32435,03-Oct-19,2083312,333.03,0,AGENCY STAFF,OTHER RECRUITMENT AGENCIES AND SERVICE PROVIDERS,Invoice,BACS,None,01-Oct-19,2019,7,1033170,B7766,KERBSIDE RECYCLING,A5191,AGENCY STAFF
GUILDFORD BOROUGH COUNCIL,REFUSE AND RECYCLING,COMENSURA LTD,32435,03-Oct-19,2083312,-1.76,0,AGENCY STAFF,OTHER RECRUITMENT AGENCIES AND SERVICE PROVIDERS,Invoice,BACS,None,01-Oct-19,2019,7,1033170,B7766,KERBSIDE RECYCLING,A5191,AGENCY STAFF
GUILDFORD BOROUGH COUNCIL,STREET CLEANSING,COMENSURA LTD,32435,24-Oct-19,2086865,560.18,0,AGENCY STAFF,OTHER RECRUITMENT AGENCIES AND SERVICE PROVIDERS,Invoice,BACS,None,22-Oct-19,2019,7,1034221,K4551,STREET CLEANSING,A5191,AGENCY STAFF
GUILDFORD BOROUGH COUNCIL,DEVELOPMENT CONTROL,COMENSURA LTD,32435,24-Oct-19,2086865,539.68,0,AGENCY STAFF,OTHER RECRUITMENT AGENCIES AND SERVICE PROVIDERS,Invoice,BACS,None,22-Oct-19,2019,7,1034221,D5100,DEVELOPMENT CONTROL - FEE EARN,A5191,AGENCY STAFF
GUILDFORD BOROUGH COUNCIL,DEVELOPMENT CONTROL,COMENSURA LTD,32435,31-Oct-19,2087717,503.75,0,AGENCY STAFF,OTHER RECRUITMENT AGENCIES AND SERVICE PROVIDERS,Invoice,BACS,None,29-Oct-19,2019,7,1034565,D5100,DEVELOPMENT CONTROL - FEE EARN,A5191,AGENCY STAFF
GUILDFORD BOROUGH COUNCIL,OFF STREET PARKING,COMENSURA LTD,32435,24-Oct-19,2086865,729.99,0,AGENCY STAFF,OTHER RECRUITMENT AGENCIES AND SERVICE PROVIDERS,Invoice,BACS,None,22-Oct-19,2019,7,1034221,B2111,CAR PARKS - ADMINISTRATION,A5191,AGENCY STAFF
GUILDFORD BOROUGH COUNCIL,STREET CLEANSING,COMENSURA LTD,32435,24-Oct-19,2086865,504.68,0,AGENCY STAFF,OTHER RECRUITMENT AGENCIES AND SERVICE PROVIDERS,Invoice,BACS,None,22-Oct-19,2019,7,1034221,K4551,STREET CLEANSING,A5191,AGENCY STAFF
GUILDFORD BOROUGH COUNCIL,STREET CLEANSING,COMENSURA LTD,32435,24-Oct-19,2086865,-1.18,0,AGENCY STAFF,OTHER RECRUITMENT AGENCIES AND SERVICE PROVIDERS,Invoice,BACS,None,22-Oct-19,2019,7,1034221,K4551,STREET CLEANSING,A5191,AGENCY STAFF
GUILDFORD BOROUGH COUNCIL,REFUSE AND RECYCLING,COMENSURA LTD,32435,24-Oct-19,2086865,-1.68,0,AGENCY STAFF,OTHER RECRUITMENT AGENCIES AND SERVICE PROVIDERS,Invoice,BACS,None,22-Oct-19,2019,7,1034221,K3551,REFUSE COLLECTION,A5191,AGENCY STAFF
GUILDFORD BOROUGH COUNCIL,LEGAL SERVICES,COMENSURA LTD,32435,24-Oct-19,2086865,399.36,0,AGENCY STAFF,OTHER RECRUITMENT AGENCIES AND SERVICE PROVIDERS,Invoice,BACS,None,22-Oct-19,2019,7,1034221,G4525,LEGAL SERVICES,A5191,AGENCY STAFF
GUILDFORD BOROUGH COUNCIL,DEVELOPMENT CONTROL,COMENSURA LTD,32435,24-Oct-19,2086865,284,0,AGENCY STAFF,OTHER RECRUITMENT AGENCIES AND SERVICE PROVIDERS,Invoice,BACS,None,22-Oct-19,2019,7,1034221,D5100,DEVELOPMENT CONTROL - FEE EARN,A5191,AGENCY STAFF
GUILDFORD BOROUGH COUNCIL,REFUSE AND RECYCLING,COMENSURA LTD,32435,03-Oct-19,2083312,338.38,0,AGENCY STAFF,OTHER RECRUITMENT AGENCIES AND SERVICE PROVIDERS,Invoice,BACS,None,01-Oct-19,2019,7,1033170,B7744,GREEN WASTE,A5191,AGENCY STAFF
GUILDFORD BOROUGH COUNCIL,STREET CLEANSING,COMENSURA LTD,32435,10-Oct-19,2084581,560.18,0,AGENCY STAFF,OTHER RECRUITMENT AGENCIES AND SERVICE PROVIDERS,Invoice,BACS,None,08-Oct-19,2019,7,1033540,K4551,STREET CLEANSING,A5191,AGENCY STAFF
GUILDFORD BOROUGH COUNCIL,REFUSE AND RECYCLING,COMENSURA LTD,32435,17-Oct-19,2085497,501.72,0,AGENCY STAFF,OTHER RECRUITMENT AGENCIES AND SERVICE PROVIDERS,Invoice,BACS,None,15-Oct-19,2019,7,1033875,B7711,RECYCLING ADMINISTRATION,A5191,AGENCY STAFF
GUILDFORD BOROUGH COUNCIL,REFUSE AND RECYCLING,COMENSURA LTD,32435,17-Oct-19,2085497,163.56,0,AGENCY STAFF,OTHER RECRUITMENT AGENCIES AND SERVICE PROVIDERS,Invoice,BACS,None,15-Oct-19,2019,7,1033875,B7744,GREEN WASTE,A5191,AGENCY STAFF
GUILDFORD BOROUGH COUNCIL,REFUSE AND RECYCLING,COMENSURA LTD,32435,17-Oct-19,2085497,270.32,0,AGENCY STAFF,OTHER RECRUITMENT AGENCIES AND SERVICE PROVIDERS,Invoice,BACS,None,15-Oct-19,2019,7,1033875,B7766,KERBSIDE RECYCLING,A5191,AGENCY STAFF
GUILDFORD BOROUGH COUNCIL,BUILDING CONTROL SUMMARY,COMENSURA LTD,32435,17-Oct-19,2085497,501.72,0,AGENCY STAFF,OTHER RECRUITMENT AGENCIES AND SERVICE PROVIDERS,Invoice,BACS,None,15-Oct-19,2019,7,1033875,D5700,BUILDING CONTROL - FEE,A5191,AGENCY STAFF
GUILDFORD BOROUGH COUNCIL,STREET CLEANSING,COMENSURA LTD,32435,17-Oct-19,2085497,-2.05,0,AGENCY STAFF,OTHER RECRUITMENT AGENCIES AND SERVICE PROVIDERS,Invoice,BACS,None,15-Oct-19,2019,7,1033875,K4551,STREET CLEANSING,A5191,AGENCY STAFF
GUILDFORD BOROUGH COUNCIL,REFUSE AND RECYCLING,COMENSURA LTD,32435,10-Oct-19,2084581,499.71,0,AGENCY STAFF,OTHER RECRUITMENT AGENCIES AND SERVICE PROVIDERS,Invoice,BACS,None,08-Oct-19,2019,7,1033540,K3551,REFUSE COLLECTION,A5191,AGENCY STAFF
GUILDFORD BOROUGH COUNCIL,MOT BAY,COMENSURA LTD,32435,31-Oct-19,2087717,737.63,0,AGENCY STAFF,OTHER RECRUITMENT AGENCIES AND SERVICE PROVIDERS,Invoice,BACS,None,29-Oct-19,2019,7,1034565,V8598,MOT STATION,A5191,AGENCY STAFF
GUILDFORD BOROUGH COUNCIL,REFUSE AND RECYCLING,COMENSURA LTD,32435,10-Oct-19,2084581,163.56,0,AGENCY STAFF,OTHER RECRUITMENT AGENCIES AND SERVICE PROVIDERS,Invoice,BACS,None,08-Oct-19,2019,7,1033540,K3551,REFUSE COLLECTION,A5191,AGENCY STAFF
GUILDFORD BOROUGH COUNCIL,REFUSE AND RECYCLING,COMENSURA LTD,32435,31-Oct-19,2087717,446.47,0,AGENCY STAFF,OTHER RECRUITMENT AGENCIES AND SERVICE PROVIDERS,Invoice,BACS,None,29-Oct-19,2019,7,1034565,B7766,KERBSIDE RECYCLING,A5191,AGENCY STAFF
GUILDFORD BOROUGH COUNCIL,DEVELOPMENT CONTROL,COMENSURA LTD,32435,10-Oct-19,2084581,-1.34,0,AGENCY STAFF,OTHER RECRUITMENT AGENCIES AND SERVICE PROVIDERS,Invoice,BACS,None,08-Oct-19,2019,7,1033540,D5200,DEVELOPMENT CONTROL NON FEE,A5191,AGENCY STAFF
GUILDFORD BOROUGH COUNCIL,REFUSE AND RECYCLING,COMENSURA LTD,32435,31-Oct-19,2087717,78.6,0,AGENCY STAFF,OTHER RECRUITMENT AGENCIES AND SERVICE PROVIDERS,Invoice,BACS,None,29-Oct-19,2019,7,1034565,B7766,KERBSIDE RECYCLING,A5191,AGENCY STAFF
GUILDFORD BOROUGH COUNCIL,REFUSE AND RECYCLING,COMENSURA LTD,32435,31-Oct-19,2087717,-1.34,0,AGENCY STAFF,OTHER RECRUITMENT AGENCIES AND SERVICE PROVIDERS,Invoice,BACS,None,29-Oct-19,2019,7,1034565,B7744,GREEN WASTE,A5191,AGENCY STAFF
GUILDFORD BOROUGH COUNCIL,STREET CLEANSING,COMENSURA LTD,32435,31-Oct-19,2087717,524.52,0,AGENCY STAFF,OTHER RECRUITMENT AGENCIES AND SERVICE PROVIDERS,Invoice,BACS,None,29-Oct-19,2019,7,1034565,K4551,STREET CLEANSING,A5191,AGENCY STAFF
GUILDFORD BOROUGH COUNCIL,REFUSE AND RECYCLING,COMENSURA LTD,32435,31-Oct-19,2087717,419.81,0,AGENCY STAFF,OTHER RECRUITMENT AGENCIES AND SERVICE PROVIDERS,Invoice,BACS,None,29-Oct-19,2019,7,1034565,B7766,KERBSIDE RECYCLING,A5191,AGENCY STAFF
GUILDFORD BOROUGH COUNCIL,STREET CLEANSING,COMENSURA LTD,32435,31-Oct-19,2087717,539.46,0,AGENCY STAFF,OTHER RECRUITMENT AGENCIES AND SERVICE PROVIDERS,Invoice,BACS,None,29-Oct-19,2019,7,1034565,K4551,STREET CLEANSING,A5191,AGENCY STAFF
GUILDFORD BOROUGH COUNCIL,REFUSE AND RECYCLING,COMENSURA LTD,32435,24-Oct-19,2086865,559.91,0,AGENCY STAFF,OTHER RECRUITMENT AGENCIES AND SERVICE PROVIDERS,Invoice,BACS,None,22-Oct-19,2019,7,1034221,B7744,GREEN WASTE,A5191,AGENCY STAFF
GUILDFORD BOROUGH COUNCIL,REFUSE AND RECYCLING,COMENSURA LTD,32435,10-Oct-19,2084581,-1.68,0,AGENCY STAFF,OTHER RECRUITMENT AGENCIES AND SERVICE PROVIDERS,Invoice,BACS,None,08-Oct-19,2019,7,1033540,B7744,GREEN WASTE,A5191,AGENCY STAFF
GUILDFORD BOROUGH COUNCIL,STREET CLEANSING,COMENSURA LTD,32435,17-Oct-19,2085497,417.36,0,AGENCY STAFF,OTHER RECRUITMENT AGENCIES AND SERVICE PROVIDERS,Invoice,BACS,None,15-Oct-19,2019,7,1033875,K4551,STREET CLEANSING,A5191,AGENCY STAFF
GUILDFORD BOROUGH COUNCIL,DEVELOPMENT CONTROL,COMENSURA LTD,32435,31-Oct-19,2087717,-1.1,0,AGENCY STAFF,OTHER RECRUITMENT AGENCIES AND SERVICE PROVIDERS,Invoice,BACS,None,29-Oct-19,2019,7,1034565,D5100,DEVELOPMENT CONTROL - FEE EARN,A5191,AGENCY STAFF
GUILDFORD BOROUGH COUNCIL,REFUSE AND RECYCLING,COMENSURA LTD,32435,31-Oct-19,2087717,559.91,0,AGENCY STAFF,OTHER RECRUITMENT AGENCIES AND SERVICE PROVIDERS,Invoice,BACS,None,29-Oct-19,2019,7,1034565,B7766,KERBSIDE RECYCLING,A5191,AGENCY STAFF
GUILDFORD BOROUGH COUNCIL,MOT BAY,COMENSURA LTD,32435,31-Oct-19,2087717,-2.22,0,AGENCY STAFF,OTHER RECRUITMENT AGENCIES AND SERVICE PROVIDERS,Invoice,BACS,None,29-Oct-19,2019,7,1034565,V8598,MOT STATION,A5191,AGENCY STAFF
GUILDFORD BOROUGH COUNCIL,MUSEUM,COMENSURA LTD,32435,31-Oct-19,2087717,548.7,0,AGENCY STAFF,OTHER RECRUITMENT AGENCIES AND SERVICE PROVIDERS,Invoice,BACS,None,29-Oct-19,2019,7,1034565,A5511,MUSEUM,A5191,AGENCY STAFF
GUILDFORD BOROUGH COUNCIL,REFUSE AND RECYCLING,COMENSURA LTD,32435,17-Oct-19,2085497,559.91,0,AGENCY STAFF,OTHER RECRUITMENT AGENCIES AND SERVICE PROVIDERS,Invoice,BACS,None,15-Oct-19,2019,7,1033875,B7744,GREEN WASTE,A5191,AGENCY STAFF
GUILDFORD BOROUGH COUNCIL,DEVELOPMENT CONTROL,COMENSURA LTD,32435,17-Oct-19,2085497,-1.14,0,AGENCY STAFF,OTHER RECRUITMENT AGENCIES AND SERVICE PROVIDERS,Invoice,BACS,None,15-Oct-19,2019,7,1033875,D5100,DEVELOPMENT CONTROL - FEE EARN,A5191,AGENCY STAFF
GUILDFORD BOROUGH COUNCIL,REFUSE AND RECYCLING,COMENSURA LTD,32435,10-Oct-19,2084581,501.96,0,AGENCY STAFF,OTHER RECRUITMENT AGENCIES AND SERVICE PROVIDERS,Invoice,BACS,None,08-Oct-19,2019,7,1033540,K3551,REFUSE COLLECTION,A5191,AGENCY STAFF
GUILDFORD BOROUGH COUNCIL,STREET CLEANSING,COMENSURA LTD,32435,17-Oct-19,2085497,-1.18,0,AGENCY STAFF,OTHER RECRUITMENT AGENCIES AND SERVICE PROVIDERS,Invoice,BACS,None,15-Oct-19,2019,7,1033875,K4551,STREET CLEANSING,A5191,AGENCY STAFF
GUILDFORD BOROUGH COUNCIL,REFUSE AND RECYCLING,COMENSURA LTD,32435,31-Oct-19,2087717,433.88,0,AGENCY STAFF,OTHER RECRUITMENT AGENCIES AND SERVICE PROVIDERS,Invoice,BACS,None,29-Oct-19,2019,7,1034565,B7766,KERBSIDE RECYCLING,A5191,AGENCY STAFF
GUILDFORD BOROUGH COUNCIL,STREET CLEANSING,COMENSURA LTD,32435,17-Oct-19,2085497,-1.48,0,AGENCY STAFF,OTHER RECRUITMENT AGENCIES AND SERVICE PROVIDERS,Invoice,BACS,None,15-Oct-19,2019,7,1033875,K4551,STREET CLEANSING,A5191,AGENCY STAFF
GUILDFORD BOROUGH COUNCIL,REFUSE AND RECYCLING,COMENSURA LTD,32435,17-Oct-19,2085497,-1.72,0,AGENCY STAFF,OTHER RECRUITMENT AGENCIES AND SERVICE PROVIDERS,Invoice,BACS,None,15-Oct-19,2019,7,1033875,B7766,KERBSIDE RECYCLING,A5191,AGENCY STAFF
GUILDFORD BOROUGH COUNCIL,DEVELOPMENT CONTROL,COMENSURA LTD,32435,17-Oct-19,2085497,596.07,0,AGENCY STAFF,OTHER RECRUITMENT AGENCIES AND SERVICE PROVIDERS,Invoice,BACS,None,15-Oct-19,2019,7,1033875,D5100,DEVELOPMENT CONTROL - FEE EARN,A5191,AGENCY STAFF
GUILDFORD BOROUGH COUNCIL,ENVIRONMENTAL CONTROL,COMENSURA LTD,32435,17-Oct-19,2085497,-1.12,0,AGENCY STAFF,OTHER RECRUITMENT AGENCIES AND SERVICE PROVIDERS,Invoice,BACS,None,15-Oct-19,2019,7,1033875,C1113,ENVIRONMENTAL CONTROL,A5191,AGENCY STAFF
GUILDFORD BOROUGH COUNCIL,ENVIRONMENTAL CONTROL,COMENSURA LTD,32435,10-Oct-19,2084581,585.75,0,AGENCY STAFF,OTHER RECRUITMENT AGENCIES AND SERVICE PROVIDERS,Invoice,BACS,None,08-Oct-19,2019,7,1033540,C1113,ENVIRONMENTAL CONTROL,A5191,AGENCY STAFF
GUILDFORD BOROUGH COUNCIL,DEVELOPMENT CONTROL,COMENSURA LTD,32435,24-Oct-19,2086865,501.72,0,AGENCY STAFF,OTHER RECRUITMENT AGENCIES AND SERVICE PROVIDERS,Invoice,BACS,None,22-Oct-19,2019,7,1034221,D5100,DEVELOPMENT CONTROL - FEE EARN,A5191,AGENCY STAFF
GUILDFORD BOROUGH COUNCIL,REFUSE AND RECYCLING,COMENSURA LTD,32435,17-Oct-19,2085497,404.96,0,AGENCY STAFF,OTHER RECRUITMENT AGENCIES AND SERVICE PROVIDERS,Invoice,BACS,None,15-Oct-19,2019,7,1033875,B7766,KERBSIDE RECYCLING,A5191,AGENCY STAFF
GUILDFORD BOROUGH COUNCIL,COMMUNITY LOTTERY HOLDING ACC,COMMUNITY FOUNDATION FOR SURREY GRANTS,84463,08-Oct-19,2084019,827.2,0,DONATIONS EXPENDITURE,COMMUNITY SERVICES PROVIDERS,Invoice,BACS,None,11-Sep-19,2019,7,LOTTERY PROCEED,G1188,COMMUNITY LOTTERY HOLDING ACC,D1406,DONATIONS EXPENDITURE
GUILDFORD BOROUGH COUNCIL,OFF STREET PARKING,CONCRETE REPAIRS LTD,72288,08-Oct-19,2083957,87.36,0,MECHANICAL/ELECTRICAL MNTCE AG,"CONCRETE CUTTING, DRILLING AND MAINTENANCE CONTRACTORS",Invoice,BACS,None,31-Jul-19,2019,7,INV/015450,B2244,FARNHAM ROAD MSCP,B1221,MECHANICAL/ELECTRICAL MNTCE AG
GUILDFORD BOROUGH COUNCIL,FLATS COMMUNAL SERVICES,CONCRETE REPAIRS LTD,72288,08-Oct-19,2083957,18.73,0,R&M - DLO,"CONCRETE CUTTING, DRILLING AND MAINTENANCE CONTRACTORS",Invoice,BACS,None,31-Jul-19,2019,7,INV/015450,M2685,EGERTON COURT 1-12,B1227,R&M - DLO
GUILDFORD BOROUGH COUNCIL,FLATS COMMUNAL SERVICES,CONCRETE REPAIRS LTD,72288,08-Oct-19,2083957,18.73,0,R&M - DLO,"CONCRETE CUTTING, DRILLING AND MAINTENANCE CONTRACTORS",Invoice,BACS,None,31-Jul-19,2019,7,INV/015450,M2846,PURBECK COURT 1-12 (12),B1227,R&M - DLO
GUILDFORD BOROUGH COUNCIL,RESPONSIVE & PLANNED MAINTENAN,CONCRETE REPAIRS LTD,72288,08-Oct-19,2083957,21.57,0,FIRE ALARMS  - SERVICE,"CONCRETE CUTTING, DRILLING AND MAINTENANCE CONTRACTORS",Invoice,BACS,None,31-Jul-19,2019,7,INV/015450,M5113,REPAIRS-RESPONSIVE (BHS),B1339,FIRE ALARMS  - SERVICE
GUILDFORD BOROUGH COUNCIL,RESPONSIVE & PLANNED MAINTENAN,CONCRETE REPAIRS LTD,72288,08-Oct-19,2083957,87.36,0,FIRE ALARMS  - SERVICE,"CONCRETE CUTTING, DRILLING AND MAINTENANCE CONTRACTORS",Invoice,BACS,None,31-Jul-19,2019,7,INV/015450,M5113,REPAIRS-RESPONSIVE (BHS),B1339,FIRE ALARMS  - SERVICE
GUILDFORD BOROUGH COUNCIL,FLATS COMMUNAL SERVICES,CONCRETE REPAIRS LTD,72288,08-Oct-19,2083957,18.73,0,R&M - DLO,"CONCRETE CUTTING, DRILLING AND MAINTENANCE CONTRACTORS",Invoice,BACS,None,31-Jul-19,2019,7,INV/015450,M2884,ROWAN CL 43 - 53 (6 ODD),B1227,R&M - DLO
GUILDFORD BOROUGH COUNCIL,REFUSE AND RECYCLING,COMENSURA LTD,32435,31-Oct-19,2087717,248.16,0,AGENCY STAFF,OTHER RECRUITMENT AGENCIES AND SERVICE PROVIDERS,Invoice,BACS,None,29-Oct-19,2019,7,1034565,B7766,KERBSIDE RECYCLING,A5191,AGENCY STAFF
GUILDFORD BOROUGH COUNCIL,FLATS COMMUNAL SERVICES,CONCRETE REPAIRS LTD,72288,08-Oct-19,2083957,18.73,0,R&M - DLO,"CONCRETE CUTTING, DRILLING AND MAINTENANCE CONTRACTORS",Invoice,BACS,None,31-Jul-19,2019,7,INV/015450,M3513,EPSOM ROAD EQUITY SHARE,B1227,R&M - DLO
GUILDFORD BOROUGH COUNCIL,STREET CLEANSING,COMENSURA LTD,32435,31-Oct-19,2087717,-1.52,0,AGENCY STAFF,OTHER RECRUITMENT AGENCIES AND SERVICE PROVIDERS,Invoice,BACS,None,29-Oct-19,2019,7,1034565,K4551,STREET CLEANSING,A5191,AGENCY STAFF
GUILDFORD BOROUGH COUNCIL,MUSEUM,COMMS EXPRESS LIMITED,95101,31-Oct-19,2086596,350.62,0,PS - R&M PLANNED WORKS,THIRD PARTY SUPPLIER,Invoice,BACS,None,17-Oct-19,2019,7,0000729263,A5512,48 QUARRY STREET,B1610,PS - R&M PLANNED WORKS
GUILDFORD BOROUGH COUNCIL,OFF STREET PARKING,COMENSURA LTD,32435,10-Oct-19,2084581,720.38,0,AGENCY STAFF,OTHER RECRUITMENT AGENCIES AND SERVICE PROVIDERS,Invoice,BACS,None,08-Oct-19,2019,7,1033540,B2111,CAR PARKS - ADMINISTRATION,A5191,AGENCY STAFF
GUILDFORD BOROUGH COUNCIL,REFUSE AND RECYCLING,COMENSURA LTD,32435,31-Oct-19,2087717,146.2,0,AGENCY STAFF,OTHER RECRUITMENT AGENCIES AND SERVICE PROVIDERS,Invoice,BACS,None,29-Oct-19,2019,7,1034565,B7744,GREEN WASTE,A5191,AGENCY STAFF
GUILDFORD BOROUGH COUNCIL,POLICY,COMENSURA LTD,32435,31-Oct-19,2087717,683.4,0,AGENCY STAFF,OTHER RECRUITMENT AGENCIES AND SERVICE PROVIDERS,Invoice,BACS,None,29-Oct-19,2019,7,1034565,D5300,POLICY,A5191,AGENCY STAFF
GUILDFORD BOROUGH COUNCIL,POLICY,COMENSURA LTD,32435,31-Oct-19,2087717,-2.02,0,AGENCY STAFF,OTHER RECRUITMENT AGENCIES AND SERVICE PROVIDERS,Invoice,BACS,None,29-Oct-19,2019,7,1034565,D5300,POLICY,A5191,AGENCY STAFF
GUILDFORD BOROUGH COUNCIL,REFUSE AND RECYCLING,COMENSURA LTD,32435,31-Oct-19,2087717,333.03,0,AGENCY STAFF,OTHER RECRUITMENT AGENCIES AND SERVICE PROVIDERS,Invoice,BACS,None,29-Oct-19,2019,7,1034565,B7744,GREEN WASTE,A5191,AGENCY STAFF
GUILDFORD BOROUGH COUNCIL,REFUSE AND RECYCLING,COMENSURA LTD,32435,10-Oct-19,2084581,-1.68,0,AGENCY STAFF,OTHER RECRUITMENT AGENCIES AND SERVICE PROVIDERS,Invoice,BACS,None,08-Oct-19,2019,7,1033540,K3551,REFUSE COLLECTION,A5191,AGENCY STAFF
GUILDFORD BOROUGH COUNCIL,FLATS COMMUNAL SERVICES,CONCRETE REPAIRS LTD,72288,08-Oct-19,2083957,49.94,0,FIRE ALARMS  - SERVICE,"CONCRETE CUTTING, DRILLING AND MAINTENANCE CONTRACTORS",Invoice,BACS,None,31-Jul-19,2019,7,INV/015450,M3511,WALNUT TREE CLOSE EQ. SHARE,B1339,FIRE ALARMS  - SERVICE
GUILDFORD BOROUGH COUNCIL,REFUSE AND RECYCLING,COMENSURA LTD,32435,31-Oct-19,2087717,324.54,0,AGENCY STAFF,OTHER RECRUITMENT AGENCIES AND SERVICE PROVIDERS,Invoice,BACS,None,29-Oct-19,2019,7,1034565,B7744,GREEN WASTE,A5191,AGENCY STAFF
GUILDFORD BOROUGH COUNCIL,REFUSE AND RECYCLING,COMENSURA LTD,32435,10-Oct-19,2084581,244.64,0,AGENCY STAFF,OTHER RECRUITMENT AGENCIES AND SERVICE PROVIDERS,Invoice,BACS,None,08-Oct-19,2019,7,1033540,B7744,GREEN WASTE,A5191,AGENCY STAFF
GUILDFORD BOROUGH COUNCIL,REFUSE AND RECYCLING,COMENSURA LTD,32435,10-Oct-19,2084581,358.81,0,AGENCY STAFF,OTHER RECRUITMENT AGENCIES AND SERVICE PROVIDERS,Invoice,BACS,None,08-Oct-19,2019,7,1033540,K3551,REFUSE COLLECTION,A5191,AGENCY STAFF
GUILDFORD BOROUGH COUNCIL,LEGAL SERVICES,COMENSURA LTD,32435,10-Oct-19,2084581,1483.02,0,AGENCY STAFF,OTHER RECRUITMENT AGENCIES AND SERVICE PROVIDERS,Invoice,BACS,None,08-Oct-19,2019,7,1033540,G4525,LEGAL SERVICES,A5191,AGENCY STAFF
GUILDFORD BOROUGH COUNCIL,OFF STREET PARKING,COMENSURA LTD,32435,31-Oct-19,2087717,739.59,0,AGENCY STAFF,OTHER RECRUITMENT AGENCIES AND SERVICE PROVIDERS,Invoice,BACS,None,29-Oct-19,2019,7,1034565,B2111,CAR PARKS - ADMINISTRATION,A5191,AGENCY STAFF
GUILDFORD BOROUGH COUNCIL,POLICY,COMENSURA LTD,32435,31-Oct-19,2087717,599.08,0,AGENCY STAFF,OTHER RECRUITMENT AGENCIES AND SERVICE PROVIDERS,Invoice,BACS,None,29-Oct-19,2019,7,1034565,D5300,POLICY,A5191,AGENCY STAFF
GUILDFORD BOROUGH COUNCIL,DEVELOPMENT CONTROL,COMENSURA LTD,32435,31-Oct-19,2087717,249.7,0,AGENCY STAFF,OTHER RECRUITMENT AGENCIES AND SERVICE PROVIDERS,Invoice,BACS,None,29-Oct-19,2019,7,1034565,D5100,DEVELOPMENT CONTROL - FEE EARN,A5191,AGENCY STAFF
GUILDFORD BOROUGH COUNCIL,REFUSE AND RECYCLING,COMENSURA LTD,32435,10-Oct-19,2084581,559.91,0,AGENCY STAFF,OTHER RECRUITMENT AGENCIES AND SERVICE PROVIDERS,Invoice,BACS,None,08-Oct-19,2019,7,1033540,B7744,GREEN WASTE,A5191,AGENCY STAFF
GUILDFORD BOROUGH COUNCIL,REFUSE AND RECYCLING,COMENSURA LTD,32435,31-Oct-19,2087717,563.88,0,AGENCY STAFF,OTHER RECRUITMENT AGENCIES AND SERVICE PROVIDERS,Invoice,BACS,None,29-Oct-19,2019,7,1034565,B7711,RECYCLING ADMINISTRATION,A5191,AGENCY STAFF
GUILDFORD BOROUGH COUNCIL,REFUSE AND RECYCLING,COMENSURA LTD,32435,17-Oct-19,2085497,361.45,0,AGENCY STAFF,OTHER RECRUITMENT AGENCIES AND SERVICE PROVIDERS,Invoice,BACS,None,15-Oct-19,2019,7,1033875,B7744,GREEN WASTE,A5191,AGENCY STAFF
GUILDFORD BOROUGH COUNCIL,STREET CLEANSING,COMENSURA LTD,32435,31-Oct-19,2087717,569.82,0,AGENCY STAFF,OTHER RECRUITMENT AGENCIES AND SERVICE PROVIDERS,Invoice,BACS,None,29-Oct-19,2019,7,1034565,K4551,STREET CLEANSING,A5191,AGENCY STAFF
GUILDFORD BOROUGH COUNCIL,STREET CLEANSING,COMENSURA LTD,32435,03-Oct-19,2083312,560.18,0,AGENCY STAFF,OTHER RECRUITMENT AGENCIES AND SERVICE PROVIDERS,Invoice,BACS,None,01-Oct-19,2019,7,1033170,K4551,STREET CLEANSING,A5191,AGENCY STAFF
GUILDFORD BOROUGH COUNCIL,REFUSE AND RECYCLING,COMENSURA LTD,32435,03-Oct-19,2083312,504.68,0,AGENCY STAFF,OTHER RECRUITMENT AGENCIES AND SERVICE PROVIDERS,Invoice,BACS,None,01-Oct-19,2019,7,1033170,B7711,RECYCLING ADMINISTRATION,A5191,AGENCY STAFF
GUILDFORD BOROUGH COUNCIL,REFUSE AND RECYCLING,COMENSURA LTD,32435,03-Oct-19,2083312,-1.68,0,AGENCY STAFF,OTHER RECRUITMENT AGENCIES AND SERVICE PROVIDERS,Invoice,BACS,None,01-Oct-19,2019,7,1033170,B7766,KERBSIDE RECYCLING,A5191,AGENCY STAFF
GUILDFORD BOROUGH COUNCIL,REFUSE AND RECYCLING,COMENSURA LTD,32435,03-Oct-19,2083312,236.49,0,AGENCY STAFF,OTHER RECRUITMENT AGENCIES AND SERVICE PROVIDERS,Invoice,BACS,None,01-Oct-19,2019,7,1033170,B7766,KERBSIDE RECYCLING,A5191,AGENCY STAFF
GUILDFORD BOROUGH COUNCIL,REFUSE AND RECYCLING,COMENSURA LTD,32435,03-Oct-19,2083312,416.04,0,AGENCY STAFF,OTHER RECRUITMENT AGENCIES AND SERVICE PROVIDERS,Invoice,BACS,None,01-Oct-19,2019,7,1033170,B7766,KERBSIDE RECYCLING,A5191,AGENCY STAFF
GUILDFORD BOROUGH COUNCIL,LEGAL SERVICES,COMENSURA LTD,32435,31-Oct-19,2087717,1617.84,0,AGENCY STAFF,OTHER RECRUITMENT AGENCIES AND SERVICE PROVIDERS,Invoice,BACS,None,29-Oct-19,2019,7,1034565,G4525,LEGAL SERVICES,A5191,AGENCY STAFF
GUILDFORD BOROUGH COUNCIL,BUILDING CONTROL SUMMARY,COMENSURA LTD,32435,24-Oct-19,2086865,501.72,0,AGENCY STAFF,OTHER RECRUITMENT AGENCIES AND SERVICE PROVIDERS,Invoice,BACS,None,22-Oct-19,2019,7,1034221,D5700,BUILDING CONTROL - FEE,A5191,AGENCY STAFF
GUILDFORD BOROUGH COUNCIL,REFUSE AND RECYCLING,COMENSURA LTD,32435,10-Oct-19,2084581,446.47,0,AGENCY STAFF,OTHER RECRUITMENT AGENCIES AND SERVICE PROVIDERS,Invoice,BACS,None,08-Oct-19,2019,7,1033540,K3551,REFUSE COLLECTION,A5191,AGENCY STAFF
GUILDFORD BOROUGH COUNCIL,ENVIRONMENTAL CONTROL,COMENSURA LTD,32435,10-Oct-19,2084581,-1.12,0,AGENCY STAFF,OTHER RECRUITMENT AGENCIES AND SERVICE PROVIDERS,Invoice,BACS,None,08-Oct-19,2019,7,1033540,C1113,ENVIRONMENTAL CONTROL,A5191,AGENCY STAFF
GUILDFORD BOROUGH COUNCIL,MUSEUM,COMENSURA LTD,32435,10-Oct-19,2084581,548.7,0,AGENCY STAFF,OTHER RECRUITMENT AGENCIES AND SERVICE PROVIDERS,Invoice,BACS,None,08-Oct-19,2019,7,1033540,A5511,MUSEUM,A5191,AGENCY STAFF
GUILDFORD BOROUGH COUNCIL,REFUSE AND RECYCLING,COMENSURA LTD,32435,03-Oct-19,2083312,163.56,0,AGENCY STAFF,OTHER RECRUITMENT AGENCIES AND SERVICE PROVIDERS,Invoice,BACS,None,01-Oct-19,2019,7,1033170,B7744,GREEN WASTE,A5191,AGENCY STAFF
GUILDFORD BOROUGH COUNCIL,REFUSE AND RECYCLING,COMENSURA LTD,32435,03-Oct-19,2083312,499.71,0,AGENCY STAFF,OTHER RECRUITMENT AGENCIES AND SERVICE PROVIDERS,Invoice,BACS,None,01-Oct-19,2019,7,1033170,B7766,KERBSIDE RECYCLING,A5191,AGENCY STAFF
GUILDFORD BOROUGH COUNCIL,REFUSE AND RECYCLING,COMENSURA LTD,32435,03-Oct-19,2083312,559.91,0,AGENCY STAFF,OTHER RECRUITMENT AGENCIES AND SERVICE PROVIDERS,Invoice,BACS,None,01-Oct-19,2019,7,1033170,B7766,KERBSIDE RECYCLING,A5191,AGENCY STAFF
GUILDFORD BOROUGH COUNCIL,REFUSE AND RECYCLING,COMENSURA LTD,32435,10-Oct-19,2084581,501.72,0,AGENCY STAFF,OTHER RECRUITMENT AGENCIES AND SERVICE PROVIDERS,Invoice,BACS,None,08-Oct-19,2019,7,1033540,B7711,RECYCLING ADMINISTRATION,A5191,AGENCY STAFF
GUILDFORD BOROUGH COUNCIL,REFUSE AND RECYCLING,COMENSURA LTD,32435,24-Oct-19,2086865,417.36,0,AGENCY STAFF,OTHER RECRUITMENT AGENCIES AND SERVICE PROVIDERS,Invoice,BACS,None,22-Oct-19,2019,7,1034221,B7744,GREEN WASTE,A5191,AGENCY STAFF
GUILDFORD BOROUGH COUNCIL,COMMUNITY DEVELOPMENT,COMENSURA LTD,32435,17-Oct-19,2085497,769.9,0,AGENCY STAFF,OTHER RECRUITMENT AGENCIES AND SERVICE PROVIDERS,Invoice,BACS,None,15-Oct-19,2019,7,1033875,F5711,COMMUNITY SAFETY TEAM,A5191,AGENCY STAFF
GUILDFORD BOROUGH COUNCIL,STREET CLEANSING,COMENSURA LTD,32435,24-Oct-19,2086865,-1.48,0,AGENCY STAFF,OTHER RECRUITMENT AGENCIES AND SERVICE PROVIDERS,Invoice,BACS,None,22-Oct-19,2019,7,1034221,K4551,STREET CLEANSING,A5191,AGENCY STAFF
GUILDFORD BOROUGH COUNCIL,STREET CLEANSING,COMENSURA LTD,32435,24-Oct-19,2086865,446.63,0,AGENCY STAFF,OTHER RECRUITMENT AGENCIES AND SERVICE PROVIDERS,Invoice,BACS,None,22-Oct-19,2019,7,1034221,K4551,STREET CLEANSING,A5191,AGENCY STAFF
GUILDFORD BOROUGH COUNCIL,REFUSE AND RECYCLING,COMENSURA LTD,32435,24-Oct-19,2086865,101.24,0,AGENCY STAFF,OTHER RECRUITMENT AGENCIES AND SERVICE PROVIDERS,Invoice,BACS,None,22-Oct-19,2019,7,1034221,B7744,GREEN WASTE,A5191,AGENCY STAFF
GUILDFORD BOROUGH COUNCIL,REFUSE AND RECYCLING,COMENSURA LTD,32435,24-Oct-19,2086865,398.47,0,AGENCY STAFF,OTHER RECRUITMENT AGENCIES AND SERVICE PROVIDERS,Invoice,BACS,None,22-Oct-19,2019,7,1034221,K3551,REFUSE COLLECTION,A5191,AGENCY STAFF
GUILDFORD BOROUGH COUNCIL,STREET CLEANSING,COMENSURA LTD,32435,24-Oct-19,2086865,163.56,0,AGENCY STAFF,OTHER RECRUITMENT AGENCIES AND SERVICE PROVIDERS,Invoice,BACS,None,22-Oct-19,2019,7,1034221,K4551,STREET CLEANSING,A5191,AGENCY STAFF
GUILDFORD BOROUGH COUNCIL,REFUSE AND RECYCLING,COMENSURA LTD,32435,17-Oct-19,2085497,-1.68,0,AGENCY STAFF,OTHER RECRUITMENT AGENCIES AND SERVICE PROVIDERS,Invoice,BACS,None,15-Oct-19,2019,7,1033875,B7744,GREEN WASTE,A5191,AGENCY STAFF
GUILDFORD BOROUGH COUNCIL,ENVIRONMENTAL CONTROL,COMENSURA LTD,32435,10-Oct-19,2084581,585.74,0,AGENCY STAFF,OTHER RECRUITMENT AGENCIES AND SERVICE PROVIDERS,Invoice,BACS,None,08-Oct-19,2019,7,1033540,C1113,ENVIRONMENTAL CONTROL,A5191,AGENCY STAFF
GUILDFORD BOROUGH COUNCIL,MOT BAY,COMENSURA LTD,32435,03-Oct-19,2083312,507.52,0,AGENCY STAFF,OTHER RECRUITMENT AGENCIES AND SERVICE PROVIDERS,Invoice,BACS,None,01-Oct-19,2019,7,1033170,V8598,MOT STATION,A5191,AGENCY STAFF
GUILDFORD BOROUGH COUNCIL,COMMUNITY DEVELOPMENT,COMENSURA LTD,32435,10-Oct-19,2084581,769.9,0,AGENCY STAFF,OTHER RECRUITMENT AGENCIES AND SERVICE PROVIDERS,Invoice,BACS,None,08-Oct-19,2019,7,1033540,F5711,COMMUNITY SAFETY TEAM,A5191,AGENCY STAFF
GUILDFORD BOROUGH COUNCIL,REFUSE AND RECYCLING,COMENSURA LTD,32435,10-Oct-19,2084581,417.36,0,AGENCY STAFF,OTHER RECRUITMENT AGENCIES AND SERVICE PROVIDERS,Invoice,BACS,None,08-Oct-19,2019,7,1033540,B7744,GREEN WASTE,A5191,AGENCY STAFF
GUILDFORD BOROUGH COUNCIL,REFUSE AND RECYCLING,COMENSURA LTD,32435,10-Oct-19,2084581,404.96,0,AGENCY STAFF,OTHER RECRUITMENT AGENCIES AND SERVICE PROVIDERS,Invoice,BACS,None,08-Oct-19,2019,7,1033540,K3551,REFUSE COLLECTION,A5191,AGENCY STAFF
GUILDFORD BOROUGH COUNCIL,REFUSE AND RECYCLING,COMENSURA LTD,32435,10-Oct-19,2084581,-1.34,0,AGENCY STAFF,OTHER RECRUITMENT AGENCIES AND SERVICE PROVIDERS,Invoice,BACS,None,08-Oct-19,2019,7,1033540,K3551,REFUSE COLLECTION,A5191,AGENCY STAFF
GUILDFORD BOROUGH COUNCIL,REFUSE AND RECYCLING,COMENSURA LTD,32435,17-Oct-19,2085497,581.04,0,AGENCY STAFF,OTHER RECRUITMENT AGENCIES AND SERVICE PROVIDERS,Invoice,BACS,None,15-Oct-19,2019,7,1033875,B7766,KERBSIDE RECYCLING,A5191,AGENCY STAFF
GUILDFORD BOROUGH COUNCIL,LEGAL SERVICES,COMENSURA LTD,32435,17-Oct-19,2085497,2157.12,0,AGENCY STAFF,OTHER RECRUITMENT AGENCIES AND SERVICE PROVIDERS,Invoice,BACS,None,15-Oct-19,2019,7,1033875,G4525,LEGAL SERVICES,A5191,AGENCY STAFF
GUILDFORD BOROUGH COUNCIL,DEVELOPMENT CONTROL,COMENSURA LTD,32435,17-Oct-19,2085497,504.68,0,AGENCY STAFF,OTHER RECRUITMENT AGENCIES AND SERVICE PROVIDERS,Invoice,BACS,None,15-Oct-19,2019,7,1033875,D5200,DEVELOPMENT CONTROL NON FEE,A5191,AGENCY STAFF
GUILDFORD BOROUGH COUNCIL,DEVELOPMENT CONTROL,COMENSURA LTD,32435,10-Oct-19,2084581,-1.16,0,AGENCY STAFF,OTHER RECRUITMENT AGENCIES AND SERVICE PROVIDERS,Invoice,BACS,None,08-Oct-19,2019,7,1033540,D5100,DEVELOPMENT CONTROL - FEE EARN,A5191,AGENCY STAFF
GUILDFORD BOROUGH COUNCIL,STREET CLEANSING,COMENSURA LTD,32435,10-Oct-19,2084581,504.68,0,AGENCY STAFF,OTHER RECRUITMENT AGENCIES AND SERVICE PROVIDERS,Invoice,BACS,None,08-Oct-19,2019,7,1033540,K4551,STREET CLEANSING,A5191,AGENCY STAFF
GUILDFORD BOROUGH COUNCIL,POLICY,COMENSURA LTD,32435,10-Oct-19,2084581,683.4,0,AGENCY STAFF,OTHER RECRUITMENT AGENCIES AND SERVICE PROVIDERS,Invoice,BACS,None,08-Oct-19,2019,7,1033540,D5300,POLICY,A5191,AGENCY STAFF
GUILDFORD BOROUGH COUNCIL,BUILDING CONTROL SUMMARY,COMENSURA LTD,32435,31-Oct-19,2087717,305.1,0,AGENCY STAFF,OTHER RECRUITMENT AGENCIES AND SERVICE PROVIDERS,Invoice,BACS,None,29-Oct-19,2019,7,1034565,D5700,BUILDING CONTROL - FEE,A5191,AGENCY STAFF
GUILDFORD BOROUGH COUNCIL,MOT BAY,COMENSURA LTD,32435,10-Oct-19,2084581,-1.6,0,AGENCY STAFF,OTHER RECRUITMENT AGENCIES AND SERVICE PROVIDERS,Invoice,BACS,None,08-Oct-19,2019,7,1033540,V8598,MOT STATION,A5191,AGENCY STAFF
GUILDFORD BOROUGH COUNCIL,REFUSE AND RECYCLING,COMENSURA LTD,32435,17-Oct-19,2085497,481.13,0,AGENCY STAFF,OTHER RECRUITMENT AGENCIES AND SERVICE PROVIDERS,Invoice,BACS,None,15-Oct-19,2019,7,1033875,B7766,KERBSIDE RECYCLING,A5191,AGENCY STAFF
GUILDFORD BOROUGH COUNCIL,REFUSE AND RECYCLING,COMENSURA LTD,32435,17-Oct-19,2085497,559.91,0,AGENCY STAFF,OTHER RECRUITMENT AGENCIES AND SERVICE PROVIDERS,Invoice,BACS,None,15-Oct-19,2019,7,1033875,B7766,KERBSIDE RECYCLING,A5191,AGENCY STAFF
GUILDFORD BOROUGH COUNCIL,REFUSE AND RECYCLING,COMENSURA LTD,32435,17-Oct-19,2085497,-1.34,0,AGENCY STAFF,OTHER RECRUITMENT AGENCIES AND SERVICE PROVIDERS,Invoice,BACS,None,15-Oct-19,2019,7,1033875,B7766,KERBSIDE RECYCLING,A5191,AGENCY STAFF
GUILDFORD BOROUGH COUNCIL,MOT BAY,COMENSURA LTD,32435,31-Oct-19,2087717,-2.28,0,AGENCY STAFF,OTHER RECRUITMENT AGENCIES AND SERVICE PROVIDERS,Invoice,BACS,None,29-Oct-19,2019,7,1034565,V8598,MOT STATION,A5191,AGENCY STAFF
GUILDFORD BOROUGH COUNCIL,MOT BAY,COMENSURA LTD,32435,31-Oct-19,2087717,760.57,0,AGENCY STAFF,OTHER RECRUITMENT AGENCIES AND SERVICE PROVIDERS,Invoice,BACS,None,29-Oct-19,2019,7,1034565,V8598,MOT STATION,A5191,AGENCY STAFF
GUILDFORD BOROUGH COUNCIL,STREET CLEANSING,COMENSURA LTD,32435,24-Oct-19,2086865,78.6,0,AGENCY STAFF,OTHER RECRUITMENT AGENCIES AND SERVICE PROVIDERS,Invoice,BACS,None,22-Oct-19,2019,7,1034221,K4551,STREET CLEANSING,A5191,AGENCY STAFF
GUILDFORD BOROUGH COUNCIL,STREET CLEANSING,COMENSURA LTD,32435,24-Oct-19,2086865,442.13,0,AGENCY STAFF,OTHER RECRUITMENT AGENCIES AND SERVICE PROVIDERS,Invoice,BACS,None,22-Oct-19,2019,7,1034221,K4551,STREET CLEANSING,A5191,AGENCY STAFF
GUILDFORD BOROUGH COUNCIL,RESPONSIVE & PLANNED MAINTENAN,ECO PLASTIC WOOD LIMITED,80804,08-Oct-19,2083960,395.45,0,PRE-PAINTING PROG; ALL TRADES,THIRD PARTY SUPPLIER,Invoice,BACS,None,10-Jul-19,2019,7,4801,M5114,REPAIRS-CYCLICAL (BHS),B1374,PRE-PAINTING PROG; ALL TRADES
GUILDFORD BOROUGH COUNCIL,HOUSING BENEFITS,EDEN BROWN LTD,82954,29-Oct-19,2086222,1023.75,0,AGENCY STAFF,OTHER RECRUITMENT AGENCIES AND SERVICE PROVIDERS,Invoice,BACS,None,16-Oct-19,2019,7,1226301,C4511,HOUSING BENEFITS ADMIN.,A5191,AGENCY STAFF
GUILDFORD BOROUGH COUNCIL,HOUSING BENEFITS,EDEN BROWN LTD,82954,15-Oct-19,2084781,1023.75,0,AGENCY STAFF,OTHER RECRUITMENT AGENCIES AND SERVICE PROVIDERS,Invoice,BACS,None,02-Oct-19,2019,7,1224629,C4511,HOUSING BENEFITS ADMIN.,A5191,AGENCY STAFF
GUILDFORD BOROUGH COUNCIL,HOUSING BENEFITS,EDEN BROWN LTD,82954,15-Oct-19,2082871,1010.63,0,AGENCY STAFF,OTHER RECRUITMENT AGENCIES AND SERVICE PROVIDERS,Invoice,BACS,None,25-Sep-19,2019,7,1223838,C4511,HOUSING BENEFITS ADMIN.,A5191,AGENCY STAFF
GUILDFORD BOROUGH COUNCIL,RESPONSIVE & PLANNED MAINTENAN,ECO PLASTIC WOOD LIMITED,80804,08-Oct-19,2083965,395.45,0,PRE-PAINTING PROG; ALL TRADES,THIRD PARTY SUPPLIER,Invoice,BACS,None,10-Jul-19,2019,7,4796,M5114,REPAIRS-CYCLICAL (BHS),B1374,PRE-PAINTING PROG; ALL TRADES
GUILDFORD BOROUGH COUNCIL,RESPONSIVE & PLANNED MAINTENAN,ECO PLASTIC WOOD LIMITED,80804,08-Oct-19,2083967,395.45,0,PRE-PAINTING PROG; ALL TRADES,THIRD PARTY SUPPLIER,Invoice,BACS,None,10-Jul-19,2019,7,4794,M5114,REPAIRS-CYCLICAL (BHS),B1374,PRE-PAINTING PROG; ALL TRADES
GUILDFORD BOROUGH COUNCIL,RESPONSIVE & PLANNED MAINTENAN,ECO PLASTIC WOOD LIMITED,80804,08-Oct-19,2083969,394.45,0,PRE-PAINTING PROG; ALL TRADES,THIRD PARTY SUPPLIER,Invoice,BACS,None,10-Jul-19,2019,7,4795,M5114,REPAIRS-CYCLICAL (BHS),B1374,PRE-PAINTING PROG; ALL TRADES
GUILDFORD BOROUGH COUNCIL,RESPONSIVE & PLANNED MAINTENAN,ECO PLASTIC WOOD LIMITED,80804,08-Oct-19,2083962,395.45,0,PRE-PAINTING PROG; ALL TRADES,THIRD PARTY SUPPLIER,Invoice,BACS,None,10-Jul-19,2019,7,4799,M5114,REPAIRS-CYCLICAL (BHS),B1374,PRE-PAINTING PROG; ALL TRADES
GUILDFORD BOROUGH COUNCIL,RESPONSIVE & PLANNED MAINTENAN,ECO PLASTIC WOOD LIMITED,80804,08-Oct-19,2083961,395.45,0,PRE-PAINTING PROG; ALL TRADES,THIRD PARTY SUPPLIER,Invoice,BACS,None,10-Jul-19,2019,7,4800,M5114,REPAIRS-CYCLICAL (BHS),B1374,PRE-PAINTING PROG; ALL TRADES
GUILDFORD BOROUGH COUNCIL,RESPONSIVE & PLANNED MAINTENAN,ECO PLASTIC WOOD LIMITED,80804,08-Oct-19,2083963,395.45,0,PRE-PAINTING PROG; ALL TRADES,THIRD PARTY SUPPLIER,Invoice,BACS,None,23-Jul-19,2019,7,4798,M5114,REPAIRS-CYCLICAL (BHS),B1374,PRE-PAINTING PROG; ALL TRADES
GUILDFORD BOROUGH COUNCIL,COUNCIL TAX,EE LIMITED,85364,29-Oct-19,2087159,22.5,0,TELECOMMS; MOBILE PHONES,MOBILE COMMUNICATIONS SERVICE PROVIDERS,Invoice,BACS,None,03-Oct-19,2019,7,01285229680,F6141,COUNCIL TAX COLLECTN EXPENSES,D5487,TELECOMMS; MOBILE PHONES
GUILDFORD BOROUGH COUNCIL,RESPONSIVE & PLANNED MAINTENAN,ECO PLASTIC WOOD LIMITED,80804,08-Oct-19,2083968,395.45,0,PRE-PAINTING PROG; ALL TRADES,THIRD PARTY SUPPLIER,Invoice,BACS,None,10-Jul-19,2019,7,4793,M5114,REPAIRS-CYCLICAL (BHS),B1374,PRE-PAINTING PROG; ALL TRADES
GUILDFORD BOROUGH COUNCIL,TENANTS' SERVICES,EDF ENERGY,65619,31-Oct-19,2087769,81.42,0,ELECTRICITY,MAINS ELECTRICITY SUPPLIERS,Invoice,BACS,None,16-Oct-19,2019,7,671126094125,M1151,TENANTS SERVICES (BHS),B2215,ELECTRICITY
GUILDFORD BOROUGH COUNCIL,RESPONSIVE & PLANNED MAINTENAN,ECO PLASTIC WOOD LIMITED,80804,08-Oct-19,2083966,395.45,0,PRE-PAINTING PROG; ALL TRADES,THIRD PARTY SUPPLIER,Invoice,BACS,None,10-Jul-19,2019,7,4805,M5114,REPAIRS-CYCLICAL (BHS),B1374,PRE-PAINTING PROG; ALL TRADES
GUILDFORD BOROUGH COUNCIL,PUBLIC RELATIONS,EAGLE RADIO LIMITED,17773,10-Oct-19,2084110,1150,0,PUBLICITY; SPECIAL ITEMS,RADIO BROADCASTERS,Invoice,BACS,None,30-Sep-19,2019,7,552193,F5551,PUBLIC RELATIONS & MARKETING,D1575,PUBLICITY; SPECIAL ITEMS
GUILDFORD BOROUGH COUNCIL,Other Property,E.ON,17888,08-Oct-19,2083431,77.53,0,ELECTRICITY,MAINS UTILITY MULTIPLE SERVICE PROVIDERS,Invoice,BACS,None,22-Sep-19,2019,7,H17A09E588,B6594,WHITE HART MEADOWS CAR PARK,B2215,ELECTRICITY
GUILDFORD BOROUGH COUNCIL,Other Property,E.ON,17888,08-Oct-19,2083432,545.66,0,ELECTRICITY,MAINS UTILITY MULTIPLE SERVICE PROVIDERS,Invoice,BACS,None,22-Sep-19,2019,7,H17A0AC46A,B6594,WHITE HART MEADOWS CAR PARK,B2215,ELECTRICITY
GUILDFORD BOROUGH COUNCIL,PAYMENTS AND PURCHASING,E-PERSONNEL LTD,72039,15-Oct-19,2082877,141.99,0,CASUAL STAFF SALARIES,OTHER RECRUITMENT AGENCIES AND SERVICE PROVIDERS,Invoice,BACS,None,25-Sep-19,2019,7,6636,G3596,CREDITORS,A1185,CASUAL STAFF SALARIES
GUILDFORD BOROUGH COUNCIL,HOUSING BENEFITS,E-PERSONNEL LTD,72039,29-Oct-19,2086201,548.76,0,AGENCY STAFF,OTHER RECRUITMENT AGENCIES AND SERVICE PROVIDERS,Invoice,BACS,None,16-Oct-19,2019,7,7117,C4511,HOUSING BENEFITS ADMIN.,A5191,AGENCY STAFF
GUILDFORD BOROUGH COUNCIL,PAYMENTS AND PURCHASING,E-PERSONNEL LTD,72039,29-Oct-19,2086201,61.4,0,CASUAL STAFF SALARIES,OTHER RECRUITMENT AGENCIES AND SERVICE PROVIDERS,Invoice,BACS,None,16-Oct-19,2019,7,7117,G3596,CREDITORS,A1185,CASUAL STAFF SALARIES
GUILDFORD BOROUGH COUNCIL,HOUSING BENEFITS,E-PERSONNEL LTD,72039,15-Oct-19,2082877,483.52,0,AGENCY STAFF,OTHER RECRUITMENT AGENCIES AND SERVICE PROVIDERS,Invoice,BACS,None,25-Sep-19,2019,7,6636,C4511,HOUSING BENEFITS ADMIN.,A5191,AGENCY STAFF
GUILDFORD BOROUGH COUNCIL,PAYMENTS AND PURCHASING,E-PERSONNEL LTD,72039,22-Oct-19,2085147,69.07,0,CASUAL STAFF SALARIES,OTHER RECRUITMENT AGENCIES AND SERVICE PROVIDERS,Invoice,BACS,None,08-Oct-19,2019,7,6957,G3596,CREDITORS,A1185,CASUAL STAFF SALARIES
GUILDFORD BOROUGH COUNCIL,HOUSING BENEFITS,E-PERSONNEL LTD,72039,22-Oct-19,2085147,491.21,0,AGENCY STAFF,OTHER RECRUITMENT AGENCIES AND SERVICE PROVIDERS,Invoice,BACS,None,08-Oct-19,2019,7,6957,C4511,HOUSING BENEFITS ADMIN.,A5191,AGENCY STAFF
GUILDFORD BOROUGH COUNCIL,RESPONSIVE & PLANNED MAINTENAN,ECO PLASTIC WOOD LIMITED,80804,08-Oct-19,2083964,395.45,0,PRE-PAINTING PROG; ALL TRADES,THIRD PARTY SUPPLIER,Invoice,BACS,None,10-Jul-19,2019,7,4797,M5114,REPAIRS-CYCLICAL (BHS),B1374,PRE-PAINTING PROG; ALL TRADES
GUILDFORD BOROUGH COUNCIL,TENANTS' SERVICES,EDF ENERGY,65619,31-Oct-19,2087759,86.75,0,ELECTRICITY,MAINS ELECTRICITY SUPPLIERS,Invoice,BACS,None,07-Oct-19,2019,7,671115144587,M1151,TENANTS SERVICES (BHS),B2215,ELECTRICITY
GUILDFORD BOROUGH COUNCIL,RE-ROOFING,EUROPEAN ASBESTOS SERVICES LIMITED,91991,10-Oct-19,2084574,210,0,CONTRACT PYTS-MAIN CONTRACTOR,ASBESTOS REMOVAL SERVICE PROVIDERS,Invoice,BACS,None,23-Sep-19,2019,7,IAS22606,N47031,ROOF RENEWAL 2019-20,1233,CONTRACT PYTS-MAIN CONTRACTOR
GUILDFORD BOROUGH COUNCIL,COMMUNITY MEALS & TPT,EE LIMITED,85364,29-Oct-19,2087159,22.5,0,TELECOMMS; MOBILE PHONES,MOBILE COMMUNICATIONS SERVICE PROVIDERS,Invoice,BACS,None,03-Oct-19,2019,7,01285229680,C8142,COMMUNITY MEALS SERVICE,D5487,TELECOMMS; MOBILE PHONES
GUILDFORD BOROUGH COUNCIL,HR SERVICES,EE LIMITED,85364,29-Oct-19,2087159,11.25,0,TELECOMMS; MOBILE PHONES,MOBILE COMMUNICATIONS SERVICE PROVIDERS,Invoice,BACS,None,03-Oct-19,2019,7,01285229680,G2555,HR SERVICES,D5487,TELECOMMS; MOBILE PHONES
GUILDFORD BOROUGH COUNCIL,DEVELOPMENT CONTROL,EE LIMITED,85364,29-Oct-19,2087159,11.25,0,TELECOMMS; MOBILE PHONES,MOBILE COMMUNICATIONS SERVICE PROVIDERS,Invoice,BACS,None,03-Oct-19,2019,7,01285229680,D5100,DEVELOPMENT CONTROL - FEE EARN,D5487,TELECOMMS; MOBILE PHONES
GUILDFORD BOROUGH COUNCIL,STREET CLEANSING,EE LIMITED,85364,29-Oct-19,2087159,697.63,0,TELECOMMS; MOBILE PHONES,MOBILE COMMUNICATIONS SERVICE PROVIDERS,Invoice,BACS,None,03-Oct-19,2019,7,01285229680,K4551,STREET CLEANSING,D5487,TELECOMMS; MOBILE PHONES
GUILDFORD BOROUGH COUNCIL,PARKS & COUNTRYSIDE,EE LIMITED,85364,29-Oct-19,2087159,360.9,0,TELECOMMS; MOBILE PHONES,MOBILE COMMUNICATIONS SERVICE PROVIDERS,Invoice,BACS,None,03-Oct-19,2019,7,01285229680,A1900,PARKS MANAGEMENT AND ADMIN,D5487,TELECOMMS; MOBILE PHONES
GUILDFORD BOROUGH COUNCIL,COMMUNITY MEALS & TPT,EE LIMITED,85364,29-Oct-19,2087159,225,0,TELECOMMS; MOBILE PHONES,MOBILE COMMUNICATIONS SERVICE PROVIDERS,Invoice,BACS,None,03-Oct-19,2019,7,01285229680,C3115,COMMUNITY TRANSPORT SCHEME,D5487,TELECOMMS; MOBILE PHONES
GUILDFORD BOROUGH COUNCIL,SUPPORTED HOUSING MANAGEMENT,EE LIMITED,85364,29-Oct-19,2087159,11.25,0,TELECOMMS; MOBILE PHONES,MOBILE COMMUNICATIONS SERVICE PROVIDERS,Invoice,BACS,None,03-Oct-19,2019,7,01285229680,M3690,SUPPORTED HSG-GENERAL (SHS),D5487,TELECOMMS; MOBILE PHONES
GUILDFORD BOROUGH COUNCIL,GUILDFORD HOUSE,CONCRETE REPAIRS LTD,72288,08-Oct-19,2083957,18.73,0,MECHANICAL/ELECTRICAL MNTCE AG,"CONCRETE CUTTING, DRILLING AND MAINTENANCE CONTRACTORS",Invoice,BACS,None,31-Jul-19,2019,7,INV/015450,A4512,BREW HSE REAR OF GUILDFORD HSE,B1221,MECHANICAL/ELECTRICAL MNTCE AG
GUILDFORD BOROUGH COUNCIL,PRIVATE SECTOR HOUSING,EE LIMITED,85364,29-Oct-19,2087159,11.25,0,TELECOMMS; MOBILE PHONES,MOBILE COMMUNICATIONS SERVICE PROVIDERS,Invoice,BACS,None,03-Oct-19,2019,7,01285229680,C5136,HANDYPERSON SERVICE,D5487,TELECOMMS; MOBILE PHONES
GUILDFORD BOROUGH COUNCIL,HOUSING BENEFITS,EDEN BROWN LTD,82954,22-Oct-19,2085437,1023.75,0,AGENCY STAFF,OTHER RECRUITMENT AGENCIES AND SERVICE PROVIDERS,Invoice,BACS,None,09-Oct-19,2019,7,1225482,C4511,HOUSING BENEFITS ADMIN.,A5191,AGENCY STAFF
GUILDFORD BOROUGH COUNCIL,OTHER EMPLOYEE COSTS,EDUCATION4HEALTH,95751,10-Oct-19,2083989,250,0,CORPORATE TRAINING PLAN,HEALTH AND SAFETY TRAINING PROVIDERS,Invoice,BACS,None,25-Sep-19,2019,7,INV-19075,G1121,ORGANISATION DEVELOPMENT,A7195,CORPORATE TRAINING PLAN
GUILDFORD BOROUGH COUNCIL,TENANTS' SERVICES,EDF ENERGY,65619,31-Oct-19,2087759,4.74,0,ELECTRICITY,MAINS ELECTRICITY SUPPLIERS,Invoice,BACS,None,07-Oct-19,2019,7,671115144587,M1151,TENANTS SERVICES (BHS),B2215,ELECTRICITY
GUILDFORD BOROUGH COUNCIL,PARKS & COUNTRYSIDE,EDF ENERGY,65619,29-Oct-19,2087144,58.56,0,ELECTRICITY,MAINS ELECTRICITY SUPPLIERS,Invoice,BACS,None,04-Oct-19,2019,7,E23582586005,A1247,STOKE PRK ASTOLAT BOWLS PAVILL,B2215,ELECTRICITY
GUILDFORD BOROUGH COUNCIL,PARKS & COUNTRYSIDE,EDF ENERGY,65619,17-Oct-19,2085531,18.02,0,ELECTRICITY,MAINS ELECTRICITY SUPPLIERS,Invoice,BACS,None,09-Oct-19,2019,7,671096308930,A1810,BURCHATTS FARM BARN,B2215,ELECTRICITY
GUILDFORD BOROUGH COUNCIL,TENANTS' SERVICES,EDF ENERGY,65619,31-Oct-19,2087769,-18.52,0,ELECTRICITY,MAINS ELECTRICITY SUPPLIERS,Invoice,BACS,None,16-Oct-19,2019,7,671126094125,M1151,TENANTS SERVICES (BHS),B2215,ELECTRICITY
GUILDFORD BOROUGH COUNCIL,HOUSING OUTSIDE THE HRA,EDF ENERGY,65619,31-Oct-19,2087771,24.56,0,ELECTRICITY,MAINS ELECTRICITY SUPPLIERS,Invoice,BACS,None,02-Oct-19,2019,7,673117542060,C5571,"OLD MANOR HOUSE, EAST HORSLEY",B2215,ELECTRICITY
GUILDFORD BOROUGH COUNCIL,PARKS & COUNTRYSIDE,EDF ENERGY,65619,24-Oct-19,2086372,24.03,0,ELECTRICITY,MAINS ELECTRICITY SUPPLIERS,Invoice,BACS,None,11-Oct-19,2019,7,671047665723,A1346,WEST LODGE,B2215,ELECTRICITY
GUILDFORD BOROUGH COUNCIL,GOVERNMENT ST DEBTORS,EDF ENERGY,65619,31-Oct-19,2087769,4.07,0,VAT INPUT TAX,MAINS ELECTRICITY SUPPLIERS,Invoice,BACS,None,16-Oct-19,2019,7,671126094125,J02040,VAT,2736,VAT INPUT TAX
GUILDFORD BOROUGH COUNCIL,TENANTS' SERVICES,EDF ENERGY,65619,22-Oct-19,2086249,46.54,0,GAS,MAINS ELECTRICITY SUPPLIERS,Invoice,BACS,None,30-Sep-19,2019,7,671120106136,M1151,TENANTS SERVICES (BHS),B2221,GAS
GUILDFORD BOROUGH COUNCIL,PARKS & COUNTRYSIDE,EDF ENERGY,65619,29-Oct-19,2087145,22.67,0,ELECTRICITY,MAINS ELECTRICITY SUPPLIERS,Invoice,BACS,None,08-Oct-19,2019,7,E23582586006,A1247,STOKE PRK ASTOLAT BOWLS PAVILL,B2215,ELECTRICITY
GUILDFORD BOROUGH COUNCIL,PARKS & COUNTRYSIDE,EDF ENERGY,65619,03-Oct-19,2082879,506.83,0,ELECTRICITY,MAINS ELECTRICITY SUPPLIERS,Invoice,BACS,None,11-Jul-19,2019,7,E23582586001,A1247,STOKE PRK ASTOLAT BOWLS PAVILL,B2215,ELECTRICITY
GUILDFORD BOROUGH COUNCIL,BUSINESS FORUM,DYZIO LTD,97731,22-Oct-19,2084976,1000,0,GENERAL GRANTS,SOFTWARE DEVELOPERS,Invoice,BACS,None,10-Sep-19,2019,7,DYZ0221,F7520,BUSINESS FORUM,D7441,GENERAL GRANTS
GUILDFORD BOROUGH COUNCIL,LEISURE PLAY DEVELOPMENT,EE LIMITED,85364,29-Oct-19,2087159,11.25,0,TELECOMMS; MOBILE PHONES,MOBILE COMMUNICATIONS SERVICE PROVIDERS,Invoice,BACS,None,03-Oct-19,2019,7,01285229680,A7211,PLAY DEVELOPMENT,D5487,TELECOMMS; MOBILE PHONES
GUILDFORD BOROUGH COUNCIL,BUILDING MAINTENANCE,D G PROPERTY REFURBISHMENT LTD,71371,03-Oct-19,2083205,2650,0,PAYMENT TO CONTRACTORS,RESTORATION SPECIALISTS,Invoice,BACS,None,30-Sep-19,2019,7,12,K1515,BUILDING MAINTENANCE,D4468,PAYMENT TO CONTRACTORS
GUILDFORD BOROUGH COUNCIL,HOUSING BENEFITS,E-PERSONNEL LTD,72039,15-Oct-19,2084777,498.88,0,AGENCY STAFF,OTHER RECRUITMENT AGENCIES AND SERVICE PROVIDERS,Invoice,BACS,None,02-Oct-19,2019,7,6805,C4511,HOUSING BENEFITS ADMIN.,A5191,AGENCY STAFF
GUILDFORD BOROUGH COUNCIL,BUILDING MAINTENANCE,DAVIS ROOFING SOLUTIONS LIMITED,94697,17-Oct-19,2085657,3451,0,PAYMENT TO CONTRACTORS,ROOFERS,Invoice,BACS,None,11-Oct-19,2019,7,45,K1515,BUILDING MAINTENANCE,D4468,PAYMENT TO CONTRACTORS
GUILDFORD BOROUGH COUNCIL,BUILDING MAINTENANCE,DAVIS ROOFING SOLUTIONS LIMITED,94697,01-Oct-19,2082932,1823.85,0,PAYMENT TO CONTRACTORS,ROOFERS,Invoice,BACS,None,24-Sep-19,2019,7,44,K1515,BUILDING MAINTENANCE,D4468,PAYMENT TO CONTRACTORS
GUILDFORD BOROUGH COUNCIL,BUILDING MAINTENANCE,DAVIS ROOFING SOLUTIONS LIMITED,94697,29-Oct-19,2087383,1757.25,0,PAYMENT TO CONTRACTORS,ROOFERS,Invoice,BACS,None,24-Oct-19,2019,7,50,K1515,BUILDING MAINTENANCE,D4468,PAYMENT TO CONTRACTORS
GUILDFORD BOROUGH COUNCIL,PROJECT ASPIRE,DAVID ROSE MEDIA LTD,71275,31-Oct-19,2087126,60,0,MISCELLANEOUS EXPENSES,THIRD PARTY SUPPLIER,Invoice,BACS,None,20-Oct-19,2019,7,OCT2019,F1126,PROJECT ASPIRE,D9483,MISCELLANEOUS EXPENSES
GUILDFORD BOROUGH COUNCIL,INDUSTRIAL ESTATES,DAVID KINGSTON CHARTERED SURVEYORS,97028,15-Oct-19,2084974,1700,0,VALUERS FEES,SURVEYORS AND INSPECTORS,Invoice,BACS,None,04-Oct-19,2019,7,041019,B5311,INDUSTRIAL ESTATES ADMIN.,D4493,VALUERS FEES
GUILDFORD BOROUGH COUNCIL,DEPOT STORES,DATATECNIX LIMITED,49713,31-Oct-19,2087748,448,0,EQUIP. & TOOLS REPAIRS,SOFTWARE DEVELOPERS,Invoice,BACS,None,08-Oct-19,2019,7,10531,K7515,WOKING ROAD DEPOT STORES,D1429,EQUIP. & TOOLS REPAIRS
GUILDFORD BOROUGH COUNCIL,BUILDING MAINTENANCE,D G PROPERTY REFURBISHMENT LTD,71371,17-Oct-19,2085659,1950,0,PAYMENT TO CONTRACTORS,RESTORATION SPECIALISTS,Invoice,BACS,None,15-Oct-19,2019,7,13,K1515,BUILDING MAINTENANCE,D4468,PAYMENT TO CONTRACTORS
GUILDFORD BOROUGH COUNCIL,BUILDING MAINTENANCE,D G PROPERTY REFURBISHMENT LTD,71371,29-Oct-19,2087274,1700,0,PAYMENT TO CONTRACTORS,RESTORATION SPECIALISTS,Invoice,BACS,None,22-Oct-19,2019,7,15,K1515,BUILDING MAINTENANCE,D4468,PAYMENT TO CONTRACTORS
GUILDFORD BOROUGH COUNCIL,BUILDING MAINTENANCE,D G PROPERTY REFURBISHMENT LTD,71371,03-Oct-19,2083205,3000,0,MATERIALS; SUB CONTRACTOR,RESTORATION SPECIALISTS,Invoice,BACS,None,30-Sep-19,2019,7,12,K1515,BUILDING MAINTENANCE,D1542,MATERIALS; SUB CONTRACTOR
GUILDFORD BOROUGH COUNCIL,BUILDING MAINTENANCE,DAVIS ROOFING SOLUTIONS LIMITED,94697,31-Oct-19,2087791,3415,0,PAYMENT TO CONTRACTORS,ROOFERS,Invoice,BACS,None,29-Oct-19,2019,7,50,K1515,BUILDING MAINTENANCE,D4468,PAYMENT TO CONTRACTORS
GUILDFORD BOROUGH COUNCIL,BUILDING MAINTENANCE,D G PROPERTY REFURBISHMENT LTD,71371,17-Oct-19,2085658,1041.5,0,PAYMENT TO CONTRACTORS,RESTORATION SPECIALISTS,Invoice,BACS,None,15-Oct-19,2019,7,14,K1515,BUILDING MAINTENANCE,D4468,PAYMENT TO CONTRACTORS
GUILDFORD BOROUGH COUNCIL,BUILDING MAINTENANCE,DAVIS ROOFING SOLUTIONS LIMITED,94697,17-Oct-19,2085585,2446.95,0,PAYMENT TO CONTRACTORS,ROOFERS,Invoice,BACS,None,11-Oct-19,2019,7,48,K1515,BUILDING MAINTENANCE,D4468,PAYMENT TO CONTRACTORS
GUILDFORD BOROUGH COUNCIL,BUILDING MAINTENANCE,D G PROPERTY REFURBISHMENT LTD,71371,29-Oct-19,2087275,2000,0,MATERIALS; SUB CONTRACTOR,RESTORATION SPECIALISTS,Invoice,BACS,None,22-Oct-19,2019,7,16,K1515,BUILDING MAINTENANCE,D1542,MATERIALS; SUB CONTRACTOR
GUILDFORD BOROUGH COUNCIL,BUILDING MAINTENANCE,D G PROPERTY REFURBISHMENT LTD,71371,03-Oct-19,2083198,2900,0,MATERIALS; SUB CONTRACTOR,RESTORATION SPECIALISTS,Invoice,BACS,None,30-Sep-19,2019,7,11,K1515,BUILDING MAINTENANCE,D1542,MATERIALS; SUB CONTRACTOR
GUILDFORD BOROUGH COUNCIL,BUILDING MAINTENANCE,D G PROPERTY REFURBISHMENT LTD,71371,03-Oct-19,2083198,2555,0,PAYMENT TO CONTRACTORS,RESTORATION SPECIALISTS,Invoice,BACS,None,30-Sep-19,2019,7,11,K1515,BUILDING MAINTENANCE,D4468,PAYMENT TO CONTRACTORS
GUILDFORD BOROUGH COUNCIL,BUILDING MAINTENANCE,D G PROPERTY REFURBISHMENT LTD,71371,17-Oct-19,2085659,2000,0,MATERIALS; SUB CONTRACTOR,RESTORATION SPECIALISTS,Invoice,BACS,None,15-Oct-19,2019,7,13,K1515,BUILDING MAINTENANCE,D1542,MATERIALS; SUB CONTRACTOR
GUILDFORD BOROUGH COUNCIL,BUILDING MAINTENANCE,D G PROPERTY REFURBISHMENT LTD,71371,17-Oct-19,2085658,500,0,MATERIALS; SUB CONTRACTOR,RESTORATION SPECIALISTS,Invoice,BACS,None,15-Oct-19,2019,7,14,K1515,BUILDING MAINTENANCE,D1542,MATERIALS; SUB CONTRACTOR
GUILDFORD BOROUGH COUNCIL,BUILDING MAINTENANCE,D G PROPERTY REFURBISHMENT LTD,71371,29-Oct-19,2087275,950,0,PAYMENT TO CONTRACTORS,RESTORATION SPECIALISTS,Invoice,BACS,None,22-Oct-19,2019,7,16,K1515,BUILDING MAINTENANCE,D4468,PAYMENT TO CONTRACTORS
GUILDFORD BOROUGH COUNCIL,ENVIRONMENTAL WORKS,D A BEAMISH,97031,08-Oct-19,2083932,250,0,THIRD PARTY DAMAGE CLAIMS,,Invoice,BACS,None,04-Oct-19,2019,7,INSURANCE,M4615,ENV WKS TO ESTATE (BHS),D9588,THIRD PARTY DAMAGE CLAIMS
GUILDFORD BOROUGH COUNCIL,STREET FURNITURE,CTG ENTERPRISES LTD,79580,10-Oct-19,2084013,350,0,FRIARY BUS STATION CLEANING,OTHER CLEANING AND JANITORIAL SERVICE PROVIDERS,Invoice,BACS,None,01-Oct-19,2019,7,GU1522GBC,B3711,CIVIC AMENITIES ADMINISTRATION,D1405,FRIARY BUS STATION CLEANING
GUILDFORD BOROUGH COUNCIL,BUILDING MAINTENANCE,CTG ENTERPRISES LTD,79580,31-Oct-19,2084016,800,0,PAYMENT TO CONTRACTORS,OTHER CLEANING AND JANITORIAL SERVICE PROVIDERS,Invoice,BACS,None,01-Oct-19,2019,7,GU1529GBC,K1515,BUILDING MAINTENANCE,D4468,PAYMENT TO CONTRACTORS
GUILDFORD BOROUGH COUNCIL,STREET CLEANSING,CTG ENTERPRISES LTD,79580,08-Oct-19,2082722,150,0,PAYMENT TO CONTRACTORS,OTHER CLEANING AND JANITORIAL SERVICE PROVIDERS,Invoice,BACS,None,01-Aug-19,2019,7,GU1492GBC,K4551,STREET CLEANSING,D4468,PAYMENT TO CONTRACTORS
GUILDFORD BOROUGH COUNCIL,BUILDING MAINTENANCE,D G PROPERTY REFURBISHMENT LTD,71371,29-Oct-19,2087274,1900,0,MATERIALS; SUB CONTRACTOR,RESTORATION SPECIALISTS,Invoice,BACS,None,22-Oct-19,2019,7,15,K1515,BUILDING MAINTENANCE,D1542,MATERIALS; SUB CONTRACTOR
GUILDFORD BOROUGH COUNCIL,FLATS COMMUNAL SERVICES,DES BONE LIMITED,1694,08-Oct-19,2083815,65,0,R&M - DLO,PEST AND VERMIN CONTROL SERVICE PROVIDERS,Invoice,BACS,None,23-Sep-19,2019,7,13957,M2915,SPICEALL 33-35A (4),B1227,R&M - DLO
GUILDFORD BOROUGH COUNCIL,OPERATIONAL SERVS OVERHEAD AC,EE LIMITED,85364,29-Oct-19,2087159,31,0,TELECOMMS; MOBILE PHONES,MOBILE COMMUNICATIONS SERVICE PROVIDERS,Invoice,BACS,None,03-Oct-19,2019,7,01285229680,K1519,OPERATIONAL SERVS OVERHEAD AC,D5487,TELECOMMS; MOBILE PHONES
GUILDFORD BOROUGH COUNCIL,INDUSTRIAL ESTATES,DRY WATERPROOFING LTD,93886,15-Oct-19,2084439,11221,0,CONTRACT PYTS-MINOR CONTRACTOR,BUILDING DAMAGE PREVENTION CONTRACTORS,Invoice,BACS,None,30-Sep-19,2019,7,IN000236,P72031,5 HIGH STREET VOID WORKS,1234,CONTRACT PYTS-MINOR CONTRACTOR
GUILDFORD BOROUGH COUNCIL,RESPONSIVE & PLANNED MAINTENAN,DRAIN & SEWER SERVICES,10839,17-Oct-19,2085465,60,0,DRAINAGE - UNDERGROUND,SEWERAGE AND DRAINAGE SERVICE PROVIDERS,Invoice,BACS,None,27-Sep-19,2019,7,86571,M5106,REPAIRS-SHELT-RESPONSIVE (BHS),B1328,DRAINAGE - UNDERGROUND
GUILDFORD BOROUGH COUNCIL,DEVELOPMENT CONTROL,DIXON SEARLE PARTNERSHIP LTD,89343,22-Oct-19,2085398,1125,0,CONSULTANTS (ADVICE),CONSTRUCTION PROJECT MANAGEMENT CONSULTANTS,Invoice,BACS,None,09-Oct-19,2019,7,INV-1350,D5100,DEVELOPMENT CONTROL - FEE EARN,D4520,CONSULTANTS (ADVICE)
GUILDFORD BOROUGH COUNCIL,OFFICE SERVICES TEAM,DIGITAL ID LIMITED,77189,10-Oct-19,2083991,634.9,0,CONSUMABLES,ALARM AND ACCESS CONTROL SYSTEM SUPPLIERS,Invoice,BACS,None,30-Sep-19,2019,7,0000346935,G4585,OFFICE SERVICES,D1587,CONSUMABLES
GUILDFORD BOROUGH COUNCIL,BUSINESS & TOURISM,DESTINATION UK LIMITED,42981,22-Oct-19,2085513,339,0,GENERAL TOURISM MARKETING,PRINTING SERVICE PROVIDERS,Invoice,BACS,None,22-Sep-19,2019,7,DB99207/19,F5545,TOURISM,D9403,GENERAL TOURISM MARKETING
GUILDFORD BOROUGH COUNCIL,RESPONSIVE & PLANNED MAINTENAN,DES BONE LIMITED,1694,24-Oct-19,2086620,225,0,DISINFESTATION,PEST AND VERMIN CONTROL SERVICE PROVIDERS,Invoice,BACS,None,25-Sep-19,2019,7,13961,M5106,REPAIRS-SHELT-RESPONSIVE (BHS),B6246,DISINFESTATION
GUILDFORD BOROUGH COUNCIL,FLATS COMMUNAL SERVICES,DES BONE LIMITED,1694,15-Oct-19,2085054,195,0,R&M - DLO,PEST AND VERMIN CONTROL SERVICE PROVIDERS,Invoice,BACS,None,24-Sep-19,2019,7,13959,M2650,BROOMFIELD 22-36 EVEN (8),B1227,R&M - DLO
GUILDFORD BOROUGH COUNCIL,RESPONSIVE & PLANNED MAINTENAN,DES BONE LIMITED,1694,24-Oct-19,2086619,300,0,DISINFESTATION,PEST AND VERMIN CONTROL SERVICE PROVIDERS,Invoice,BACS,None,01-Oct-19,2019,7,13985,M5113,REPAIRS-RESPONSIVE (BHS),B6246,DISINFESTATION
GUILDFORD BOROUGH COUNCIL,RESPONSIVE & PLANNED MAINTENAN,DES BONE LIMITED,1694,24-Oct-19,2086621,180,0,DISINFESTATION,PEST AND VERMIN CONTROL SERVICE PROVIDERS,Invoice,BACS,None,01-Oct-19,2019,7,13986,M5113,REPAIRS-RESPONSIVE (BHS),B6246,DISINFESTATION
GUILDFORD BOROUGH COUNCIL,BUILDING MAINTENANCE,DAVIS ROOFING SOLUTIONS LIMITED,94697,01-Oct-19,2082931,2753.55,0,PAYMENT TO CONTRACTORS,ROOFERS,Invoice,BACS,None,24-Sep-19,2019,7,43,K1515,BUILDING MAINTENANCE,D4468,PAYMENT TO CONTRACTORS
GUILDFORD BOROUGH COUNCIL,RESPONSIVE & PLANNED MAINTENAN,DES BONE LIMITED,1694,29-Oct-19,2087277,90,0,DISINFESTATION,PEST AND VERMIN CONTROL SERVICE PROVIDERS,Invoice,BACS,None,08-Oct-19,2019,7,13992,M5113,REPAIRS-RESPONSIVE (BHS),B6246,DISINFESTATION
GUILDFORD BOROUGH COUNCIL,PAYMENTS AND PURCHASING,E-PERSONNEL LTD,72039,15-Oct-19,2084777,88.26,0,CASUAL STAFF SALARIES,OTHER RECRUITMENT AGENCIES AND SERVICE PROVIDERS,Invoice,BACS,None,02-Oct-19,2019,7,6805,G3596,CREDITORS,A1185,CASUAL STAFF SALARIES
GUILDFORD BOROUGH COUNCIL,RESPONSIVE & PLANNED MAINTENAN,DES BONE LIMITED,1694,08-Oct-19,2083869,80,0,DISINFESTATION,PEST AND VERMIN CONTROL SERVICE PROVIDERS,Invoice,BACS,None,05-Sep-19,2019,7,13939,M5113,REPAIRS-RESPONSIVE (BHS),B6246,DISINFESTATION
GUILDFORD BOROUGH COUNCIL,VEHICLE MAINTENANCE,DENNIS EAGLE LIMITED,1681,08-Oct-19,2082859,120.66,0,SPARES FOR VEHICLES,REFUSE VEHICLE SUPPLIERS,Invoice,BACS,None,24-Sep-19,2019,7,DE11253705,K5551,VEHICLE MAINTENANCE,D1589,SPARES FOR VEHICLES
GUILDFORD BOROUGH COUNCIL,VEHICLE MAINTENANCE,DENNIS EAGLE LIMITED,1681,08-Oct-19,2083016,67.9,0,SPARES FOR VEHICLES,REFUSE VEHICLE SUPPLIERS,Invoice,BACS,None,25-Sep-19,2019,7,DE11254063,K5551,VEHICLE MAINTENANCE,D1589,SPARES FOR VEHICLES
GUILDFORD BOROUGH COUNCIL,VEHICLE MAINTENANCE,DENNIS EAGLE LIMITED,1681,15-Oct-19,2084018,196.32,0,SPARES FOR VEHICLES,REFUSE VEHICLE SUPPLIERS,Invoice,BACS,None,30-Sep-19,2019,7,DE11255060,K5551,VEHICLE MAINTENANCE,D1589,SPARES FOR VEHICLES
GUILDFORD BOROUGH COUNCIL,VEHICLE MAINTENANCE,DENNIS EAGLE LIMITED,1681,15-Oct-19,2084020,76,0,SPARES FOR VEHICLES,REFUSE VEHICLE SUPPLIERS,Invoice,BACS,None,30-Sep-19,2019,7,DE11255061,K5551,VEHICLE MAINTENANCE,D1589,SPARES FOR VEHICLES
GUILDFORD BOROUGH COUNCIL,VEHICLE MAINTENANCE,DENNIS EAGLE LIMITED,1681,08-Oct-19,2083175,238.58,0,SPARES FOR VEHICLES,REFUSE VEHICLE SUPPLIERS,Invoice,BACS,None,27-Sep-19,2019,7,DE11254741,K5551,VEHICLE MAINTENANCE,D1589,SPARES FOR VEHICLES
GUILDFORD BOROUGH COUNCIL,OPERATIONS TECHNICAL SERVICES,DELL COMPUTER CORPORATION LTD,1676,31-Oct-19,2085421,1251,0,NETWORK LINKS,COMPUTER HARDWARE SUPPLIERS,Invoice,BACS,None,02-Oct-19,2019,7,7402562656,G3548,ICT TECHNICAL & INFRASTRUCTURE,D5417,NETWORK LINKS
GUILDFORD BOROUGH COUNCIL,BUILDING MAINTENANCE,DAVIS ROOFING SOLUTIONS LIMITED,94697,17-Oct-19,2085586,1353.5,0,PAYMENT TO CONTRACTORS,ROOFERS,Invoice,BACS,None,11-Oct-19,2019,7,47,K1515,BUILDING MAINTENANCE,D4468,PAYMENT TO CONTRACTORS
GUILDFORD BOROUGH COUNCIL,BUILDING MAINTENANCE,DAVIS ROOFING SOLUTIONS LIMITED,94697,03-Oct-19,2083333,1610.65,0,PAYMENT TO CONTRACTORS,ROOFERS,Invoice,BACS,None,01-Oct-19,2019,7,45,K1515,BUILDING MAINTENANCE,D4468,PAYMENT TO CONTRACTORS
GUILDFORD BOROUGH COUNCIL,BUILDING MAINTENANCE,DAVIS ROOFING SOLUTIONS LIMITED,94697,29-Oct-19,2087272,2190.1,0,PAYMENT TO CONTRACTORS,ROOFERS,Invoice,BACS,None,23-Oct-19,2019,7,49,K1515,BUILDING MAINTENANCE,D4468,PAYMENT TO CONTRACTORS
GUILDFORD BOROUGH COUNCIL,FLATS COMMUNAL SERVICES,DES BONE LIMITED,1694,29-Oct-19,2087278,60,0,R&M - DLO,PEST AND VERMIN CONTROL SERVICE PROVIDERS,Invoice,BACS,None,09-Oct-19,2019,7,13993,M3513,EPSOM ROAD EQUITY SHARE,B1227,R&M - DLO
GUILDFORD BOROUGH COUNCIL,MUSEUM,EMBLEM PRINT PRODUCTS LIMITED,1869,22-Oct-19,2083262,234.72,0,SOUVENIRS;POSTCARDS FOR RESALE,OTHER RETAILERS,Invoice,BACS,None,26-Sep-19,2019,7,0000091018,A5511,MUSEUM,D1588,SOUVENIRS;POSTCARDS FOR RESALE
GUILDFORD BOROUGH COUNCIL,NEW BUILD,ERMC LIMITED,69846,03-Oct-19,2080006,1525.45,0,CONSULTANTS FEES - ADVICE,CONSTRUCTION PROJECT MANAGEMENT CONSULTANTS,Invoice,BACS,None,31-Aug-19,2019,7,07631,N30021,PIPELINE PROJECT 1,1227,CONSULTANTS FEES - ADVICE
GUILDFORD BOROUGH COUNCIL,NEW BUILD,ERMC LIMITED,69846,03-Oct-19,2080009,1492.47,0,CONSULTANTS FEES - ADVICE,CONSTRUCTION PROJECT MANAGEMENT CONSULTANTS,Invoice,BACS,None,31-Aug-19,2019,7,07627,N30021,PIPELINE PROJECT 1,1227,CONSULTANTS FEES - ADVICE
GUILDFORD BOROUGH COUNCIL,INDUSTRIAL ESTATES,ERMC LIMITED,69846,17-Oct-19,2085436,662.5,0,CONSULTANTS FEES - ADVICE,CONSTRUCTION PROJECT MANAGEMENT CONSULTANTS,Invoice,BACS,None,30-Sep-19,2019,7,07720,P72037,MIDLETON IND EST REDEVELOP,1227,CONSULTANTS FEES - ADVICE
GUILDFORD BOROUGH COUNCIL,MUSEUM,EQUIPRITE WHOLESALE,95149,15-Oct-19,2084743,458.85,0,SOUVENIRS;POSTCARDS FOR RESALE,THIRD PARTY SUPPLIER,Invoice,BACS,None,17-Sep-19,2019,7,101383,A5571,CASTLE KEEP,D1588,SOUVENIRS;POSTCARDS FOR RESALE
GUILDFORD BOROUGH COUNCIL,BUILDING CONTROL SUMMARY,ENGENIUS ENGINEERS LTD,23233,29-Oct-19,2086870,242.36,0,CONSULTANTS (ADVICE),ELECTRICIANS,Invoice,BACS,None,14-Oct-19,2019,7,02083,D5700,BUILDING CONTROL - FEE,D4520,CONSULTANTS (ADVICE)
GUILDFORD BOROUGH COUNCIL,BUILDING CONTROL SUMMARY,ENGENIUS ENGINEERS LTD,23233,31-Oct-19,2087440,217.42,0,CONSULTANTS (ADVICE),ELECTRICIANS,Invoice,BACS,None,22-Oct-19,2019,7,02090,D5700,BUILDING CONTROL - FEE,D4520,CONSULTANTS (ADVICE)
GUILDFORD BOROUGH COUNCIL,BUILDING CONTROL SUMMARY,ENGENIUS ENGINEERS LTD,23233,29-Oct-19,2079954,200.59,0,CONSULTANTS (ADVICE),ELECTRICIANS,Invoice,BACS,None,30-Aug-19,2019,7,02071,D5700,BUILDING CONTROL - FEE,D4520,CONSULTANTS (ADVICE)
GUILDFORD BOROUGH COUNCIL,BUILDING CONTROL SUMMARY,ENGENIUS ENGINEERS LTD,23233,31-Oct-19,2087439,250.64,0,CONSULTANTS (ADVICE),ELECTRICIANS,Invoice,BACS,None,22-Oct-19,2019,7,02077,D5700,BUILDING CONTROL - FEE,D4520,CONSULTANTS (ADVICE)
GUILDFORD BOROUGH COUNCIL,RECHARGEABLE WORKS,ENDWELL CONTRACTS,90797,03-Oct-19,2083327,7235.01,0,CONTRACT PYTS-MAIN CONTRACTOR,PROPERTY MAINTENANCE CONTRACTORS,Invoice,BACS,None,12-Sep-19,2019,7,2447,H20501,43 & 41 CLOVER RD- FIRE DAMAGE,1233,CONTRACT PYTS-MAIN CONTRACTOR
GUILDFORD BOROUGH COUNCIL,LICENSING SERVICES,EE LIMITED,85364,29-Oct-19,2087159,22.5,0,TELECOMMS; MOBILE PHONES,MOBILE COMMUNICATIONS SERVICE PROVIDERS,Invoice,BACS,None,03-Oct-19,2019,7,01285229680,H2100,LICENSING SERVICES,D5487,TELECOMMS; MOBILE PHONES
GUILDFORD BOROUGH COUNCIL,MUSEUM,EMBLEM PRINT PRODUCTS LIMITED,1869,22-Oct-19,2083262,234.72,0,SOUVENIRS;POSTCARDS FOR RESALE,OTHER RETAILERS,Invoice,BACS,None,26-Sep-19,2019,7,0000091018,A5571,CASTLE KEEP,D1588,SOUVENIRS;POSTCARDS FOR RESALE
GUILDFORD BOROUGH COUNCIL,NEW BUILD,ERMC LIMITED,69846,03-Oct-19,2080011,579.95,0,CONSULTANTS FEES - ADVICE,CONSTRUCTION PROJECT MANAGEMENT CONSULTANTS,Invoice,BACS,None,31-Aug-19,2019,7,07625,N30021,PIPELINE PROJECT 1,1227,CONSULTANTS FEES - ADVICE
GUILDFORD BOROUGH COUNCIL,VEHICLE & PLANTS ACQS,ELMTRONICS LTD,91946,22-Oct-19,2084957,6863.5,0,VEHICLE PURCHASE,OTHER VEHICLE EQUIPMENT PROVIDERS,Invoice,BACS,None,07-Oct-19,2019,7,1296,P58011,VEHICLE & PLANT ACQS 2019-20,1745,VEHICLE PURCHASE
GUILDFORD BOROUGH COUNCIL,PARKS & COUNTRYSIDE,ELMBRIDGE BOROUGH COUNCIL,24523,22-Oct-19,2086127,150,0,TRAINING,LOCAL GOVERNMENT [UK ONLY],Invoice,BACS,None,15-Oct-19,2019,7,1409010883,A1300,TREES & COUNTRYSIDE,A7161,TRAINING
GUILDFORD BOROUGH COUNCIL,OFFICE SERVICES TEAM,ELLIOTT BAXTER & COMPANY LIMITED,1858,08-Oct-19,2083714,717,0,PAPER & BOARD (RECH),PAPER PRODUCTS SUPPLIERS,Invoice,BACS,None,19-Sep-19,2019,7,INV3559343,G4545,REPROGRAPHICS UNIT,D3480,PAPER & BOARD (RECH)
GUILDFORD BOROUGH COUNCIL,OFFICE SERVICES TEAM,ELLIOTT BAXTER & COMPANY LIMITED,1858,08-Oct-19,2080389,1720,0,PAPER & BOARD (RECH),PAPER PRODUCTS SUPPLIERS,Invoice,BACS,None,09-Sep-19,2019,7,INV3551307,G4545,REPROGRAPHICS UNIT,D3480,PAPER & BOARD (RECH)
GUILDFORD BOROUGH COUNCIL,OFFICE SERVICES TEAM,ELLIOTT BAXTER & COMPANY LIMITED,1858,10-Oct-19,2084550,168.74,0,PAPER & BOARD (RECH),PAPER PRODUCTS SUPPLIERS,Invoice,BACS,None,18-Sep-19,2019,7,INV3558394,G4545,REPROGRAPHICS UNIT,D3480,PAPER & BOARD (RECH)
GUILDFORD BOROUGH COUNCIL,OFFICE SERVICES TEAM,ELLIOTT BAXTER & COMPANY LIMITED,1858,10-Oct-19,2084548,103,0,PAPER & BOARD (RECH),PAPER PRODUCTS SUPPLIERS,Invoice,BACS,None,18-Sep-19,2019,7,INV3558392,G4545,REPROGRAPHICS UNIT,D3480,PAPER & BOARD (RECH)
GUILDFORD BOROUGH COUNCIL,DAY SERVICES,ELIZABETH DICKMAN,97465,15-Oct-19,2083130,520,0,DC ACTIVITIES COST,ARTISTS AND AUTHORS,Invoice,BACS,None,27-Sep-19,2019,7,5,C8189,CENTRAL HUB PARK BARN,D4509,DC ACTIVITIES COST
GUILDFORD BOROUGH COUNCIL,BID REVENUE ACCOUNT,ELEVATE GUILDFORD LTD,75516,15-Oct-19,2083729,110000,0,PAYMENTS TO ELEVATE GUILDFORD,OTHER TRAVEL AND TOURISM SERVICE PROVIDERS,Invoice,BACS,None,18-Sep-19,2019,7,EG/SA0047,R5501,BID REVENUE ACCOUNT,P1415,PAYMENTS TO ELEVATE GUILDFORD
GUILDFORD BOROUGH COUNCIL,REFUSE AND RECYCLING,EGBERT H TAYLOR & COMPANY LTD,1840,22-Oct-19,2085515,100,0,NEW / REPLACE EQUIP. & TOOLS;,BINS AND WASTE CONTAINER SUPPLIERS,Invoice,BACS,None,03-Sep-19,2019,7,INV000013738,K3551,REFUSE COLLECTION,D1428,NEW / REPLACE EQUIP. & TOOLS;
GUILDFORD BOROUGH COUNCIL,PARISH & LOCAL LIAISON,EFFINGHAM PARISH COUNCIL,1839,29-Oct-19,2087269,4213,0,GENERAL GRANTS,LOCAL GOVERNMENT [UK ONLY],Invoice,BACS,None,24-Oct-19,2019,7,GRANT AID,F1115,PARISH LIAISON,D7441,GENERAL GRANTS
GUILDFORD BOROUGH COUNCIL,OFFICE SERVICES TEAM,ENCORE ENVELOPES LIMITED,96996,08-Oct-19,2080001,127.5,0,EXTERNAL PRINTING & DESIGN,STATIONERY AND OFFICE PRODUCTS SUPPLIERS,Invoice,BACS,None,18-Jun-19,2019,7,625792,G4545,REPROGRAPHICS UNIT,D3454,EXTERNAL PRINTING & DESIGN
GUILDFORD BOROUGH COUNCIL,OTHER ST DEBTORS,REDACTED,0,29-Oct-19,2085392,800,0,CASH PAID,PROPERTY LETTING AND ESTATE AGENTS,Invoice,BACS,None,09-Oct-19,2019,7,REDACTED,J01064,HOUSING H4U SCHEME,2175,CASH PAID
GUILDFORD BOROUGH COUNCIL,RESPONSIVE & PLANNED MAINTENAN,EUROPEAN ASBESTOS SERVICES LIMITED,91991,15-Oct-19,2085069,105,0,MAIN CONTRACTORS PAYMENTS,ASBESTOS REMOVAL SERVICE PROVIDERS,Invoice,BACS,None,23-Sep-19,2019,7,IAS22605,M5113,REPAIRS-RESPONSIVE (BHS),B8921,MAIN CONTRACTORS PAYMENTS
GUILDFORD BOROUGH COUNCIL,HEATING,EUROPEAN ASBESTOS SERVICES LIMITED,91991,08-Oct-19,2083892,85,0,CONTRACT PYTS-MAIN CONTRACTOR,ASBESTOS REMOVAL SERVICE PROVIDERS,Invoice,BACS,None,11-Sep-19,2019,7,ISS22550,N44069,CENTRAL HEATING/BOILER 2019-20,1233,CONTRACT PYTS-MAIN CONTRACTOR
GUILDFORD BOROUGH COUNCIL,HEATING,EUROPEAN ASBESTOS SERVICES LIMITED,91991,08-Oct-19,2083893,85,0,CONTRACT PYTS-MAIN CONTRACTOR,ASBESTOS REMOVAL SERVICE PROVIDERS,Invoice,BACS,None,11-Sep-19,2019,7,ISS22549,N44069,CENTRAL HEATING/BOILER 2019-20,1233,CONTRACT PYTS-MAIN CONTRACTOR
GUILDFORD BOROUGH COUNCIL,HEATING,EUROPEAN ASBESTOS SERVICES LIMITED,91991,10-Oct-19,2084570,85,0,CONTRACT PYTS-MAIN CONTRACTOR,ASBESTOS REMOVAL SERVICE PROVIDERS,Invoice,BACS,None,23-Sep-19,2019,7,ISS22603,N44069,CENTRAL HEATING/BOILER 2019-20,1233,CONTRACT PYTS-MAIN CONTRACTOR
GUILDFORD BOROUGH COUNCIL,HEATING,EUROPEAN ASBESTOS SERVICES LIMITED,91991,24-Oct-19,2086651,85,0,CONTRACT PYTS-MAIN CONTRACTOR,ASBESTOS REMOVAL SERVICE PROVIDERS,Invoice,BACS,None,27-Sep-19,2019,7,ISS22716,N44069,CENTRAL HEATING/BOILER 2019-20,1233,CONTRACT PYTS-MAIN CONTRACTOR
GUILDFORD BOROUGH COUNCIL,HEATING,EUROPEAN ASBESTOS SERVICES LIMITED,91991,24-Oct-19,2086652,85,0,CONTRACT PYTS-MAIN CONTRACTOR,ASBESTOS REMOVAL SERVICE PROVIDERS,Invoice,BACS,None,30-Sep-19,2019,7,ISS22881,N44069,CENTRAL HEATING/BOILER 2019-20,1233,CONTRACT PYTS-MAIN CONTRACTOR
GUILDFORD BOROUGH COUNCIL,HOMELESSNESS,REDACTED,0,22-Oct-19,2084889,490,0,ACCOMMODATION: EMERGENCY B&B,,Invoice,BACS,None,30-Sep-19,2019,7,REDACTED,C3316,EMERGENCY ACCOMMODATION,D4401,ACCOMMODATION: EMERGENCY B&B
GUILDFORD BOROUGH COUNCIL,OTHER ST DEBTORS,REDACTED,0,08-Oct-19,2082768,964,0,CASH PAID,PROPERTY LETTING AND ESTATE AGENTS,Invoice,BACS,None,11-Sep-19,2019,7,REDACTED,J01064,HOUSING H4U SCHEME,2175,CASH PAID
GUILDFORD BOROUGH COUNCIL,OTHER ST DEBTORS,REDACTED,0,29-Oct-19,2085392,3000,0,CASH PAID,PROPERTY LETTING AND ESTATE AGENTS,Invoice,BACS,None,09-Oct-19,2019,7,REDACTED,J01064,HOUSING H4U SCHEME,2175,CASH PAID
GUILDFORD BOROUGH COUNCIL,OTHER ST DEBTORS,REDACTED,0,29-Oct-19,2085393,3000,0,CASH PAID,PROPERTY LETTING AND ESTATE AGENTS,Invoice,BACS,None,09-Oct-19,2019,7,REDACTED,J01064,HOUSING H4U SCHEME,2175,CASH PAID
GUILDFORD BOROUGH COUNCIL,NEW BUILD,ERMC LIMITED,69846,03-Oct-19,2080010,850.77,0,CONSULTANTS FEES - ADVICE,CONSTRUCTION PROJECT MANAGEMENT CONSULTANTS,Invoice,BACS,None,31-Aug-19,2019,7,07626,N30021,PIPELINE PROJECT 1,1227,CONSULTANTS FEES - ADVICE
GUILDFORD BOROUGH COUNCIL,OTHER ST DEBTORS,REDACTED,0,08-Oct-19,2082767,3000,0,CASH PAID,PROPERTY LETTING AND ESTATE AGENTS,Invoice,BACS,None,23-Sep-19,2019,7,REDACTED,J01064,HOUSING H4U SCHEME,2175,CASH PAID
GUILDFORD BOROUGH COUNCIL,NEW BUILD,ERMC LIMITED,69846,03-Oct-19,2080005,464.3,0,CONSULTANTS FEES - ADVICE,CONSTRUCTION PROJECT MANAGEMENT CONSULTANTS,Invoice,BACS,None,31-Aug-19,2019,7,07630,N30021,PIPELINE PROJECT 1,1227,CONSULTANTS FEES - ADVICE
GUILDFORD BOROUGH COUNCIL,OTHER ST DEBTORS,REDACTED,0,29-Oct-19,2085393,1196,0,CASH PAID,PROPERTY LETTING AND ESTATE AGENTS,Invoice,BACS,None,09-Oct-19,2019,7,REDACTED,J01064,HOUSING H4U SCHEME,2175,CASH PAID
GUILDFORD BOROUGH COUNCIL,OTHER ST DEBTORS,REDACTED,0,29-Oct-19,2085390,3000,0,CASH PAID,PROPERTY LETTING AND ESTATE AGENTS,Invoice,BACS,None,09-Oct-19,2019,7,REDACTED,J01064,HOUSING H4U SCHEME,2175,CASH PAID
GUILDFORD BOROUGH COUNCIL,OTHER ST DEBTORS,REDACTED,0,29-Oct-19,2085390,1000,0,CASH PAID,PROPERTY LETTING AND ESTATE AGENTS,Invoice,BACS,None,09-Oct-19,2019,7,REDACTED,J01064,HOUSING H4U SCHEME,2175,CASH PAID
GUILDFORD BOROUGH COUNCIL,OTHER ST DEBTORS,REDACTED,0,08-Oct-19,2082768,3000,0,CASH PAID,PROPERTY LETTING AND ESTATE AGENTS,Invoice,BACS,None,11-Sep-19,2019,7,REDACTED,J01064,HOUSING H4U SCHEME,2175,CASH PAID
GUILDFORD BOROUGH COUNCIL,OTHER ST DEBTORS,REDACTED,0,08-Oct-19,2082767,800,0,CASH PAID,PROPERTY LETTING AND ESTATE AGENTS,Invoice,BACS,None,23-Sep-19,2019,7,REDACTED,J01064,HOUSING H4U SCHEME,2175,CASH PAID
GUILDFORD BOROUGH COUNCIL,HOMELESSNESS,ETHICAL LETTINGS CIC,97140,29-Oct-19,2085391,3000,0,MISCELLANEOUS EXPENSES,PROPERTY LETTING AND ESTATE AGENTS,Invoice,BACS,None,09-Oct-19,2019,7,2539,C3316,EMERGENCY ACCOMMODATION,D9483,MISCELLANEOUS EXPENSES
GUILDFORD BOROUGH COUNCIL,HOMELESSNESS,ETHICAL LETTINGS CIC,97140,29-Oct-19,2085391,1000,0,MISCELLANEOUS EXPENSES,PROPERTY LETTING AND ESTATE AGENTS,Invoice,BACS,None,09-Oct-19,2019,7,2539,C3316,EMERGENCY ACCOMMODATION,D9483,MISCELLANEOUS EXPENSES
GUILDFORD BOROUGH COUNCIL,NEW BUILD,ERMC LIMITED,69846,03-Oct-19,2080008,848.02,0,CONSULTANTS FEES - ADVICE,CONSTRUCTION PROJECT MANAGEMENT CONSULTANTS,Invoice,BACS,None,31-Aug-19,2019,7,07628,N30021,PIPELINE PROJECT 1,1227,CONSULTANTS FEES - ADVICE
GUILDFORD BOROUGH COUNCIL,NEW BUILD,ERMC LIMITED,69846,03-Oct-19,2080007,491.39,0,CONSULTANTS FEES - ADVICE,CONSTRUCTION PROJECT MANAGEMENT CONSULTANTS,Invoice,BACS,None,31-Aug-19,2019,7,07629,N30021,PIPELINE PROJECT 1,1227,CONSULTANTS FEES - ADVICE
GUILDFORD BOROUGH COUNCIL,PRIVATE SECTOR HOUSING,EE LIMITED,85364,29-Oct-19,2087159,109.75,0,TELECOMMS; MOBILE PHONES,MOBILE COMMUNICATIONS SERVICE PROVIDERS,Invoice,BACS,None,03-Oct-19,2019,7,01285229680,C5122,PRIVATE SECTOR HOUSING STANDAR,D5487,TELECOMMS; MOBILE PHONES
GUILDFORD BOROUGH COUNCIL,OTHER ST DEBTORS,REDACTED,0,08-Oct-19,2082769,3000,0,CASH PAID,PROPERTY LETTING AND ESTATE AGENTS,Invoice,BACS,None,26-Jul-19,2019,7,REDACTED,J01064,HOUSING H4U SCHEME,2175,CASH PAID
GUILDFORD BOROUGH COUNCIL,REFUSE AND RECYCLING,EE LIMITED,85364,29-Oct-19,2087159,109.75,0,TELECOMMS; MOBILE PHONES,MOBILE COMMUNICATIONS SERVICE PROVIDERS,Invoice,BACS,None,03-Oct-19,2019,7,01285229680,B7766,KERBSIDE RECYCLING,D5487,TELECOMMS; MOBILE PHONES
GUILDFORD BOROUGH COUNCIL,OFF STREET PARKING,EE LIMITED,85364,29-Oct-19,2087159,258.75,0,TELECOMMS; MOBILE PHONES,MOBILE COMMUNICATIONS SERVICE PROVIDERS,Invoice,BACS,None,03-Oct-19,2019,7,01285229680,B2111,CAR PARKS - ADMINISTRATION,D5487,TELECOMMS; MOBILE PHONES
GUILDFORD BOROUGH COUNCIL,COMMUNITY DEVELOPMENT,EE LIMITED,85364,29-Oct-19,2087159,33.75,0,TELECOMMS; MOBILE PHONES,MOBILE COMMUNICATIONS SERVICE PROVIDERS,Invoice,BACS,None,03-Oct-19,2019,7,01285229680,F5711,COMMUNITY SAFETY TEAM,D5487,TELECOMMS; MOBILE PHONES
GUILDFORD BOROUGH COUNCIL,CORPORATE PROPERTY SERVICES,EE LIMITED,85364,29-Oct-19,2087159,33.75,0,TELECOMMS; MOBILE PHONES,MOBILE COMMUNICATIONS SERVICE PROVIDERS,Invoice,BACS,None,03-Oct-19,2019,7,01285229680,G4575,CORPORATE PROPERTY SERVICES,D5487,TELECOMMS; MOBILE PHONES
GUILDFORD BOROUGH COUNCIL,TENANT SELECTION,EE LIMITED,85364,29-Oct-19,2087159,31,0,TELECOMMS; MOBILE PHONES,MOBILE COMMUNICATIONS SERVICE PROVIDERS,Invoice,BACS,None,03-Oct-19,2019,7,01285229680,M1131,"ADVICE,REGS,TENANT SELECT(SHS)",D5487,TELECOMMS; MOBILE PHONES
GUILDFORD BOROUGH COUNCIL,REFUSE AND RECYCLING,EE LIMITED,85364,29-Oct-19,2087159,22.5,0,TELECOMMS; MOBILE PHONES,MOBILE COMMUNICATIONS SERVICE PROVIDERS,Invoice,BACS,None,03-Oct-19,2019,7,01285229680,K3551,REFUSE COLLECTION,D5487,TELECOMMS; MOBILE PHONES
GUILDFORD BOROUGH COUNCIL,BUSINESS RATES,EE LIMITED,85364,29-Oct-19,2087159,22.5,0,TELECOMMS; MOBILE PHONES,MOBILE COMMUNICATIONS SERVICE PROVIDERS,Invoice,BACS,None,03-Oct-19,2019,7,01285229680,F6151,BUSINESS RATES COLLECTION EXPS,D5487,TELECOMMS; MOBILE PHONES
GUILDFORD BOROUGH COUNCIL,ENGINEERING AND TRANS SERVICES,EE LIMITED,85364,29-Oct-19,2087159,22.5,0,TELECOMMS; MOBILE PHONES,MOBILE COMMUNICATIONS SERVICE PROVIDERS,Invoice,BACS,None,03-Oct-19,2019,7,01285229680,G5538,ENGINEERING AND TRANS SERVICES,D5487,TELECOMMS; MOBILE PHONES
GUILDFORD BOROUGH COUNCIL,BUSINESS & TOURISM,EE LIMITED,85364,29-Oct-19,2087159,17,0,TELECOMMS; MOBILE PHONES,MOBILE COMMUNICATIONS SERVICE PROVIDERS,Invoice,BACS,None,03-Oct-19,2019,7,01285229680,F5547,BUSINESS,D5487,TELECOMMS; MOBILE PHONES
GUILDFORD BOROUGH COUNCIL,COUNCIL & COMMITTEE SUPPORT,EE LIMITED,85364,29-Oct-19,2087159,11.25,0,TELECOMMS; MOBILE PHONES,MOBILE COMMUNICATIONS SERVICE PROVIDERS,Invoice,BACS,None,03-Oct-19,2019,7,01285229680,F1320,OVERVIEW AND SCRUTINY COMMITTE,D5487,TELECOMMS; MOBILE PHONES
GUILDFORD BOROUGH COUNCIL,TENANT SELECTION,EE LIMITED,85364,29-Oct-19,2087159,11.25,0,TELECOMMS; MOBILE PHONES,MOBILE COMMUNICATIONS SERVICE PROVIDERS,Invoice,BACS,None,03-Oct-19,2019,7,01285229680,M1131,"ADVICE,REGS,TENANT SELECT(SHS)",D5487,TELECOMMS; MOBILE PHONES
GUILDFORD BOROUGH COUNCIL,BUILDING CONTROL SUMMARY,EE LIMITED,85364,29-Oct-19,2087159,78.75,0,TELECOMMS; MOBILE PHONES,MOBILE COMMUNICATIONS SERVICE PROVIDERS,Invoice,BACS,None,03-Oct-19,2019,7,01285229680,D5700,BUILDING CONTROL - FEE,D5487,TELECOMMS; MOBILE PHONES
GUILDFORD BOROUGH COUNCIL,SURREY FAMILY SUPPORT PROG,EE LIMITED,85364,29-Oct-19,2087159,166,0,TELECOMMS; MOBILE PHONES,MOBILE COMMUNICATIONS SERVICE PROVIDERS,Invoice,BACS,None,03-Oct-19,2019,7,01285229680,C3320,SURREY FAMILY SUPPORT PROG,D5487,TELECOMMS; MOBILE PHONES
GUILDFORD BOROUGH COUNCIL,COMMUNITY DEVELOPMENT,EE LIMITED,85364,29-Oct-19,2087159,11.25,0,TELECOMMS; MOBILE PHONES,MOBILE COMMUNICATIONS SERVICE PROVIDERS,Invoice,BACS,None,03-Oct-19,2019,7,01285229680,F5724,SAFER GUILDFORD PARTNERSHIP,D5487,TELECOMMS; MOBILE PHONES
GUILDFORD BOROUGH COUNCIL,OPERATIONS TECHNICAL SERVICES,EE LIMITED,85364,29-Oct-19,2087159,138,0,TELECOMMS; MOBILE PHONES,MOBILE COMMUNICATIONS SERVICE PROVIDERS,Invoice,BACS,None,03-Oct-19,2019,7,01285229680,G3546,ICT SERVICE DESK,D5487,TELECOMMS; MOBILE PHONES
GUILDFORD BOROUGH COUNCIL,LEISURE RANGERS,EE LIMITED,85364,29-Oct-19,2087159,67.5,0,TELECOMMS; MOBILE PHONES,MOBILE COMMUNICATIONS SERVICE PROVIDERS,Invoice,BACS,None,03-Oct-19,2019,7,01285229680,A1700,PARKS RANGER SERVICE,D5487,TELECOMMS; MOBILE PHONES
GUILDFORD BOROUGH COUNCIL,CREMATORIUM,EE LIMITED,85364,29-Oct-19,2087159,45,0,TELECOMMS; MOBILE PHONES,MOBILE COMMUNICATIONS SERVICE PROVIDERS,Invoice,BACS,None,03-Oct-19,2019,7,01285229680,A1500,GUILDFORD CREMATORIUM,D5487,TELECOMMS; MOBILE PHONES
GUILDFORD BOROUGH COUNCIL,ON STREET PARKING,EE LIMITED,85364,29-Oct-19,2087159,42.25,0,TELECOMMS; MOBILE PHONES,MOBILE COMMUNICATIONS SERVICE PROVIDERS,Invoice,BACS,None,03-Oct-19,2019,7,01285229680,B2215,WAVERLEY ON-STREET,D5487,TELECOMMS; MOBILE PHONES
GUILDFORD BOROUGH COUNCIL,ACCOUNTANCY,EE LIMITED,85364,29-Oct-19,2087159,22.5,0,TELECOMMS; MOBILE PHONES,MOBILE COMMUNICATIONS SERVICE PROVIDERS,Invoice,BACS,None,03-Oct-19,2019,7,01285229680,G3565,ACCOUNTANCY SERVICES,D5487,TELECOMMS; MOBILE PHONES
GUILDFORD BOROUGH COUNCIL,REFUSE AND RECYCLING,EE LIMITED,85364,29-Oct-19,2087159,19.75,0,TELECOMMS; MOBILE PHONES,MOBILE COMMUNICATIONS SERVICE PROVIDERS,Invoice,BACS,None,03-Oct-19,2019,7,01285229680,B7744,GREEN WASTE,D5487,TELECOMMS; MOBILE PHONES
GUILDFORD BOROUGH COUNCIL,STREET CLEANSING,EE LIMITED,85364,29-Oct-19,2087159,11.25,0,TELECOMMS; MOBILE PHONES,MOBILE COMMUNICATIONS SERVICE PROVIDERS,Invoice,BACS,None,03-Oct-19,2019,7,01285229680,B8512,ENVIRONMENTAL AND DOG CONTROL,D5487,TELECOMMS; MOBILE PHONES
GUILDFORD BOROUGH COUNCIL,OPERATIONS TECHNICAL SERVICES,EE LIMITED,85364,29-Oct-19,2087159,112.5,0,TELECOMMS; MOBILE PHONES,MOBILE COMMUNICATIONS SERVICE PROVIDERS,Invoice,BACS,None,03-Oct-19,2019,7,01285229680,G3548,ICT TECHNICAL & INFRASTRUCTURE,D5487,TELECOMMS; MOBILE PHONES
GUILDFORD BOROUGH COUNCIL,DEVELOPMENT CONTROL,EE LIMITED,85364,29-Oct-19,2087159,87.25,0,TELECOMMS; MOBILE PHONES,MOBILE COMMUNICATIONS SERVICE PROVIDERS,Invoice,BACS,None,03-Oct-19,2019,7,01285229680,D5100,DEVELOPMENT CONTROL - FEE EARN,D5487,TELECOMMS; MOBILE PHONES
GUILDFORD BOROUGH COUNCIL,COMMUNITY WELLBEING,EE LIMITED,85364,29-Oct-19,2087159,67.5,0,TELECOMMS; MOBILE PHONES,MOBILE COMMUNICATIONS SERVICE PROVIDERS,Invoice,BACS,None,03-Oct-19,2019,7,01285229680,F5713,COMMUNITY WELLBEING,D5487,TELECOMMS; MOBILE PHONES
GUILDFORD BOROUGH COUNCIL,BUILDING MAINTENANCE,EE LIMITED,85364,29-Oct-19,2087159,285.18,0,TELECOMMS; MOBILE PHONES,MOBILE COMMUNICATIONS SERVICE PROVIDERS,Invoice,BACS,None,03-Oct-19,2019,7,01285229680,K1515,BUILDING MAINTENANCE,D5487,TELECOMMS; MOBILE PHONES
GUILDFORD BOROUGH COUNCIL,PARKS & COUNTRYSIDE,EE LIMITED,85364,29-Oct-19,2087159,53.5,0,TELECOMMS; MOBILE PHONES,MOBILE COMMUNICATIONS SERVICE PROVIDERS,Invoice,BACS,None,03-Oct-19,2019,7,01285229680,A1000,HOUSING,D5487,TELECOMMS; MOBILE PHONES
GUILDFORD BOROUGH COUNCIL,STREET FURNITURE,CTG ENTERPRISES LTD,79580,10-Oct-19,2084011,350,0,FRIARY BUS STATION CLEANING,OTHER CLEANING AND JANITORIAL SERVICE PROVIDERS,Invoice,BACS,None,01-Oct-19,2019,7,GU1521GBC,B3711,CIVIC AMENITIES ADMINISTRATION,D1405,FRIARY BUS STATION CLEANING
GUILDFORD BOROUGH COUNCIL,FOOD AND SAFETY SERVICES,EE LIMITED,85364,29-Oct-19,2087159,45,0,TELECOMMS; MOBILE PHONES,MOBILE COMMUNICATIONS SERVICE PROVIDERS,Invoice,BACS,None,03-Oct-19,2019,7,01285229680,C1111,FOOD AND SAFETY SERVICES,D5487,TELECOMMS; MOBILE PHONES
GUILDFORD BOROUGH COUNCIL,LICENSING SERVICES,EE LIMITED,85364,29-Oct-19,2087159,33.95,0,TELECOMMS; MOBILE PHONES,MOBILE COMMUNICATIONS SERVICE PROVIDERS,Invoice,BACS,None,03-Oct-19,2019,7,01285229680,H2101,GAMBLING ACT,D5487,TELECOMMS; MOBILE PHONES
GUILDFORD BOROUGH COUNCIL,PRIVATE SECTOR HOUSING,EE LIMITED,85364,29-Oct-19,2087159,33.75,0,TELECOMMS; MOBILE PHONES,MOBILE COMMUNICATIONS SERVICE PROVIDERS,Invoice,BACS,None,03-Oct-19,2019,7,01285229680,C5132,CARE & REPAIR (DETR),D5487,TELECOMMS; MOBILE PHONES
GUILDFORD BOROUGH COUNCIL,CEMETERIES,EE LIMITED,85364,29-Oct-19,2087159,33.75,0,TELECOMMS; MOBILE PHONES,MOBILE COMMUNICATIONS SERVICE PROVIDERS,Invoice,BACS,None,03-Oct-19,2019,7,01285229680,A1430,STOKE CEMETERY,D5487,TELECOMMS; MOBILE PHONES
GUILDFORD BOROUGH COUNCIL,TOWN CENTRE MANAGEMENT,EE LIMITED,85364,29-Oct-19,2087159,33.75,0,TELECOMMS; MOBILE PHONES,MOBILE COMMUNICATIONS SERVICE PROVIDERS,Invoice,BACS,None,03-Oct-19,2019,7,01285229680,F5550,FARMERS MARKET,D5487,TELECOMMS; MOBILE PHONES
GUILDFORD BOROUGH COUNCIL,CIVIL EMERGENCIES,EE LIMITED,85364,29-Oct-19,2087159,11.25,0,TELECOMMS; MOBILE PHONES,MOBILE COMMUNICATIONS SERVICE PROVIDERS,Invoice,BACS,None,03-Oct-19,2019,7,01285229680,F1511,CIVIL EMERGENCIES ADMIN.,D5487,TELECOMMS; MOBILE PHONES
GUILDFORD BOROUGH COUNCIL,COMMUNITY DEVELOPMENT,EE LIMITED,85364,29-Oct-19,2087159,11.25,0,TELECOMMS; MOBILE PHONES,MOBILE COMMUNICATIONS SERVICE PROVIDERS,Invoice,BACS,None,03-Oct-19,2019,7,01285229680,F1127,COMMUNITY DEVELOPMENT,D5487,TELECOMMS; MOBILE PHONES
GUILDFORD BOROUGH COUNCIL,GOVERNMENT ST DEBTORS,EE LIMITED,85364,29-Oct-19,2087159,1255.51,0,VAT INPUT TAX,MOBILE COMMUNICATIONS SERVICE PROVIDERS,Invoice,BACS,None,03-Oct-19,2019,7,01285229680,J02040,VAT,2736,VAT INPUT TAX
GUILDFORD BOROUGH COUNCIL,WOKING ROAD DEPOT,EE LIMITED,85364,29-Oct-19,2087159,45,0,TELECOMMS; MOBILE PHONES,MOBILE COMMUNICATIONS SERVICE PROVIDERS,Invoice,BACS,None,03-Oct-19,2019,7,01285229680,B4452,WOKING ROAD DEPOT,D5487,TELECOMMS; MOBILE PHONES
GUILDFORD BOROUGH COUNCIL,SHELTERED HOUSING,EE LIMITED,85364,29-Oct-19,2087159,33.75,0,TELECOMMS; MOBILE PHONES,MOBILE COMMUNICATIONS SERVICE PROVIDERS,Invoice,BACS,None,03-Oct-19,2019,7,01285229680,M1515,SHELTERED ACCOMODATION,D5487,TELECOMMS; MOBILE PHONES
GUILDFORD BOROUGH COUNCIL,LEGAL SERVICES,EE LIMITED,85364,29-Oct-19,2087159,87.25,0,TELECOMMS; MOBILE PHONES,MOBILE COMMUNICATIONS SERVICE PROVIDERS,Invoice,BACS,None,03-Oct-19,2019,7,01285229680,G4525,LEGAL SERVICES,D5487,TELECOMMS; MOBILE PHONES
GUILDFORD BOROUGH COUNCIL,TENANTS' SERVICES,EE LIMITED,85364,29-Oct-19,2087159,191.51,0,TELECOMMS; MOBILE PHONES,MOBILE COMMUNICATIONS SERVICE PROVIDERS,Invoice,BACS,None,03-Oct-19,2019,7,01285229680,M1151,TENANTS SERVICES (BHS),D5487,TELECOMMS; MOBILE PHONES
GUILDFORD BOROUGH COUNCIL,HOUSING OUTSIDE THE HRA,EE LIMITED,85364,29-Oct-19,2087159,22.5,0,TELECOMMS; MOBILE PHONES,MOBILE COMMUNICATIONS SERVICE PROVIDERS,Invoice,BACS,None,03-Oct-19,2019,7,01285229680,C3313,HOUSING COMPANY,D5487,TELECOMMS; MOBILE PHONES
GUILDFORD BOROUGH COUNCIL,WEBSITE,EE LIMITED,85364,29-Oct-19,2087159,11.25,0,TELECOMMS; MOBILE PHONES,MOBILE COMMUNICATIONS SERVICE PROVIDERS,Invoice,BACS,None,03-Oct-19,2019,7,01285229680,F1141,INTERNET SITE ACCESS,D5487,TELECOMMS; MOBILE PHONES
GUILDFORD BOROUGH COUNCIL,INDUSTRIAL ESTATES,EE LIMITED,85364,29-Oct-19,2087159,1357.3,0,TELECOMMS; MOBILE PHONES,MOBILE COMMUNICATIONS SERVICE PROVIDERS,Invoice,BACS,None,03-Oct-19,2019,7,01285229680,B5311,INDUSTRIAL ESTATES ADMIN.,D5487,TELECOMMS; MOBILE PHONES
GUILDFORD BOROUGH COUNCIL,PARKS & COUNTRYSIDE,EE LIMITED,85364,29-Oct-19,2087159,320.75,0,TELECOMMS; MOBILE PHONES,MOBILE COMMUNICATIONS SERVICE PROVIDERS,Invoice,BACS,None,03-Oct-19,2019,7,01285229680,A1109,PARKS CONTRACTS GENERAL,D5487,TELECOMMS; MOBILE PHONES
GUILDFORD BOROUGH COUNCIL,DEMOCRATIC REPRESENTATION,EE LIMITED,85364,29-Oct-19,2087159,231.5,0,TELECOMMS; MOBILE PHONES,MOBILE COMMUNICATIONS SERVICE PROVIDERS,Invoice,BACS,None,03-Oct-19,2019,7,01285229680,F2121,COUNCILLOR SERVICES,D5487,TELECOMMS; MOBILE PHONES
GUILDFORD BOROUGH COUNCIL,HOUSING SURVEYING SERVICES,EE LIMITED,85364,29-Oct-19,2087159,180.1,0,TELECOMMS; MOBILE PHONES,MOBILE COMMUNICATIONS SERVICE PROVIDERS,Invoice,BACS,None,03-Oct-19,2019,7,01285229680,G6525,HOUSING SURVEYING SERVICES,D5487,TELECOMMS; MOBILE PHONES
GUILDFORD BOROUGH COUNCIL,OFFICE SERVICES TEAM,EE LIMITED,85364,29-Oct-19,2087159,75,0,TELECOMMS; MOBILE PHONES,MOBILE COMMUNICATIONS SERVICE PROVIDERS,Invoice,BACS,None,03-Oct-19,2019,7,01285229680,G4585,OFFICE SERVICES,D5487,TELECOMMS; MOBILE PHONES
GUILDFORD BOROUGH COUNCIL,PARKS & COUNTRYSIDE,EE LIMITED,85364,29-Oct-19,2087159,67.5,0,TELECOMMS; MOBILE PHONES,MOBILE COMMUNICATIONS SERVICE PROVIDERS,Invoice,BACS,None,03-Oct-19,2019,7,01285229680,A1300,TREES & COUNTRYSIDE,D5487,TELECOMMS; MOBILE PHONES
GUILDFORD BOROUGH COUNCIL,STREET CLEANSING,EE LIMITED,85364,29-Oct-19,2087159,19.75,0,TELECOMMS; MOBILE PHONES,MOBILE COMMUNICATIONS SERVICE PROVIDERS,Invoice,BACS,None,03-Oct-19,2019,7,01285229680,B8512,ENVIRONMENTAL AND DOG CONTROL,D5487,TELECOMMS; MOBILE PHONES
GUILDFORD BOROUGH COUNCIL,CORP SERVICES,EE LIMITED,85364,29-Oct-19,2087159,11.25,0,TELECOMMS; MOBILE PHONES,MOBILE COMMUNICATIONS SERVICE PROVIDERS,Invoice,BACS,None,03-Oct-19,2019,7,01285229680,F1111,CORPORATE SERVICES,D5487,TELECOMMS; MOBILE PHONES
GUILDFORD BOROUGH COUNCIL,GUILDFORD HOUSE,EE LIMITED,85364,29-Oct-19,2087159,42.8,0,TELECOMMS; MOBILE PHONES,MOBILE COMMUNICATIONS SERVICE PROVIDERS,Invoice,BACS,None,03-Oct-19,2019,7,01285229680,A4511,GUILDFORD HOUSE ADMINISTRATION,D5487,TELECOMMS; MOBILE PHONES
GUILDFORD BOROUGH COUNCIL,LEISURE COMMUNITY CENTRES,CONCRETE REPAIRS LTD,72288,08-Oct-19,2083956,18.73,0,MECHANICAL/ELECTRICAL MNTCE AG,"CONCRETE CUTTING, DRILLING AND MAINTENANCE CONTRACTORS",Invoice,BACS,None,30-Aug-19,2019,7,INV/015503,A8151,STOUGHTON YOUTH & COMMUNITY CE,B1221,MECHANICAL/ELECTRICAL MNTCE AG
GUILDFORD BOROUGH COUNCIL,PARKS & COUNTRYSIDE,CONCRETE REPAIRS LTD,72288,08-Oct-19,2083957,18.73,0,MECHANICAL/ELECTRICAL MNTCE AG,"CONCRETE CUTTING, DRILLING AND MAINTENANCE CONTRACTORS",Invoice,BACS,None,31-Jul-19,2019,7,INV/015450,A1600,STOKE NURSERY DEPOT,B1221,MECHANICAL/ELECTRICAL MNTCE AG
GUILDFORD BOROUGH COUNCIL,OFF STREET PARKING,CONCRETE REPAIRS LTD,72288,08-Oct-19,2083956,49.94,0,MECHANICAL/ELECTRICAL MNTCE AG,"CONCRETE CUTTING, DRILLING AND MAINTENANCE CONTRACTORS",Invoice,BACS,None,30-Aug-19,2019,7,INV/015503,B2216,GENERAL UPKEEP- URBAN CAR PKS,B1221,MECHANICAL/ELECTRICAL MNTCE AG
GUILDFORD BOROUGH COUNCIL,GUILDFORD HOUSE,CONCRETE REPAIRS LTD,72288,08-Oct-19,2083956,18.73,0,MECHANICAL/ELECTRICAL MNTCE AG,"CONCRETE CUTTING, DRILLING AND MAINTENANCE CONTRACTORS",Invoice,BACS,None,30-Aug-19,2019,7,INV/015503,A4511,GUILDFORD HOUSE ADMINISTRATION,B1221,MECHANICAL/ELECTRICAL MNTCE AG
GUILDFORD BOROUGH COUNCIL,PUBLIC CONVENIENCES,CONCRETE REPAIRS LTD,72288,08-Oct-19,2083956,18.73,0,MECHANICAL/ELECTRICAL MNTCE AG,"CONCRETE CUTTING, DRILLING AND MAINTENANCE CONTRACTORS",Invoice,BACS,None,30-Aug-19,2019,7,INV/015503,K6547,BEDFORD ROAD MSCP PUB CON,B1221,MECHANICAL/ELECTRICAL MNTCE AG
GUILDFORD BOROUGH COUNCIL,FLATS COMMUNAL SERVICES,CONCRETE REPAIRS LTD,72288,08-Oct-19,2083956,18.73,0,R&M - DLO,"CONCRETE CUTTING, DRILLING AND MAINTENANCE CONTRACTORS",Invoice,BACS,None,30-Aug-19,2019,7,INV/015503,M2685,EGERTON COURT 1-12,B1227,R&M - DLO
GUILDFORD BOROUGH COUNCIL,FLATS COMMUNAL SERVICES,CONCRETE REPAIRS LTD,72288,08-Oct-19,2083956,18.73,0,R&M - DLO,"CONCRETE CUTTING, DRILLING AND MAINTENANCE CONTRACTORS",Invoice,BACS,None,30-Aug-19,2019,7,INV/015503,M2761,HOPTON COURT 1-8 (8),B1227,R&M - DLO
GUILDFORD BOROUGH COUNCIL,PARKS & COUNTRYSIDE,CONCRETE REPAIRS LTD,72288,08-Oct-19,2083957,18.73,0,MECHANICAL/ELECTRICAL MNTCE AG,"CONCRETE CUTTING, DRILLING AND MAINTENANCE CONTRACTORS",Invoice,BACS,None,31-Jul-19,2019,7,INV/015450,A1231,SUTH'LAND CRICKET PAV -CHARITY,B1221,MECHANICAL/ELECTRICAL MNTCE AG
GUILDFORD BOROUGH COUNCIL,DAY SERVICES,CONCRETE REPAIRS LTD,72288,29-Oct-19,2087300,80,0,FIRE ALARMS  - SERVICE,"CONCRETE CUTTING, DRILLING AND MAINTENANCE CONTRACTORS",Invoice,BACS,None,31-Jul-19,2019,7,INV/015410,C8188,WEST HUB SHAWFIELD,B1339,FIRE ALARMS  - SERVICE
GUILDFORD BOROUGH COUNCIL,RESPONSIVE & PLANNED MAINTENAN,CONCRETE REPAIRS LTD,72288,29-Oct-19,2087300,315,0,FIRE ALARMS  - SERVICE,"CONCRETE CUTTING, DRILLING AND MAINTENANCE CONTRACTORS",Invoice,BACS,None,31-Jul-19,2019,7,INV/015410,M5107,REPAIRS-SHELT-CYCLICAL (BHS),B1339,FIRE ALARMS  - SERVICE
GUILDFORD BOROUGH COUNCIL,STREET CLEANSING,CTG ENTERPRISES LTD,79580,08-Oct-19,2079617,150,0,PAYMENT TO CONTRACTORS,OTHER CLEANING AND JANITORIAL SERVICE PROVIDERS,Invoice,BACS,None,01-Sep-19,2019,7,GU1512GBC,K4551,STREET CLEANSING,D4468,PAYMENT TO CONTRACTORS
GUILDFORD BOROUGH COUNCIL,RESPONSIVE & PLANNED MAINTENAN,CONCRETE REPAIRS LTD,72288,29-Oct-19,2087300,70,0,FIRE ALARMS  - SERVICE,"CONCRETE CUTTING, DRILLING AND MAINTENANCE CONTRACTORS",Invoice,BACS,None,31-Jul-19,2019,7,INV/015410,M5114,REPAIRS-CYCLICAL (BHS),B1339,FIRE ALARMS  - SERVICE
GUILDFORD BOROUGH COUNCIL,FLATS COMMUNAL SERVICES,CONCRETE REPAIRS LTD,72288,08-Oct-19,2083956,18.73,0,R&M - DLO,"CONCRETE CUTTING, DRILLING AND MAINTENANCE CONTRACTORS",Invoice,BACS,None,30-Aug-19,2019,7,INV/015503,M2884,ROWAN CL 43 - 53 (6 ODD),B1227,R&M - DLO
GUILDFORD BOROUGH COUNCIL,WOKING ROAD DEPOT,CONCRETE REPAIRS LTD,72288,08-Oct-19,2083956,18.73,0,MECHANICAL/ELECTRICAL MNTCE AG,"CONCRETE CUTTING, DRILLING AND MAINTENANCE CONTRACTORS",Invoice,BACS,None,30-Aug-19,2019,7,INV/015503,B4452,WOKING ROAD DEPOT,B1221,MECHANICAL/ELECTRICAL MNTCE AG
GUILDFORD BOROUGH COUNCIL,DAY SERVICES,CONCRETE REPAIRS LTD,72288,08-Oct-19,2083956,18.73,0,FIRE ALARMS  - SERVICE,"CONCRETE CUTTING, DRILLING AND MAINTENANCE CONTRACTORS",Invoice,BACS,None,30-Aug-19,2019,7,INV/015503,C8188,WEST HUB SHAWFIELD,B1339,FIRE ALARMS  - SERVICE
GUILDFORD BOROUGH COUNCIL,DAY SERVICES,CONCRETE REPAIRS LTD,72288,08-Oct-19,2083956,49.94,0,FIRE ALARMS  - SERVICE,"CONCRETE CUTTING, DRILLING AND MAINTENANCE CONTRACTORS",Invoice,BACS,None,30-Aug-19,2019,7,INV/015503,C8189,CENTRAL HUB PARK BARN,B1339,FIRE ALARMS  - SERVICE
GUILDFORD BOROUGH COUNCIL,OFF STREET PARKING,CONCRETE REPAIRS LTD,72288,08-Oct-19,2083953,90,0,MECHANICAL/ELECTRICAL MNTCE AG,"CONCRETE CUTTING, DRILLING AND MAINTENANCE CONTRACTORS",Invoice,BACS,None,31-Jul-19,2019,7,INV/015406,B2216,GENERAL UPKEEP- URBAN CAR PKS,B1221,MECHANICAL/ELECTRICAL MNTCE AG
GUILDFORD BOROUGH COUNCIL,OFF STREET PARKING,CONCRETE REPAIRS LTD,72288,08-Oct-19,2083953,90,0,MECHANICAL/ELECTRICAL MNTCE AG,"CONCRETE CUTTING, DRILLING AND MAINTENANCE CONTRACTORS",Invoice,BACS,None,31-Jul-19,2019,7,INV/015406,B2216,GENERAL UPKEEP- URBAN CAR PKS,B1221,MECHANICAL/ELECTRICAL MNTCE AG
GUILDFORD BOROUGH COUNCIL,OFFICE SERVICES TEAM,CONCRETE REPAIRS LTD,72288,08-Oct-19,2083954,1408,0,MECHANICAL/ELECTRICAL MNTCE AG,"CONCRETE CUTTING, DRILLING AND MAINTENANCE CONTRACTORS",Invoice,BACS,None,31-Jul-19,2019,7,INV/015408,G7511,MILLMEAD HOUSE,B1221,MECHANICAL/ELECTRICAL MNTCE AG
